{"text_format":"1","workbook":"xlsx","n_sheets":15,"sheets":["Formulaire","Aide","Contacts","Tiers1","Tiers2","Tiers3","Actions en régie","PDIPR","SIRET","Partenaires","Collectivités","Listes","Itinéraires","Vérif","Pieces"],"not_rendered":{"charts":1,"images":2,"macros":1,"external_links":0,"defined_names":20,"comments":1,"pivot_tables":0},"unopened":[],"bounds":{"document_bytes":16777216,"sheet_cells":100000,"rows_first":2000,"rows_last":500,"rows_between":2000,"halvings":0,"cell_chars":16384,"cell_head_chars":4096},"cells_cut":0,"cells_raw":0,"read":"whole","date_system":"1900"}

{"sheet":"Formulaire","index":0,"n_rows":60,"n_cols":23,"rows_kept":60,"cut":false,"hidden":false,"merged":[[46,4,46,6],[50,4,50,10],[52,4,55,10],[38,4,38,6],[59,18,59,22],[50,16,50,20],[52,16,52,20],[46,8,46,9],[26,4,26,5],[8,4,8,10],[16,4,16,10],[24,4,24,10],[18,4,18,5],[10,4,10,5],[10,6,10,7],[12,5,12,10],[32,4,32,10],[34,4,34,10],[36,4,36,10],[42,4,42,6],[44,4,44,6]]}
[]
[]
[null,null,"Rattachement de l'action",null,"Champs obligatoires (*)",null,null,null,null,null,null,null,null,null,"Financement de l'action",null,"Partenaire 1",null,"Partenaire 2",null,"Partenaire 3"]
[]
[null,null,null,"Date :",null,null,null,null,null,null,null,null,null,null,null,"Part de financement",{"$f":"IF(OR(E9=\"\",E9=\" \"),\"Non\",\"Oui\")","v":"Non"},null,{"$f":"IF(OR(E17=\"\",E17=\" \"),\"Non\",\"Oui\")","v":"Non"},null,{"$f":"IF(OR(E25=\"\",E25=\" \"),\"Non\",\"Oui\")","v":"Non"},{"$f":"IF(P5=\"Oui\",1,\"\")","v":""},{"$f":"IF(Q5=\"Oui\",1,\"\")","v":""}]
[]
[null,null,"Portage",null,"Date limite de dépôt des dossiers pour l'année N+1 : le 15 OCTOBRE de l'année en cours",null,null,null,null,null,null,null,null,null,null,"Taux :",{"$f":"IF(E15=\"\",\"\",E15)","v":""},null,{"$f":"IF(E23=\"\",\"\",E23)","v":""},null,{"$f":"IF(E31=\"\",\"\",E31)","v":""},{"$f":"IF(P7=\"Oui\",1,\"\")","v":""},"(% d'autofinancement)"]
[]
[null,null,null,"Libellé du partenaire 1 * :",null,null,null,null,null,null,null,null,null,null,null,"Montant :",{"$f":"IF(OR(Q5=\"Non\",Q7=\"\"),0,($E$58*Q7)/100)","v":0},null,{"$f":"IF(OR(S5=\"Non\",S7=\"\"),0,($E$58*S7)/100)","v":0},null,{"$f":"IF(OR(U5=\"Non\",U7=\"\"),0,($E$58*U7)/100)","v":0},null,"(Montant global x Taux)"]
[]
[null,null,null,"Type * :",null,null,"Assujetti à la TVA * :",null,"Non",null,null,null,null,null,null,"Département","Oui",null,{"$f":"IF(M11=\"Oui\",1,\"\")","v":""},"","",null,{"$f":"IF(Q11=\"Oui\",1,\"\")","v":1}]
[null,null,null,null,null,null,null,null,null,null,null,null,null,null,null,null,null,null,"","",""]
[null,null,null,"Partenaire déjà enregistré * :",null,{"$f":"Listes!V9","v":""},null,null,null,null,null,null,null,null,null,"Type de fonds :","TA",null,"","",""]
[]
[null,null,null,"Part du portage * :",null,"(Taux du portage assuré par le partenaire 1)",null,null,null,null,null,null,null,null,null,"Taux * :",null,null,"(% de financement)"]
[]
[null,null,null,"Libellé du partenaire 2 :",null,null,null,null,null,null,null,null,null,null,null,"Montant :",{"$f":"IF(Listes!M37>0,Listes!M37,IF(OR(Q11<>\"Oui\",Q15=0),0,($E$58*Q15)/100))","v":0},null,"(Montant de l'aide CD54 x Taux)"]
[]
[null,null,null,"Type :","Association",null,null,null,null,null,null,null,null,null,null,"Etat","Non",null,{"$f":"IF(Q19=\"Oui\",1,\"\")","v":""}]
[]
[null,null,null,"Partenaire déjà enregistré :",null,{"$f":"IF(E21=\"Oui\",1,\"\")","v":""},null,null,null,null,null,null,null,null,null,"Type de fonds :"]
[]
[null,null,null,"Part du portage :",null,"(Taux du portage assuré par le partenaire 2)",null,null,null,null,null,null,null,null,null,"Taux :",null,null,"(% de financement)"]
[]
[null,null,null,"Libellé du partenaire 3 :",null,null,null,null,null,null,null,null,null,null,null,"Montant :",{"$f":"IF(OR(Q19<>\"Oui\",Q23=0),0,($E$58*Q23)/100)","v":0},null,"(Montant global x Taux)"]
[]
[null,null,null,"Type :",null,null,null,null,null,null,null,null,null,null,null,"Région","Non",null,{"$f":"IF(Q27=\"Oui\",1,\"\")","v":""}]
[]
[null,null,null,"Partenaire déjà enregistré :",null,{"$f":"IF(E29=\"Oui\",1,\"\")","v":""},null,null,null,null,null,null,null,null,null,"Type de fonds :"]
[]
[null,null,null,"Part du portage :",null,"(Taux du portage assuré par le partenaire 3)",null,null,null,null,null,null,null,null,null,"Taux :",null,null,"(% de financement)"]
[]
[null,null,null,"Territoire d'EPCI * :",null,null,null,null,null,null,null,null,null,null,null,"Montant :",{"$f":"IF(OR(Q27<>\"Oui\",Q31=0),0,($E$58*Q31)/100)","v":0},null,"(Montant global x Taux)"]
[]
[null,null,null,null,{"$f":"IF(E33=\"\",\"\",LOOKUP(E33,Collectivités!B1:B22,Collectivités!C1:C22))","v":""},null,null,null,null,null,null,null,null,null,null,"AERM","Non",null,{"$f":"IF(Q35=\"Oui\",1,\"\")","v":""}]
[]
[null,null,null,null,{"$f":"IF(E33=\"\",\"\",LOOKUP(E33,Collectivités!B1:B22,Collectivités!D1:D22))","v":""},null,null,null,null,null,null,null,null,null,null,"Type de fonds :"]
[]
[null,null,null,"Territoire :",{"$f":"IF(E33=\"\",\"\",LOOKUP(E33,Collectivités!B1:B22,Collectivités!E1:E22))","v":""},null,null,null,null,null,null,null,null,null,null,"Taux :",null,null,"(% de financement)"]
[]
[null,null,null,"Année de programmation * :",null,null,null,null,null,null,null,null,null,null,null,"Montant :",{"$f":"IF(OR(Q35<>\"Oui\",Q39=0),0,($E$58*Q39)/100)","v":0},null,"(Montant global x Taux)"]
[]
[null,null,null,"Section * :",null,null,null,null,null,null,null,null,null,null,null,"ADEME","Non",null,{"$f":"IF(Q43=\"Oui\",1,\"\")","v":""}]
[]
[null,null,null,"Thème de l'action * :",null,null,null,null,null,null,null,null,null,null,null,"Type de fonds :"]
[]
[null,null,null,"Type d'action * :",null,null,null,null,null,null,null,null,null,null,null,"Taux :",null,null,"(% de financement)"]
[]
[null,null,"Description",null,null,null,null,null,null,null,null,null,null,null,null,"Montant :",{"$f":"IF(OR(Q43<>\"Oui\",Q47=0),0,($E$58*Q47)/100)","v":0},null,"(Montant global x Taux)"]
[]
[null,null,null,"Libellé de l'action * :",null,null,null,null,null,null,null,null,null,null,null,"Autre (à préciser)"]
[]
[null,null,null,"Descriptif technique * :",null,null,null,null,null,null,null,null,null,null,null,"Type de fonds :","-"]
[]
[null,null,null,null,null,null,null,null,null,null,null,null,null,null,null,"Taux :",null,null,"(% de financement)"]
[]
[null,null,null,null,null,null,null,null,null,null,null,null,null,null,null,"Montant :",{"$f":"IF(OR(Q51=\"\",Q55=0),\"\",($E$58*Q55)/100)","v":""},null,"(Montant global x Taux)"]
[null,null,null,"Montant global de l'action * :",null,{"$f":"IF(E43=\"\",\"\",IF(E43=\"Fonctionnement\",\"Montant TTC\",IF(AND(E11=\"Association\",I11=\"Oui\"),\"Montant HT\",\"Montant TTC\")))","v":""},null,null,null,null,null,null,null,null,null,null,{"$f":"ROUNDUP(E58,0)-ROUNDUP(Q60,0)","v":0}]
[]
[null,null,null,"Assiette subventionnable CD54 * :",null,null,null,null,null,null,null,null,null,null,"Montant total du financement",null,{"$f":"SUM(Q9,S9,U9,Q17,Q25,Q33,Q41,Q49,Q57)","v":0},null,{"$f":"IF(OR(E58=0,Q60=0),\"\",IF(Q58=0,\"Financement équilibré\",IF(Q58<0,\"Financement supérieur au montant global\",IF(Q58>0,\"Financement inférieur au montant global\",\"Veuillez renseigner les financeurs\"))))","v":""}]

{"sheet":"Aide","index":1,"n_rows":0,"n_cols":0,"rows_kept":0,"cut":false,"hidden":true,"merged":[]}

{"sheet":"Contacts","index":2,"n_rows":32,"n_cols":7,"rows_kept":32,"cut":false,"hidden":true,"merged":[]}
[null,"Service","Agent","Fonction","Secteur de compétence","Téléphone","Email"]
[{"$f":"IF($C$26=4,1,\"\")","v":""},"Service actions foncières et urbanisme"]
[{"$f":"IF($C$26=4,2,\"\")","v":""},null,"Benoît Fournier","Responsable du service","Département","03 83 94 59 30","bfournier@departement54.fr"]
[{"$f":"IF($C$26=4,3,\"\")","v":""},null,"Christelle During","Gestion administrative et financière","Département",383945691,"dduring@departement54.fr"]
[{"$f":"IF($C$26=4,4,\"\")","v":""},null,"Corinne Brunelot","Chargée d'études","Département",383945365,"cbrunelot@departement54.fr"]
[{"$f":"IF($C$26=4,5,\"\")","v":""},null,"Denise Bonetti","Gestion administrative et financière","Département",383945698,"dbonetti@departement54.fr"]
[{"$f":"IF($C$26=4,6,\"\")","v":""},null,"Laëtitia Aubertin","Gestion administrative et financière","Département",383945688,"laubertin@departement54.fr"]
[]
[{"$f":"IF(OR(OR($C$26=1,$C$26=2),$C$26=3),1,\"\")","v":""},"Service patrimoine naturel"]
[null,null,"Alizé Bailleul","Technicienne Natura 2000","Département",383945652,"abailleul@departement54.fr"]
[null,null,"Fabrina Salas","Gestion administrative et financière","Département",383945687,"fsalas@departement54.fr"]
[{"$f":"IF($C$26=2,2,\"\")","v":""},null,"Didier Haillant","Technicien randonnée et environnement","Département",383945854,"dhaillant@departement54.fr"]
[{"$f":"IF(OR($C$26=1,$C$26=3),2,\"\")","v":""},null,"Guillaume Godfroy","Chargé de mission","ENS départementaux",383945856,"ggodfroy@departement54.fr"]
[{"$f":"IF(OR($C$26=1,$C$26=3),3,\"\")","v":""},null,"Muriel Ballié","Chargée de mission (responsable du service)","Grand Nancy, Terres de Lorraine",383945690,"dballie@departement54.fr"]
[null,null,"Nathalie Malbreil","Chargée de mission","Lunévillois",383945533,"nmalbreil@departement54.fr"]
[]
[]
[{"$f":"IF($C$26=2,1,\"\")","v":""},"Economie circulaire alimentaire"]
[{"$f":"IF($C$26=2,2,\"\")","v":""},null,"Aude Simermann","Chargée de mission","Département",383945065,"asimermann@departement54.fr"]
[]
[1,"Espaces Naturels Sensibles",{"$f":"IF(Formulaire!$E$45=\"\",0,IF(Formulaire!$E$45=Contacts!B21,A21,\"\"))","v":0}]
[2,"Randonnée",{"$f":"IF(Formulaire!$E$45=\"\",0,IF(Formulaire!$E$45=Contacts!B22,A22,\"\"))","v":0}]
[3,"Ressource en eau",{"$f":"IF(Formulaire!$E$45=\"\",0,IF(Formulaire!$E$45=Contacts!B23,A23,\"\"))","v":0}]
[4,"TVB/Paysages/Espèces",{"$f":"IF(Formulaire!$E$45=\"\",0,IF(Formulaire!$E$45=Contacts!B24,A24,\"\"))","v":0}]
[5,null,{"$f":"IF(Formulaire!$E$45=\"\",0,IF(Formulaire!$E$45=Contacts!B25,A25,\"\"))","v":0}]
[null,null,{"$f":"SUM(C21:C25)","v":0}]
[1,{"$f":"LOOKUP(A27,$A$2:$A$19,B2:B19)","v":{"$error":"#N/A"}}]
[{"$f":"IF(MAX($A$4:$A$19)<2,\"\",2)","v":""},{"$f":"IF(A28=\"\",\"\",LOOKUP(A28,$A$2:$A$19,$C$2:$C$19))","v":""},{"$f":"IF(A28=\"\",\"\",LOOKUP(A28,$A$2:$A$19,$D$2:$D$19))","v":""},{"$f":"IF(A28=\"\",\"\",LOOKUP(A28,$A$2:$A$19,$E$2:$E$19))","v":""},{"$f":"IF(A28=\"\",\"\",LOOKUP(A28,$A$2:$A$19,$F$2:$F$19))","v":""},{"$f":"IF(A28=\"\",\"\",LOOKUP(A28,$A$2:$A$19,$G$2:$G$19))","v":""}]
[{"$f":"IF(MAX($A$4:$A$19)<3,\"\",3)","v":""},{"$f":"IF(A29=\"\",\"\",LOOKUP(A29,$A$2:$A$19,$C$2:$C$19))","v":""},{"$f":"IF(A29=\"\",\"\",LOOKUP(A29,$A$2:$A$19,$D$2:$D$19))","v":""},{"$f":"IF(A29=\"\",\"\",LOOKUP(A29,$A$2:$A$19,$E$2:$E$19))","v":""},{"$f":"IF(A29=\"\",\"\",LOOKUP(A29,$A$2:$A$19,$F$2:$F$19))","v":""},{"$f":"IF(A29=\"\",\"\",LOOKUP(A29,$A$2:$A$19,$G$2:$G$19))","v":""}]
[{"$f":"IF(MAX($A$4:$A$19)<4,\"\",4)","v":""},{"$f":"IF(A30=\"\",\"\",LOOKUP(A30,$A$2:$A$19,$C$2:$C$19))","v":""},{"$f":"IF(A30=\"\",\"\",LOOKUP(A30,$A$2:$A$19,$D$2:$D$19))","v":""},{"$f":"IF(A30=\"\",\"\",LOOKUP(A30,$A$2:$A$19,$E$2:$E$19))","v":""},{"$f":"IF(A30=\"\",\"\",LOOKUP(A30,$A$2:$A$19,$F$2:$F$19))","v":""},{"$f":"IF(A30=\"\",\"\",LOOKUP(A30,$A$2:$A$19,$G$2:$G$19))","v":""}]
[{"$f":"IF(MAX($A$4:$A$19)<5,\"\",5)","v":""},{"$f":"IF(A31=\"\",\"\",LOOKUP(A31,$A$2:$A$19,$C$2:$C$19))","v":""},{"$f":"IF(A31=\"\",\"\",LOOKUP(A31,$A$2:$A$19,$D$2:$D$19))","v":""},{"$f":"IF(A31=\"\",\"\",LOOKUP(A31,$A$2:$A$19,$E$2:$E$19))","v":""},{"$f":"IF(A31=\"\",\"\",LOOKUP(A31,$A$2:$A$19,$F$2:$F$19))","v":""},{"$f":"IF(A31=\"\",\"\",LOOKUP(A31,$A$2:$A$19,$G$2:$G$19))","v":""}]
[{"$f":"IF(MAX($A$4:$A$19)<6,\"\",6)","v":""},{"$f":"IF(A32=\"\",\"\",LOOKUP(A32,$A$2:$A$19,$C$2:$C$19))","v":""},{"$f":"IF(A32=\"\",\"\",LOOKUP(A32,$A$2:$A$19,$D$2:$D$19))","v":""},{"$f":"IF(A32=\"\",\"\",LOOKUP(A32,$A$2:$A$19,$E$2:$E$19))","v":""},{"$f":"IF(A32=\"\",\"\",LOOKUP(A32,$A$2:$A$19,$F$2:$F$19))","v":""},{"$f":"IF(A32=\"\",\"\",LOOKUP(A32,$A$2:$A$19,$G$2:$G$19))","v":""}]

{"sheet":"Tiers1","index":3,"n_rows":30,"n_cols":4,"rows_kept":30,"cut":false,"hidden":true,"merged":[[1,2,1,8],[6,3,6,5],[4,3,4,8],[14,3,14,7],[24,3,24,6],[18,3,18,6]]}
[]
[null,null,"Création d'un compte tiers"]
[]
[]
[null,null,"Libellé de la structure"]
[]
[null,null,"Président/Responsable"]
[]
[null,null,null,"Adresse du Siège social"]
[]
[null,null,"Numéro de rue"]
[]
[null,null,"Etage"]
[]
[null,null,"Rue"]
[]
[null,null,"Code Postal"]
[]
[null,null,"Ville"]
[]
[null,null,"Téléphone :"]
[]
[null,null,"Mobile :"]
[]
[null,null,"Courriel :"]
[]
[]
[null,null,"Important ! Ce formulaire doit être accompagné des pièces suivantes :"]
[null,null,"- Certificat d'inscription au Répertoire des Entreprises et des Etablissements (SIRENE)"]
[null,null,"- RIB ou RIP"]

{"sheet":"Tiers2","index":4,"n_rows":30,"n_cols":4,"rows_kept":30,"cut":false,"hidden":true,"merged":[[24,3,24,6],[1,2,1,8],[4,3,4,8],[6,3,6,5],[14,3,14,7],[18,3,18,6]]}
[]
[null,null,"Création d'un compte tiers"]
[]
[]
[null,null,"Libellé de la structure"]
[]
[null,null,"Président/Responsable"]
[]
[null,null,null,"Adresse du Siège social"]
[]
[null,null,"Numéro de rue"]
[]
[null,null,"Etage"]
[]
[null,null,"Rue"]
[]
[null,null,"Code Postal"]
[]
[null,null,"Ville"]
[]
[null,null,"Téléphone :"]
[]
[null,null,"Mobile :"]
[]
[null,null,"Courriel :"]
[]
[]
[null,null,"Important ! Ce formulaire doit être accompagné des pièces suivantes :"]
[null,null,"- Certificat d'inscription au Répertoire des Entreprises et des Etablissements (SIRENE)"]
[null,null,"- RIB ou RIP"]

{"sheet":"Tiers3","index":5,"n_rows":30,"n_cols":4,"rows_kept":30,"cut":false,"hidden":true,"merged":[[24,3,24,6],[1,2,1,8],[4,3,4,8],[6,3,6,5],[14,3,14,7],[18,3,18,6]]}
[]
[null,null,"Création d'un compte tiers"]
[]
[]
[null,null,"Libellé de la structure"]
[]
[null,null,"Président/Responsable"]
[]
[null,null,null,"Adresse du Siège social"]
[]
[null,null,"Numéro de rue"]
[]
[null,null,"Etage"]
[]
[null,null,"Rue"]
[]
[null,null,"Code Postal"]
[]
[null,null,"Ville"]
[]
[null,null,"Téléphone :"]
[]
[null,null,"Mobile :"]
[]
[null,null,"Courriel :"]
[]
[]
[null,null,"Important ! Ce formulaire doit être accompagné des pièces suivantes :"]
[null,null,"- Certificat d'inscription au Répertoire des Entreprises et des Etablissements (SIRENE)"]
[null,null,"- RIB ou RIP"]

{"sheet":"Actions en régie","index":6,"n_rows":17,"n_cols":8,"rows_kept":17,"cut":false,"hidden":true,"merged":[[17,2,20,7],[2,2,2,7],[12,2,12,6]]}
[]
[]
[null,null,{"$f":"IF(Formulaire!$E$45=\"Randonnée\",UPPER(Formulaire!$E$45&\" - \"&\"Balades 54\"),UPPER(Formulaire!$E$45))","v":""}]
[]
[null,null,"Type de mission","Forfait journalier","Nombre de demi-journées prévisionnelles","Coût €","Taux de subvention (60% maxi)","Subvention CD54 €"]
[null,null,"Réalisation d'études de diagnostics et de suivis",450,null,{"$f":"IF(E6<1,\"\",D6/2*E6)","v":""},null,{"$f":"IF(OR(OR(E6<1,F6<1),G6<1),\"\",F6*G6/100)","v":""}]
[null,null,"Encadrement de la réalisation d'études , de diagnostics et de suivis",250,null,"",null,""]
[null,null,"Réalisation de relevés géographiques pour l'application Balades 54\navec intégration de contenus : textes descriptifs, photos…",250,null,"",null,""]
[null,null,"Travaux en régie",150,null,"",null,""]
[null,null,"Suivi de travaux de sites",250,null,"",null,""]
[null,null,"Conception d'outils de communication portant sur la connaissance\net la gestion des sites : contenus de panneaux, infosites…",250,null,"",null,""]
[null,null,null,null,{"$f":"IF(AND(SUM(E6:E7,E9:E11)>0,Formulaire!E45=\"Randonnée\"),1,IF(AND(E8>0,Formulaire!E45<>\"Randonnée\"),2,0))","v":0},null,{"$f":"MAX(G6:G11)","v":0},{"$f":"IF(OR(E12>0,G12>60),1,0)","v":0}]
[null,null,"Total des actions en régie",null,null,null,null,{"$f":"SUM(H6:H12)","v":0}]
[]
[]
[]
[null,null,"Observations"]

{"sheet":"PDIPR","index":7,"n_rows":15,"n_cols":12,"rows_kept":15,"cut":false,"hidden":true,"merged":[[7,6,7,8],[3,6,3,8],[1,1,1,11],[6,1,6,3],[4,6,4,8],[5,6,5,8],[6,6,6,8],[13,9,14,9],[13,10,14,10],[13,11,14,11],[13,7,14,7],[9,1,10,5],[13,8,14,8],[13,1,14,1],[13,2,14,2],[13,3,14,3],[13,4,14,4],[13,5,13,6]]}
[]
[null,"Entretien des itinéraires de randonnée inscrits au PDIPR"]
[]
[null,null,null,null,null,null,{"$f":"IF(Formulaire!E41=\"\",\"\",\"Entretien \"&Formulaire!E41)","v":""},null,null,"Départemental","Local","Total"]
[null,null,null,null,null,null,"Nbre d'itinéraires entretenus",null,null,{"$f":"COUNTIFS(D16:D64999,\"departemental\",I16:I64999,\">0\")","v":0},{"$f":"COUNTIFS(D16:D64999,\"local\",I16:I64999,\">0\")","v":0},{"$f":"IF(J5+K5=0,0,SUM(J5:K5))&\" / \"&COUNTA(B16:B64999)","v":"0 / 0"}]
[null,"Liste des itinéraires par EPCI",null,null,null,null,"Km entretenus",null,null,{"$f":"SUMIFS(E16:E64999,D16:D64999,\"departemental\",I16:I64999,\">0\")","v":0},{"$f":"SUMIFS(E16:E64999,D16:D64999,\"local\",I16:I64999,\">0\")","v":0},{"$f":"IF(SUM(J6:K6)=0,0&\" / \"&SUM(E16:E64999),SUM(J6:K6)&\" / \"&SUM(E16:E64999))","v":"0 / 0"}]
[null,null,null,null,null,null,"Coût TTC",null,null,{"$f":"SUMIFS(I16:I65000,D16:D65000,\"departemental\")","v":0},{"$f":"SUMIFS(I16:I65000,D16:D65000,\"Local\")","v":0},{"$f":"SUM(J7:K7)","v":0}]
[null,null,null,null,null,null,"Montant prévisionnel de l'aide",null,null,{"$f":"SUMIFS(L16:L65000,D16:D65000,\"departemental\")","v":0},{"$f":"SUMIFS(L16:L65000,D16:D65000,\"Local\")","v":0},{"$f":"ROUND(SUM(J8:K8),0)","v":0}]
[null,"Observations"]
[]
[null,null,null,null,null,null,null,null,null,"Entretenus",{"$f":"ROUND((SUM(J6:K6)/SUM(E16:E64999))*100,0)","v":{"$error":"#DIV/0!"}}]
[null,null,null,"Le montant des dépenses comprend par itinéraire :",null,null,null,null,null,"Non entretenus",{"$f":"ROUND(((SUM(E16:E64999)-SUM(J6:K6))/SUM(E16:E64999))*100,0)","v":{"$error":"#DIV/0!"}}]
[null,"La liste ci-dessous reprenant les itinéraires inscrits ou éligibles",null,"l'achat du matériel de balisage + les frais de déplacements"]
[null,"Numéro","Nom de l'itinéraire","Intérêt","Km","Travaux",null,"Mobilier","Coût TTC","Plafond\npar Km","Taux","Aide calculée"]
[null,null,null,null,null,"Balisage","ELA/DEB"]

{"sheet":"SIRET","index":8,"n_rows":0,"n_cols":0,"rows_kept":0,"cut":false,"hidden":true,"merged":[]}

{"sheet":"Partenaires","index":9,"n_rows":83,"n_cols":4,"rows_kept":83,"cut":false,"hidden":true,"merged":[]}
[]
["A VELO EN JARNISY","Association",null,"AIRPAS"]
["AGAPE","Association",null,"ARSEM"]
["AIR ET EAU","Association",null,"ASP FORET DE HAYE"]
["AIRPAS","Association",null,"ASSOCIATION AIR ET EAU"]
["ARSEM","Association",null,"ASSOCIATION GUERRE EN VOSGES"]
["ASSOCIATION INTERCOMMUNALE DES SENTIERS DE LA LINOTTE","Association",null,"ASSOCIATION INTERCOMMUNALE DES SENTIERS DE LA LINOTTE"]
["ASSOCIATION INTERCOMMUNALE DES SENTIERS DE LA MIRABELLE","Association",null,"ASSOCIATION INTERCOMMUNALE DES SENTIERS DE LA MIRABELLE"]
["ASSOCIATION INTERCOMMUNALE DES SENTIERS DES DEUILLES","Association",null,"ASSOCIATION INTERCOMMUNALE DES SENTIERS DES DEUILLES"]
["BASE SOLAN","Organisme public",null,"CA D EPINAL"]
["CLUB ALPIN FRANCAIS DE NANCY","Association",null,"CDRP 54 - COMMISSION SENTIERS 54"]
["CLUB VOSGIEN 54","Association",null,"CLUB ALPIN FRANCAIS DE NANCY"]
["CLUB VOSGIEN D AZERAILLES","Association",null,"CLUB VOSGIEN 54"]
["CLUB VOSGIEN DE BADONVILLER","Association",null,"CLUB VOSGIEN D AZERAILLES"]
["CLUB VOSGIEN DE BAYON-GERBEVILLER","Association",null,"CLUB VOSGIEN DE BADONVILLER"]
["CLUB VOSGIEN DE LA VALLEE DE LA CHIERS","Association",null,"CLUB VOSGIEN DE BAYON-GERBEVILLER"]
["CLUB VOSGIEN DE LA VEZOUZE","Association",null,"CLUB VOSGIEN DE LA VALLEE DE LA CHIERS"]
["CLUB VOSGIEN DE MARCHE PIENNOIS","Association",null,"CLUB VOSGIEN DE LA VEZOUZE"]
["CLUB VOSGIEN DE RAON L ETAPE ET DE LA PORTE DES VOSGES","Association",null,"CLUB VOSGIEN DE NANCY"]
["CLUB VOSGIEN DU VAL DE MEURTHE (AIR COMME RANDO)","Association",null,"CLUB VOSGIEN DE MARCHE PIENNOIS"]
["CLUB VOSGIEN NANCY","Association",null,"CLUB VOSGIEN DE RAON L ETAPE ET DE LA PORTE DES VOSGES"]
["CLUB VOSGIEN NANCY","Association",null,"CLUB VOSGIEN DU VAL DE MEURTHE (AIR COMME RANDO)"]
["COMITE DEPARTEMENTAL DE CYCLOTOURISME ET DE VTT","Association",null,"COMITE DEPARTEMENTAL DE CYCLOTOURISME ET DE VTT"]
["COMITE DEPARTEMENTAL DE LA RANDONNEE PEDESTRE 54","Association",null,"COMMUNAUTE D'AGGLOMERATIONS DE LONGWY"]
["COMMUNAUTE D'AGGLOMERATIONS DE LONGWY","EPCI",null,"COMMUNAUTE D'AGGLOMERATIONS DE SAINT-DIE-DES-VOSGES"]
["COMMUNAUTE D'AGGLOMERATIONS DE SAINT-DIE-DES-VOSGES","EPCI",null,"COMMUNAUTE DE COMMUNES DE MAD ET MOSELLE"]
["COMMUNAUTE DE COMMUNES DE MAD ET MOSELLE","EPCI",null,"COMMUNAUTE DE COMMUNES DE MOSELLE ET MADON"]
["COMMUNAUTE DE COMMUNES DE MOSELLE ET MADON","EPCI",null,"COMMUNAUTE DE COMMUNES DE SEILLE ET GRAND COURONNE"]
["COMMUNAUTE DE COMMUNES DE SEILLE ET GRAND COURONNE","EPCI",null,"COMMUNAUTE DE COMMUNES DE VEZOUZE EN PIEMONT"]
["COMMUNAUTE DE COMMUNES DE VEZOUZE EN PIEMONT","EPCI",null,"COMMUNAUTE DE COMMUNES DU BASSIN DE POMPEY"]
["COMMUNAUTE DE COMMUNES DU BASSIN DE POMPEY","EPCI",null,"COMMUNAUTE DE COMMUNES DU BASSIN DE PONT-A-MOUSSON"]
["COMMUNAUTE DE COMMUNES DU BASSIN DE PONT-A-MOUSSON","EPCI",null,"COMMUNAUTE DE COMMUNES DU CŒUR DU PAYS HAUT"]
["COMMUNAUTE DE COMMUNES DU CŒUR DU PAYS HAUT","EPCI",null,"COMMUNAUTE DE COMMUNES DU PAYS DE COLOMBEY ET DU SUD TOULOIS"]
["COMMUNAUTE DE COMMUNES DU PAYS DE COLOMBEY ET DU SUD TOULOIS","EPCI",null,"COMMUNAUTE DE COMMUNES DU PAYS DU SAINTOIS"]
["COMMUNAUTE DE COMMUNES DU PAYS DU SAINTOIS","EPCI",null,"COMMUNAUTE DE COMMUNES DU PAYS DU SANON"]
["COMMUNAUTE DE COMMUNES DU PAYS DU SANON","EPCI",null,"COMMUNAUTE DE COMMUNES DU PAYS DU SEL ET DU VERMOIS"]
["COMMUNAUTE DE COMMUNES DU PAYS DU SEL ET DU VERMOIS","EPCI",null,"COMMUNAUTE DE COMMUNES DU PAYS HAUT VAL D'ALZETTE"]
["COMMUNAUTE DE COMMUNES DU PAYS HAUT VAL D'ALZETTE","EPCI",null,"COMMUNAUTE DE COMMUNES DU TERRITOIRE DE LUNEVILLE A BACCARAT"]
["COMMUNAUTE DE COMMUNES DU TERRITOIRE DE LUNEVILLE A BACCARAT","EPCI",null,"COMMUNAUTE DE COMMUNES MEURTHE MORTAGNE MOSELLE"]
["COMMUNAUTE DE COMMUNES MEURTHE MORTAGNE MOSELLE","EPCI",null,"COMMUNAUTE DE COMMUNES ORNE LORRAINE CONFLUENCES"]
["COMMUNAUTE DE COMMUNES ORNE LORRAINE CONFLUENCES","EPCI",null,"COMMUNAUTE DE COMMUNES TERRE LORRAINE DU LONGUYONNAIS"]
["COMMUNAUTE DE COMMUNES TERRE LORRAINE DU LONGUYONNAIS","EPCI",null,"COMMUNAUTE DE COMMUNES TERRES TOULOISES"]
["COMMUNAUTE DE COMMUNES TERRES TOULOISES","EPCI",null,"COMMUNE DE FROUARD"]
["CONFRERIE SAINT NICOLAS DE YUTZ","Association",null,"COMMUNE DE LIVERDUN"]
["CONSERVATOIRE D'ESPACES NATURELS DE LORRAINE","Association",null,"COMMUNE DE SAINT-PANCRE"]
["DESTINATION NANCY","Organisme public",null,"COMMUNE DE VALLEROY"]
["DYNAMO","Association",null,"CONFRERIE SAINT NICOLAS DE YUTZ"]
["ENTENTE POUR LA DEFENSE DE L'ENVIRONNEMENT NANCEIEN","Association",null,"FOYER RURAL DE VANDIERES - RANDONNEE"]
["FOYER RURAL DE VANDIERES - RANDONNEE","Association",null,"FREP - FEDERATION RURALE EDUCATION POPULAIRE"]
["FREP - FEDERATION RURALE EDUCATION POPULAIRE","Association",null,"HERSERANGE NATURE PLEIN AIR"]
["GECT ESCH ALZETTE","Association",null,"INTERREG IV-A LORRAINE"]
["HERSERANGE NATURE PLEIN AIR","Association",null,"LES AMIS DE SAINT-JACQUES DE COMPOSTELLE"]
["LES AMIS DE SAINT-JACQUES DE COMPOSTELLE","Association",null,"LES RANDONNEURS DU PAYS DE L ORNE"]
["LES RANDONNEURS DU PAYS DE L ORNE","Association",null,"LES RANDONNEURS DU SAINTOIS"]
["LES RANDONNEURS DU SAINTOIS","Association",null,"LES RANDONNEURS DU SANON ET DU LUNEVILLOIS"]
["LES RANDONNEURS DU SANON ET DU LUNEVILLOIS","Association",null,"LES SONNEURS DE LA COTE"]
["LES SONNEURS DE LA COTE","Association",null,"LOISIRS-RANDO-TOURISME DU BASSIN DE BRIEY"]
["LOISIRS-RANDO-TOURISME DU BASSIN DE BRIEY","Association",null,"MAD MOSELLE SINGLE TRACKS"]
["MAD MOSELLE SINGLE TRACKS","Association",null,"METROPOLE DU GRAND NANCY"]
["METROPOLE DU GRAND NANCY","EPCI",null,"MJC DE DOMJEVIN"]
["MILTOL","Organisme public",null,"PAM RANDO"]
["OT LONGUYONNAIS","Organisme public",null,"RANDO DES VALS DE MOSELLE ET DE L ESCH"]
["OT Longwy","Organisme public",null,"RANDO MENIL"]
["OT PAM","Organisme public",null,"RANDO SEL ET VERMOIS"]
["OT TOUL","Organisme public",null,"RANDO TROIS VALLEES"]
["PAM RANDO","Association",null,"RANDONNEES PEDESTRES LIVERDUNOISES"]
["PAYS TERRES DE LORRAINE","Organisme public",null,"TOURISME ET LOISIRS AU PERE HILARION"]
["PETR DU PAYS DE LA DEODATIE","Organisme public",null,"UNION SPORTIVE DU JARNISY - SECTION RANDO"]
["PETR Lunévillois","Organisme public",null,"VTT EVASION LUDRES"]
["PETR VDL","Organisme public",null,"VTT FUN CLUB"]
["PNRL","Organisme public"]
["RANDO DES VALS DE MOSELLE ET DE L ESCH","Association"]
["RANDO MENIL","Association"]
["RANDO SEL ET VERMOIS","Association"]
["RANDO TROIS VALLEES","Association"]
["RANDONNEES PEDESTRES LIVERDUNOISES","Association"]
["SYNDICAT DE TRANSPORTS DU BASSIN DE BRIEY","Organisme public"]
["TOURISME ET LOISIRS AU PERE HILARION","Association"]
["UNION SPORTIVE DU JARNISY - SECTION RANDO","Association"]
["VELO MOBILITE ACTIVE","Association"]
["VELOLUN","Association"]
["VTT EVASION LUDRES","Association"]
["VTT FUN CLUB","Association"]

{"sheet":"Collectivités","index":10,"n_rows":596,"n_cols":10,"rows_kept":596,"cut":false,"hidden":true,"merged":[]}
[0]
[1,"CA DE LONGWY","2, rue de Lexy - CS 11432 Réhon","54414 LONGWY Cedex","LONGWY",null,"ABAUCOURT",54001,"COMMUNAUTE DE COMMUNES DE SEILLE ET GRAND COURONNE",5]
[2,"CA DE SAINT-DIE-DES-VOSGES","7, place Saint-Martin","88100 SAINT-DIE-DES-VOSGES","LUNEVILLOIS",null,"ABBEVILLE-LES-CONFLANS",54002,"COMMUNAUTE DE COMMUNES ORNE LORRAINE CONFLUENCES",17]
[3,"CC CŒUR DU PAYS HAUT","71, route de Briey","54560 AUDUN-LE-ROMAN","BRIEY",null,"ABONCOURT",54003,"COMMUNAUTE DE COMMUNES DU PAYS DE COLOMBEY ET DU SUD TOULOIS",10]
[4,"CC DE SEILLE ET GRAND COURONNE","47, rue Saint Barthélémy","54280 CHAMPENOUX","VAL DE LORRAINE",null,"AFFLEVILLE",54004,"COMMUNAUTE DE COMMUNES ORNE LORRAINE CONFLUENCES",17]
[5,"CC DE VEZOUZE EN PIEMONT","38, rue de la Voise - BP 8","54450 BLÂMONT","LUNEVILLOIS",null,"AFFRACOURT",54005,"COMMUNAUTE DE COMMUNES ORNE LORRAINE CONFLUENCES",11]
[6,"CC DES PAYS DU SEL ET DU VERMOIS","3, rue Louis Majorelle - ZAC du Saulcy","54110 DOMBASLE-SUR-MEURTHE","LUNEVILLOIS",null,"AGINCOURT",54006,"COMMUNAUTE DE COMMUNES ORNE LORRAINE CONFLUENCES",5]
[7,"CC DU BASSIN DE POMPEY","Rue des 4 Eléments - BP 60008","54340 POMPEY","VAL DE LORRAINE",null,"AINGERAY",54007,"COMMUNAUTE DE COMMUNES ORNE LORRAINE CONFLUENCES",19]
[8,"CC DU BASSIN DE PONT-A-MOUSSON","75, allée Louis Camillle Maillard - BP 50285","54701 PONT-A-MOUSSON Cedex","VAL DE LORRAINE",null,"ALLAIN",54008,"COMMUNAUTE DE COMMUNES ORNE LORRAINE CONFLUENCES",10]
[9,"CC DU PAYS DE COLOMBEY ET DU SUD TOULOIS","6, impasse de la Colombe - BP 12","54170 COLOMBEY-LES-BELLES","TERRES DE LORRAINE",null,"ALLAMONT",54009,"COMMUNAUTE DE COMMUNES ORNE LORRAINE CONFLUENCES",17]
[10,"CC DU PAYS DU SAINTOIS","21, rue de la Gare","54116 TANTONVILLE","TERRES DE LORRAINE",null,"ALLAMPS",54010,"COMMUNAUTE DE COMMUNES ORNE LORRAINE CONFLUENCES",10]
[11,"CC DU PAYS DU SANON","7, place de la Fontaine","54370 EINVILLE-AU-JARD","LUNEVILLOIS",null,"ALLONDRELLE-LA-MALMAISON",54011,"COMMUNAUTE DE COMMUNES ORNE LORRAINE CONFLUENCES",18]
[12,"CC DU PAYS HAUT VAL D'ALZETTE","Le Laboratoire - 390, Rue du Laboratoire, Site de Micheville","57390 Audun-le-Tiche","LONGWY",null,"AMANCE",54012,"COMMUNAUTE DE COMMUNES ORNE LORRAINE CONFLUENCES",5]
[13,"CC DU TERRITOIRE DE LUNEVILLE A BACCARAT","11, avenue de la Libération - BP 80047","54300 LUNÉVILLE","LUNEVILLOIS",null,"AMENONCOURT",54013,"COMMUNAUTE DE COMMUNES ORNE LORRAINE CONFLUENCES",6]
[14,"CC MAD ET MOSELLE","2 bis, rue Henri Poulet","54470 THIAUCOURT-REGNIEVILLE","VAL DE LORRAINE",null,"ANCERVILLER",54014,"COMMUNAUTE DE COMMUNES ORNE LORRAINE CONFLUENCES",6]
[15,"CC MEURTHE MORTAGNE MOSELLE","56, rue Pierre Sémard","54360 BLAINVILLE-SUR-L'EAU","LUNEVILLOIS",null,"ANDERNY",54015,"COMMUNAUTE DE COMMUNES ORNE LORRAINE CONFLUENCES",9]
[16,"CC MOSELLE ET MADON","712, rue Nicolas Cugnot","54230 NEUVES-MAISONS","TERRES DE LORRAINE",null,"ANDILLY",54016,"COMMUNAUTE DE COMMUNES ORNE LORRAINE CONFLUENCES",19]
[17,"CC ORNE LORRAINE CONFLUENCES","1, place du Général Leclerc","54580 AUBOUÉ","BRIEY",null,"ANGOMONT",54017,"COMMUNAUTE DE COMMUNES ORNE LORRAINE CONFLUENCES",6]
[18,"CC TERRE LORRAINE DU LONGUYONNAIS","51, rue Augistrou","54260 LONGUYON","LONGWY",null,"ANOUX",54018,"COMMUNAUTE DE COMMUNES ORNE LORRAINE CONFLUENCES",17]
[19,"CC TERRES TOULOISES","Rue du Mémorial du Génie - CS 40325 Ecrouves","54201 TOUL","TERRES DE LORRAINE",null,"ANSAUVILLE",54019,"COMMUNAUTE DE COMMUNES ORNE LORRAINE CONFLUENCES",19]
[20,"DEPARTEMENT","48, Esplanade Jacques Baudot","54035 NANCY Cedex","DEPARTEMENT",null,"ANTHELUPT",54020,"COMMUNAUTE DE COMMUNES ORNE LORRAINE CONFLUENCES",12]
[21,"METROPOLE DU GRAND NANCY","22-24, Viaduc Kennedy - CO 80036","54035 NANCY Cedex","GRAND NANCY",null,"ARMAUCOURT",54021,"COMMUNAUTE DE COMMUNES ORNE LORRAINE CONFLUENCES",5]
[null,null,null,null,null,null,"ARNAVILLE",54022,"COMMUNAUTE DE COMMUNES ORNE LORRAINE CONFLUENCES",3]
[null,null,null,null,null,null,"ARRACOURT",54023,"COMMUNAUTE DE COMMUNES ORNE LORRAINE CONFLUENCES",12]
[null,null,null,null,null,null,"ARRAYE-ET-HAN",54024,"COMMUNAUTE DE COMMUNES ORNE LORRAINE CONFLUENCES",5]
[null,null,null,null,null,null,"ART-SUR-MEURTHE",54025,"COMMUNAUTE DE COMMUNES ORNE LORRAINE CONFLUENCES",21]
[null,null,null,null,null,null,"ATHIENVILLE",54026,"COMMUNAUTE DE COMMUNES ORNE LORRAINE CONFLUENCES",12]
[null,null,null,null,null,null,"ATTON",54027,"COMMUNAUTE DE COMMUNES ORNE LORRAINE CONFLUENCES",8]
[null,null,null,null,null,null,"AUBOUE",54028,"COMMUNAUTE DE COMMUNES ORNE LORRAINE CONFLUENCES",17]
[null,null,null,null,null,null,"AUDUN-LE-ROMAN",54029,"COMMUNAUTE DE COMMUNES ORNE LORRAINE CONFLUENCES",9]
[null,null,null,null,null,null,"AUTREPIERRE",54030,"COMMUNAUTE DE COMMUNES ORNE LORRAINE CONFLUENCES",6]
[null,null,null,null,null,null,"AUTREVILLE-SUR-MOSELLE",54031,"COMMUNAUTE DE COMMUNES ORNE LORRAINE CONFLUENCES",8]
[null,null,null,null,null,null,"AUTREY",54032,"COMMUNAUTE DE COMMUNES ORNE LORRAINE CONFLUENCES",11]
[null,null,null,null,null,null,"AVILLERS",54033,"COMMUNAUTE DE COMMUNES ORNE LORRAINE CONFLUENCES",9]
[null,null,null,null,null,null,"AVRAINVILLE",54034,"COMMUNAUTE DE COMMUNES ORNE LORRAINE CONFLUENCES",19]
[null,null,null,null,null,null,"AVRICOURT",54035,"COMMUNAUTE DE COMMUNES ORNE LORRAINE CONFLUENCES",6]
[null,null,null,null,null,null,"AVRIL",54036,"COMMUNAUTE DE COMMUNES ORNE LORRAINE CONFLUENCES",17]
[null,null,null,null,null,null,"AZELOT",54037,"COMMUNAUTE DE COMMUNES ORNE LORRAINE CONFLUENCES",13]
[null,null,null,null,null,null,"AZERAILLES",54038,"COMMUNAUTE DE COMMUNES ORNE LORRAINE CONFLUENCES",15]
[null,null,null,null,null,null,"BACCARAT",54039,"COMMUNAUTE DE COMMUNES ORNE LORRAINE CONFLUENCES",15]
[null,null,null,null,null,null,"BADONVILLER",54040,"COMMUNAUTE DE COMMUNES ORNE LORRAINE CONFLUENCES",6]
[null,null,null,null,null,null,"BAGNEUX",54041,"COMMUNAUTE DE COMMUNES ORNE LORRAINE CONFLUENCES",10]
[null,null,null,null,null,null,"BAINVILLE-AUX-MIROIRS",54042,"COMMUNAUTE DE COMMUNES ORNE LORRAINE CONFLUENCES",11]
[null,null,null,null,null,null,"BAINVILLE-SUR-MADON",54043,"COMMUNAUTE DE COMMUNES ORNE LORRAINE CONFLUENCES",4]
[null,null,null,null,null,null,"BARBAS",54044,"COMMUNAUTE DE COMMUNES ORNE LORRAINE CONFLUENCES",6]
[null,null,null,null,null,null,"BARBONVILLE",54045,"COMMUNAUTE DE COMMUNES ORNE LORRAINE CONFLUENCES",16]
[null,null,null,null,null,null,"BARISEY-AU-PLAIN",54046,"COMMUNAUTE DE COMMUNES ORNE LORRAINE CONFLUENCES",10]
[null,null,null,null,null,null,"BARISEY-LA-COTE",54047,"COMMUNAUTE DE COMMUNES ORNE LORRAINE CONFLUENCES",10]
[null,null,null,null,null,null,"BASLIEUX",54049,"COMMUNAUTE DE COMMUNES ORNE LORRAINE CONFLUENCES",18]
[null,null,null,null,null,null,"BATHELEMONT-LES-BAUZEMONT",54050,"COMMUNAUTE DE COMMUNES ORNE LORRAINE CONFLUENCES",12]
[null,null,null,null,null,null,"BATILLY",54051,"COMMUNAUTE DE COMMUNES ORNE LORRAINE CONFLUENCES",17]
[null,null,null,null,null,null,"BATTIGNY",54052,"COMMUNAUTE DE COMMUNES ORNE LORRAINE CONFLUENCES",10]
[null,null,null,null,null,null,"BAUZEMONT",54053,"COMMUNAUTE DE COMMUNES ORNE LORRAINE CONFLUENCES",12]
[null,null,null,null,null,null,"BAYON",54054,"COMMUNAUTE DE COMMUNES ORNE LORRAINE CONFLUENCES",16]
[null,null,null,null,null,null,"BAYONVILLE-SUR-MAD",54055,"COMMUNAUTE DE COMMUNES ORNE LORRAINE CONFLUENCES",3]
[null,null,null,null,null,null,"BAZAILLES",54056,"COMMUNAUTE DE COMMUNES ORNE LORRAINE CONFLUENCES",18]
[null,null,null,null,null,null,"BEAUMONT",54057,"COMMUNAUTE DE COMMUNES ORNE LORRAINE CONFLUENCES",3]
[null,null,null,null,null,null,"BECHAMPS",54058,"COMMUNAUTE DE COMMUNES ORNE LORRAINE CONFLUENCES",17]
[null,null,null,null,null,null,"BELLEAU",54059,"COMMUNAUTE DE COMMUNES ORNE LORRAINE CONFLUENCES",5]
[null,null,null,null,null,null,"BELLEVILLE",54060,"COMMUNAUTE DE COMMUNES ORNE LORRAINE CONFLUENCES",8]
[null,null,null,null,null,null,"BENAMENIL",54061,"COMMUNAUTE DE COMMUNES ORNE LORRAINE CONFLUENCES",15]
[null,null,null,null,null,null,"BENNEY",54062,"COMMUNAUTE DE COMMUNES ORNE LORRAINE CONFLUENCES",11]
[null,null,null,null,null,null,"BERNECOURT",54063,"COMMUNAUTE DE COMMUNES ORNE LORRAINE CONFLUENCES",3]
[null,null,null,null,null,null,"BERTRAMBOIS",54064,"COMMUNAUTE DE COMMUNES ORNE LORRAINE CONFLUENCES",6]
[null,null,null,null,null,null,"BERTRICHAMPS",54065,"COMMUNAUTE DE COMMUNES ORNE LORRAINE CONFLUENCES",15]
[null,null,null,null,null,null,"BETTAINVILLERS",54066,"COMMUNAUTE DE COMMUNES ORNE LORRAINE CONFLUENCES",17]
[null,null,null,null,null,null,"BEUVEILLE",54067,"COMMUNAUTE DE COMMUNES ORNE LORRAINE CONFLUENCES",18]
[null,null,null,null,null,null,"BEUVEZIN",54068,"COMMUNAUTE DE COMMUNES ORNE LORRAINE CONFLUENCES",10]
[null,null,null,null,null,null,"BEUVILLERS",54069,"COMMUNAUTE DE COMMUNES ORNE LORRAINE CONFLUENCES",9]
[null,null,null,null,null,null,"BEY-SUR-SEILLE",54070,"COMMUNAUTE DE COMMUNES ORNE LORRAINE CONFLUENCES",5]
[null,null,null,null,null,null,"BEZANGE-LA-GRANDE",54071,"COMMUNAUTE DE COMMUNES ORNE LORRAINE CONFLUENCES",12]
[null,null,null,null,null,null,"BEZAUMONT",54072,"COMMUNAUTE DE COMMUNES ORNE LORRAINE CONFLUENCES",8]
[null,null,null,null,null,null,"BICQUELEY",54073,"COMMUNAUTE DE COMMUNES ORNE LORRAINE CONFLUENCES",19]
[null,null,null,null,null,null,"BIENVILLE-LA-PETITE",54074,"COMMUNAUTE DE COMMUNES ORNE LORRAINE CONFLUENCES",12]
[null,null,null,null,null,null,"BIONVILLE",54075,"COMMUNAUTE DE COMMUNES ORNE LORRAINE CONFLUENCES",2]
[null,null,null,null,null,null,"BLAINVILLE-SUR-L'EAU",54076,"COMMUNAUTE DE COMMUNES ORNE LORRAINE CONFLUENCES",16]
[null,null,null,null,null,null,"BLAMONT",54077,"COMMUNAUTE DE COMMUNES ORNE LORRAINE CONFLUENCES",6]
[null,null,null,null,null,null,"BLEMEREY",54078,"COMMUNAUTE DE COMMUNES ORNE LORRAINE CONFLUENCES",6]
[null,null,null,null,null,null,"BLENOD-LES-PONT-A-MOUSSON",54079,"COMMUNAUTE DE COMMUNES ORNE LORRAINE CONFLUENCES",8]
[null,null,null,null,null,null,"BLENOD-LES-TOUL",54080,"COMMUNAUTE DE COMMUNES ORNE LORRAINE CONFLUENCES",10]
[null,null,null,null,null,null,"BOIS-EN-HAYE",54557,"COMMUNAUTE DE COMMUNES ORNE LORRAINE CONFLUENCES",19]
[null,null,null,null,null,null,"BOISMONT",54081,"COMMUNAUTE DE COMMUNES ORNE LORRAINE CONFLUENCES",18]
[null,null,null,null,null,null,"BONCOURT",54082,"COMMUNAUTE DE COMMUNES ORNE LORRAINE CONFLUENCES",17]
[null,null,null,null,null,null,"BONVILLER",54083,"COMMUNAUTE DE COMMUNES ORNE LORRAINE CONFLUENCES",12]
[null,null,null,null,null,null,"BORVILLE",54085,"COMMUNAUTE DE COMMUNES ORNE LORRAINE CONFLUENCES",16]
[null,null,null,null,null,null,"BOUCQ",54086,"COMMUNAUTE DE COMMUNES ORNE LORRAINE CONFLUENCES",19]
[null,null,null,null,null,null,"BOUILLONVILLE",54087,"COMMUNAUTE DE COMMUNES ORNE LORRAINE CONFLUENCES",3]
[null,null,null,null,null,null,"BOULIGNY",55063,"COMMUNAUTE DE COMMUNES ORNE LORRAINE CONFLUENCES",9]
[null,null,null,null,null,null,"BOUVRON",54088,"COMMUNAUTE DE COMMUNES ORNE LORRAINE CONFLUENCES",19]
[null,null,null,null,null,null,"BOUXIERES-AUX-CHENES",54089,"COMMUNAUTE DE COMMUNES ORNE LORRAINE CONFLUENCES",5]
[null,null,null,null,null,null,"BOUXIERES-AUX-DAMES",54090,"COMMUNAUTE DE COMMUNES ORNE LORRAINE CONFLUENCES",7]
[null,null,null,null,null,null,"BOUXIERES-SOUS-FROIDMONT",54091,"COMMUNAUTE DE COMMUNES ORNE LORRAINE CONFLUENCES",8]
[null,null,null,null,null,null,"BOUZANVILLE",54092,"COMMUNAUTE DE COMMUNES ORNE LORRAINE CONFLUENCES",11]
[null,null,null,null,null,null,"BRAINVILLE",54093,"COMMUNAUTE DE COMMUNES ORNE LORRAINE CONFLUENCES",17]
[null,null,null,null,null,null,"BRALLEVILLE",54094,"COMMUNAUTE DE COMMUNES ORNE LORRAINE CONFLUENCES",11]
[null,null,null,null,null,null,"BRATTE",54095,"COMMUNAUTE DE COMMUNES ORNE LORRAINE CONFLUENCES",5]
[null,null,null,null,null,null,"BREHAIN-LA-VILLE",54096,"COMMUNAUTE DE COMMUNES ORNE LORRAINE CONFLUENCES",9]
[null,null,null,null,null,null,"BREMENIL",54097,"COMMUNAUTE DE COMMUNES ORNE LORRAINE CONFLUENCES",6]
[null,null,null,null,null,null,"BREMONCOURT",54098,"COMMUNAUTE DE COMMUNES ORNE LORRAINE CONFLUENCES",16]
[null,null,null,null,null,null,"BRIN-SUR-SEILLE",54100,"COMMUNAUTE DE COMMUNES ORNE LORRAINE CONFLUENCES",5]
[null,null,null,null,null,null,"BROUVILLE",54101,"COMMUNAUTE DE COMMUNES ORNE LORRAINE CONFLUENCES",15]
[null,null,null,null,null,null,"BRULEY",54102,"COMMUNAUTE DE COMMUNES ORNE LORRAINE CONFLUENCES",19]
[null,null,null,null,null,null,"BRUVILLE",54103,"COMMUNAUTE DE COMMUNES ORNE LORRAINE CONFLUENCES",17]
[null,null,null,null,null,null,"BUISSONCOURT",54104,"COMMUNAUTE DE COMMUNES ORNE LORRAINE CONFLUENCES",5]
[null,null,null,null,null,null,"BULLIGNY",54105,"COMMUNAUTE DE COMMUNES ORNE LORRAINE CONFLUENCES",10]
[null,null,null,null,null,null,"BURES",54106,"COMMUNAUTE DE COMMUNES ORNE LORRAINE CONFLUENCES",12]
[null,null,null,null,null,null,"BURIVILLE",54107,"COMMUNAUTE DE COMMUNES ORNE LORRAINE CONFLUENCES",6]
[null,null,null,null,null,null,"BURTHECOURT-AUX-CHENES",54108,"COMMUNAUTE DE COMMUNES ORNE LORRAINE CONFLUENCES",13]
[null,null,null,null,null,null,"CEINTREY",54109,"COMMUNAUTE DE COMMUNES ORNE LORRAINE CONFLUENCES",11]
[null,null,null,null,null,null,"CERVILLE",54110,"COMMUNAUTE DE COMMUNES ORNE LORRAINE CONFLUENCES",5]
[null,null,null,null,null,null,"CHALIGNY",54111,"COMMUNAUTE DE COMMUNES ORNE LORRAINE CONFLUENCES",4]
[null,null,null,null,null,null,"CHAMBLEY-BUSSIERES",54112,"COMMUNAUTE DE COMMUNES ORNE LORRAINE CONFLUENCES",3]
[null,null,null,null,null,null,"CHAMPENOUX",54113,"COMMUNAUTE DE COMMUNES ORNE LORRAINE CONFLUENCES",5]
[null,null,null,null,null,null,"CHAMPEY-SUR-MOSELLE",54114,"COMMUNAUTE DE COMMUNES ORNE LORRAINE CONFLUENCES",8]
[null,null,null,null,null,null,"CHAMPIGNEULLES",54115,"COMMUNAUTE DE COMMUNES ORNE LORRAINE CONFLUENCES",7]
[null,null,null,null,null,null,"CHANTEHEUX",54116,"COMMUNAUTE DE COMMUNES ORNE LORRAINE CONFLUENCES",15]
[null,null,null,null,null,null,"CHAOUILLEY",54117,"COMMUNAUTE DE COMMUNES ORNE LORRAINE CONFLUENCES",11]
[null,null,null,null,null,null,"CHARENCY-VEZIN",54118,"COMMUNAUTE DE COMMUNES ORNE LORRAINE CONFLUENCES",18]
[null,null,null,null,null,null,"CHAREY",54119,"COMMUNAUTE DE COMMUNES ORNE LORRAINE CONFLUENCES",3]
[null,null,null,null,null,null,"CHARMES-LA-COTE",54120,"COMMUNAUTE DE COMMUNES ORNE LORRAINE CONFLUENCES",19]
[null,null,null,null,null,null,"CHARMOIS",54121,"COMMUNAUTE DE COMMUNES ORNE LORRAINE CONFLUENCES",16]
[null,null,null,null,null,null,"CHAUDENEY-SUR-MOSELLE",54122,"COMMUNAUTE DE COMMUNES ORNE LORRAINE CONFLUENCES",19]
[null,null,null,null,null,null,"CHAVIGNY",54123,"COMMUNAUTE DE COMMUNES ORNE LORRAINE CONFLUENCES",4]
[null,null,null,null,null,null,"CHAZELLES-SUR-ALBE",54124,"COMMUNAUTE DE COMMUNES ORNE LORRAINE CONFLUENCES",6]
[null,null,null,null,null,null,"CHENEVIERES",54125,"COMMUNAUTE DE COMMUNES ORNE LORRAINE CONFLUENCES",15]
[null,null,null,null,null,null,"CHENICOURT",54126,"COMMUNAUTE DE COMMUNES ORNE LORRAINE CONFLUENCES",5]
[null,null,null,null,null,null,"CHENIERES",54127,"COMMUNAUTE DE COMMUNES ORNE LORRAINE CONFLUENCES",1]
[null,null,null,null,null,null,"CHOLOY-MENILLOT",54128,"COMMUNAUTE DE COMMUNES ORNE LORRAINE CONFLUENCES",19]
[null,null,null,null,null,null,"CIREY-SUR-VEZOUZE",54129,"COMMUNAUTE DE COMMUNES ORNE LORRAINE CONFLUENCES",6]
[null,null,null,null,null,null,"CLAYEURES",54130,"COMMUNAUTE DE COMMUNES ORNE LORRAINE CONFLUENCES",16]
[null,null,null,null,null,null,"CLEMERY",54131,"COMMUNAUTE DE COMMUNES ORNE LORRAINE CONFLUENCES",5]
[null,null,null,null,null,null,"CLEREY-SUR-BRENON",54132,"COMMUNAUTE DE COMMUNES ORNE LORRAINE CONFLUENCES",11]
[null,null,null,null,null,null,"COINCOURT",54133,"COMMUNAUTE DE COMMUNES ORNE LORRAINE CONFLUENCES",12]
[null,null,null,null,null,null,"COLMEY",54134,"COMMUNAUTE DE COMMUNES ORNE LORRAINE CONFLUENCES",18]
[null,null,null,null,null,null,"COLOMBEY-LES-BELLES",54135,"COMMUNAUTE DE COMMUNES ORNE LORRAINE CONFLUENCES",10]
[null,null,null,null,null,null,"CONFLANS-EN-JARNISY",54136,"COMMUNAUTE DE COMMUNES ORNE LORRAINE CONFLUENCES",17]
[null,null,null,null,null,null,"CONS-LA-GRANDVILLE",54137,"COMMUNAUTE DE COMMUNES ORNE LORRAINE CONFLUENCES",1]
[null,null,null,null,null,null,"COSNES-ET-ROMAIN",54138,"COMMUNAUTE DE COMMUNES ORNE LORRAINE CONFLUENCES",1]
[null,null,null,null,null,null,"COURBESSEAUX",54139,"COMMUNAUTE DE COMMUNES ORNE LORRAINE CONFLUENCES",12]
[null,null,null,null,null,null,"COURCELLES",54140,"COMMUNAUTE DE COMMUNES ORNE LORRAINE CONFLUENCES",10]
[null,null,null,null,null,null,"COYVILLER",54141,"COMMUNAUTE DE COMMUNES ORNE LORRAINE CONFLUENCES",13]
[null,null,null,null,null,null,"CRANTENOY",54142,"COMMUNAUTE DE COMMUNES ORNE LORRAINE CONFLUENCES",11]
[null,null,null,null,null,null,"CREPEY",54143,"COMMUNAUTE DE COMMUNES ORNE LORRAINE CONFLUENCES",10]
[null,null,null,null,null,null,"CREVECHAMPS",54144,"COMMUNAUTE DE COMMUNES ORNE LORRAINE CONFLUENCES",16]
[null,null,null,null,null,null,"CREVIC",54145,"COMMUNAUTE DE COMMUNES ORNE LORRAINE CONFLUENCES",13]
[null,null,null,null,null,null,"CREZILLES",54146,"COMMUNAUTE DE COMMUNES ORNE LORRAINE CONFLUENCES",10]
[null,null,null,null,null,null,"CRION",54147,"COMMUNAUTE DE COMMUNES ORNE LORRAINE CONFLUENCES",12]
[null,null,null,null,null,null,"CROISMARE",54148,"COMMUNAUTE DE COMMUNES ORNE LORRAINE CONFLUENCES",15]
[null,null,null,null,null,null,"CRUSNES",54149,"COMMUNAUTE DE COMMUNES ORNE LORRAINE CONFLUENCES",9]
[null,null,null,null,null,null,"CUSTINES",54150,"COMMUNAUTE DE COMMUNES ORNE LORRAINE CONFLUENCES",7]
[null,null,null,null,null,null,"CUTRY",54151,"COMMUNAUTE DE COMMUNES ORNE LORRAINE CONFLUENCES",1]
[null,null,null,null,null,null,"DAMELEVIERES",54152,"COMMUNAUTE DE COMMUNES ORNE LORRAINE CONFLUENCES",16]
[null,null,null,null,null,null,"DAMPVITOUX",54153,"COMMUNAUTE DE COMMUNES ORNE LORRAINE CONFLUENCES",3]
[null,null,null,null,null,null,"DENEUVRE",54154,"COMMUNAUTE DE COMMUNES ORNE LORRAINE CONFLUENCES",15]
[null,null,null,null,null,null,"DEUXVILLE",54155,"COMMUNAUTE DE COMMUNES ORNE LORRAINE CONFLUENCES",12]
[null,null,null,null,null,null,"DIARVILLE",54156,"COMMUNAUTE DE COMMUNES ORNE LORRAINE CONFLUENCES",11]
[null,null,null,null,null,null,"DIEULOUARD",54157,"COMMUNAUTE DE COMMUNES ORNE LORRAINE CONFLUENCES",8]
[null,null,null,null,null,null,"DOLCOURT",54158,"COMMUNAUTE DE COMMUNES ORNE LORRAINE CONFLUENCES",10]
[null,null,null,null,null,null,"DOMBASLE-SUR-MEURTHE",54159,"COMMUNAUTE DE COMMUNES ORNE LORRAINE CONFLUENCES",13]
[null,null,null,null,null,null,"DOMEVRE-EN-HAYE",54160,"COMMUNAUTE DE COMMUNES ORNE LORRAINE CONFLUENCES",19]
[null,null,null,null,null,null,"DOMEVRE-SUR-VEZOUZE",54161,"COMMUNAUTE DE COMMUNES ORNE LORRAINE CONFLUENCES",6]
[null,null,null,null,null,null,"DOMGERMAIN",54162,"COMMUNAUTE DE COMMUNES ORNE LORRAINE CONFLUENCES",19]
[null,null,null,null,null,null,"DOMJEVIN",54163,"COMMUNAUTE DE COMMUNES ORNE LORRAINE CONFLUENCES",6]
[null,null,null,null,null,null,"DOMMARIE-EULMONT",54164,"COMMUNAUTE DE COMMUNES ORNE LORRAINE CONFLUENCES",11]
[null,null,null,null,null,null,"DOMMARTEMONT",54165,"COMMUNAUTE DE COMMUNES ORNE LORRAINE CONFLUENCES",21]
[null,null,null,null,null,null,"DOMMARTIN-LA-CHAUSSEE",54166,"COMMUNAUTE DE COMMUNES ORNE LORRAINE CONFLUENCES",3]
[null,null,null,null,null,null,"DOMMARTIN-LES-TOUL",54167,"COMMUNAUTE DE COMMUNES ORNE LORRAINE CONFLUENCES",19]
[null,null,null,null,null,null,"DOMMARTIN-SOUS-AMANCE",54168,"COMMUNAUTE DE COMMUNES ORNE LORRAINE CONFLUENCES",5]
[null,null,null,null,null,null,"DOMPRIX",54169,"COMMUNAUTE DE COMMUNES ORNE LORRAINE CONFLUENCES",9]
[null,null,null,null,null,null,"DOMPTAIL-EN-L'AIR",54170,"COMMUNAUTE DE COMMUNES ORNE LORRAINE CONFLUENCES",16]
[null,null,null,null,null,null,"DONCOURT-LES-CONFLANS",54171,"COMMUNAUTE DE COMMUNES ORNE LORRAINE CONFLUENCES",17]
[null,null,null,null,null,null,"DONCOURT-LES-LONGUYON",54172,"COMMUNAUTE DE COMMUNES ORNE LORRAINE CONFLUENCES",18]
[null,null,null,null,null,null,"DROUVILLE",54173,"COMMUNAUTE DE COMMUNES ORNE LORRAINE CONFLUENCES",12]
[null,null,null,null,null,null,"ECROUVES",54174,"COMMUNAUTE DE COMMUNES ORNE LORRAINE CONFLUENCES",19]
[null,null,null,null,null,null,"EINVAUX",54175,"COMMUNAUTE DE COMMUNES ORNE LORRAINE CONFLUENCES",16]
[null,null,null,null,null,null,"EINVILLE-AU-JARD",54176,"COMMUNAUTE DE COMMUNES ORNE LORRAINE CONFLUENCES",12]
[null,null,null,null,null,null,"EMBERMENIL",54177,"COMMUNAUTE DE COMMUNES ORNE LORRAINE CONFLUENCES",6]
[null,null,null,null,null,null,"EPIEZ-SUR-CHIERS",54178,"COMMUNAUTE DE COMMUNES ORNE LORRAINE CONFLUENCES",18]
[null,null,null,null,null,null,"EPLY",54179,"COMMUNAUTE DE COMMUNES ORNE LORRAINE CONFLUENCES",5]
[null,null,null,null,null,null,"ERBEVILLER-SUR-AMEZULE",54180,"COMMUNAUTE DE COMMUNES ORNE LORRAINE CONFLUENCES",5]
[null,null,null,null,null,null,"ERROUVILLE",54181,"COMMUNAUTE DE COMMUNES ORNE LORRAINE CONFLUENCES",9]
[null,null,null,null,null,null,"ESSEY-ET-MAIZERAIS",54182,"COMMUNAUTE DE COMMUNES ORNE LORRAINE CONFLUENCES",3]
[null,null,null,null,null,null,"ESSEY-LA-COTE",54183,"COMMUNAUTE DE COMMUNES ORNE LORRAINE CONFLUENCES",16]
[null,null,null,null,null,null,"ESSEY-LES-NANCY",54184,"COMMUNAUTE DE COMMUNES ORNE LORRAINE CONFLUENCES",21]
[null,null,null,null,null,null,"ETREVAL",54185,"COMMUNAUTE DE COMMUNES ORNE LORRAINE CONFLUENCES",11]
[null,null,null,null,null,null,"EULMONT",54186,"COMMUNAUTE DE COMMUNES ORNE LORRAINE CONFLUENCES",5]
[null,null,null,null,null,null,"EUVEZIN",54187,"COMMUNAUTE DE COMMUNES ORNE LORRAINE CONFLUENCES",3]
[null,null,null,null,null,null,"FAULX",54188,"COMMUNAUTE DE COMMUNES ORNE LORRAINE CONFLUENCES",7]
[null,null,null,null,null,null,"FAVIERES",54189,"COMMUNAUTE DE COMMUNES ORNE LORRAINE CONFLUENCES",10]
[null,null,null,null,null,null,"FECOCOURT",54190,"COMMUNAUTE DE COMMUNES ORNE LORRAINE CONFLUENCES",10]
[null,null,null,null,null,null,"FENNEVILLER",54191,"COMMUNAUTE DE COMMUNES ORNE LORRAINE CONFLUENCES",6]
[null,null,null,null,null,null,"FERRIERES",54192,"COMMUNAUTE DE COMMUNES ORNE LORRAINE CONFLUENCES",13]
[null,null,null,null,null,null,"FEY-EN-HAYE",54193,"COMMUNAUTE DE COMMUNES ORNE LORRAINE CONFLUENCES",3]
[null,null,null,null,null,null,"FILLIERES",54194,"COMMUNAUTE DE COMMUNES ORNE LORRAINE CONFLUENCES",1]
[null,null,null,null,null,null,"FLAINVAL",54195,"COMMUNAUTE DE COMMUNES ORNE LORRAINE CONFLUENCES",12]
[null,null,null,null,null,null,"FLAVIGNY-SUR-MOSELLE",54196,"COMMUNAUTE DE COMMUNES ORNE LORRAINE CONFLUENCES",4]
[null,null,null,null,null,null,"FLEVILLE-DEVANT-NANCY",54197,"COMMUNAUTE DE COMMUNES ORNE LORRAINE CONFLUENCES",21]
[null,null,null,null,null,null,"FLEVILLE-LIXIERES",54198,"COMMUNAUTE DE COMMUNES ORNE LORRAINE CONFLUENCES",17]
[null,null,null,null,null,null,"FLIN",54199,"COMMUNAUTE DE COMMUNES ORNE LORRAINE CONFLUENCES",15]
[null,null,null,null,null,null,"FLIREY",54200,"COMMUNAUTE DE COMMUNES ORNE LORRAINE CONFLUENCES",3]
[null,null,null,null,null,null,"FONTENOY-LA-JOUTE",54201,"COMMUNAUTE DE COMMUNES ORNE LORRAINE CONFLUENCES",15]
[null,null,null,null,null,null,"FONTENOY-SUR-MOSELLE",54202,"COMMUNAUTE DE COMMUNES ORNE LORRAINE CONFLUENCES",19]
[null,null,null,null,null,null,"FORCELLES-SAINT-GORGON",54203,"COMMUNAUTE DE COMMUNES ORNE LORRAINE CONFLUENCES",11]
[null,null,null,null,null,null,"FORCELLES-SOUS-GUGNEY",54204,"COMMUNAUTE DE COMMUNES ORNE LORRAINE CONFLUENCES",11]
[null,null,null,null,null,null,"FOUG",54205,"COMMUNAUTE DE COMMUNES ORNE LORRAINE CONFLUENCES",19]
[null,null,null,null,null,null,"FRAIMBOIS",54206,"COMMUNAUTE DE COMMUNES ORNE LORRAINE CONFLUENCES",15]
[null,null,null,null,null,null,"FRAISNES-EN-SAINTOIS",54207,"COMMUNAUTE DE COMMUNES ORNE LORRAINE CONFLUENCES",11]
[null,null,null,null,null,null,"FRANCHEVILLE",54208,"COMMUNAUTE DE COMMUNES ORNE LORRAINE CONFLUENCES",19]
[null,null,null,null,null,null,"FRANCONVILLE",54209,"COMMUNAUTE DE COMMUNES ORNE LORRAINE CONFLUENCES",15]
[null,null,null,null,null,null,"FREMENIL",54210,"COMMUNAUTE DE COMMUNES ORNE LORRAINE CONFLUENCES",6]
[null,null,null,null,null,null,"FREMONVILLE",54211,"COMMUNAUTE DE COMMUNES ORNE LORRAINE CONFLUENCES",6]
[null,null,null,null,null,null,"FRESNOIS-LA-MONTAGNE",54212,"COMMUNAUTE DE COMMUNES ORNE LORRAINE CONFLUENCES",18]
[null,null,null,null,null,null,"FRIAUVILLE",54213,"COMMUNAUTE DE COMMUNES ORNE LORRAINE CONFLUENCES",17]
[null,null,null,null,null,null,"FROLOIS",54214,"COMMUNAUTE DE COMMUNES ORNE LORRAINE CONFLUENCES",4]
[null,null,null,null,null,null,"FROUARD",54215,"COMMUNAUTE DE COMMUNES ORNE LORRAINE CONFLUENCES",7]
[null,null,null,null,null,null,"FROVILLE",54216,"COMMUNAUTE DE COMMUNES ORNE LORRAINE CONFLUENCES",16]
[null,null,null,null,null,null,"GELACOURT",54217,"COMMUNAUTE DE COMMUNES ORNE LORRAINE CONFLUENCES",15]
[null,null,null,null,null,null,"GELAUCOURT",54218,"COMMUNAUTE DE COMMUNES ORNE LORRAINE CONFLUENCES",10]
[null,null,null,null,null,null,"GELLENONCOURT",54219,"COMMUNAUTE DE COMMUNES ORNE LORRAINE CONFLUENCES",5]
[null,null,null,null,null,null,"GEMONVILLE",54220,"COMMUNAUTE DE COMMUNES ORNE LORRAINE CONFLUENCES",10]
[null,null,null,null,null,null,"GERBECOURT-ET-HAPLEMONT",54221,"COMMUNAUTE DE COMMUNES ORNE LORRAINE CONFLUENCES",11]
[null,null,null,null,null,null,"GERBEVILLER",54222,"COMMUNAUTE DE COMMUNES ORNE LORRAINE CONFLUENCES",16]
[null,null,null,null,null,null,"GERMINY",54223,"COMMUNAUTE DE COMMUNES ORNE LORRAINE CONFLUENCES",10]
[null,null,null,null,null,null,"GERMONVILLE",54224,"COMMUNAUTE DE COMMUNES ORNE LORRAINE CONFLUENCES",11]
[null,null,null,null,null,null,"GEZONCOURT",54225,"COMMUNAUTE DE COMMUNES ORNE LORRAINE CONFLUENCES",8]
[null,null,null,null,null,null,"GIBEAUMEIX",54226,"COMMUNAUTE DE COMMUNES ORNE LORRAINE CONFLUENCES",10]
[null,null,null,null,null,null,"GIRAUMONT",54227,"COMMUNAUTE DE COMMUNES ORNE LORRAINE CONFLUENCES",17]
[null,null,null,null,null,null,"GIRIVILLER",54228,"COMMUNAUTE DE COMMUNES ORNE LORRAINE CONFLUENCES",16]
[null,null,null,null,null,null,"GLONVILLE",54229,"COMMUNAUTE DE COMMUNES ORNE LORRAINE CONFLUENCES",15]
[null,null,null,null,null,null,"GOGNEY",54230,"COMMUNAUTE DE COMMUNES ORNE LORRAINE CONFLUENCES",6]
[null,null,null,null,null,null,"GONDRECOURT-AIX",54231,"COMMUNAUTE DE COMMUNES ORNE LORRAINE CONFLUENCES",17]
[null,null,null,null,null,null,"GONDREVILLE",54232,"COMMUNAUTE DE COMMUNES ORNE LORRAINE CONFLUENCES",19]
[null,null,null,null,null,null,"GONDREXON",54233,"COMMUNAUTE DE COMMUNES ORNE LORRAINE CONFLUENCES",6]
[null,null,null,null,null,null,"GORCY",54234,"COMMUNAUTE DE COMMUNES ORNE LORRAINE CONFLUENCES",1]
[null,null,null,null,null,null,"GOVILLER",54235,"COMMUNAUTE DE COMMUNES ORNE LORRAINE CONFLUENCES",11]
[null,null,null,null,null,null,"GRAND-FAILLY",54236,"COMMUNAUTE DE COMMUNES ORNE LORRAINE CONFLUENCES",18]
[null,null,null,null,null,null,"GRIMONVILLER",54237,"COMMUNAUTE DE COMMUNES ORNE LORRAINE CONFLUENCES",10]
[null,null,null,null,null,null,"GRIPPORT",54238,"COMMUNAUTE DE COMMUNES ORNE LORRAINE CONFLUENCES",11]
[null,null,null,null,null,null,"GRISCOURT",54239,"COMMUNAUTE DE COMMUNES ORNE LORRAINE CONFLUENCES",8]
[null,null,null,null,null,null,"GROSROUVRES",54240,"COMMUNAUTE DE COMMUNES ORNE LORRAINE CONFLUENCES",19]
[null,null,null,null,null,null,"GUGNEY",54241,"COMMUNAUTE DE COMMUNES ORNE LORRAINE CONFLUENCES",11]
[null,null,null,null,null,null,"GYE",54242,"COMMUNAUTE DE COMMUNES ORNE LORRAINE CONFLUENCES",19]
[null,null,null,null,null,null,"HABLAINVILLE",54243,"COMMUNAUTE DE COMMUNES ORNE LORRAINE CONFLUENCES",15]
[null,null,null,null,null,null,"HAGEVILLE",54244,"COMMUNAUTE DE COMMUNES ORNE LORRAINE CONFLUENCES",3]
[null,null,null,null,null,null,"HAIGNEVILLE",54245,"COMMUNAUTE DE COMMUNES ORNE LORRAINE CONFLUENCES",16]
[null,null,null,null,null,null,"HALLOVILLE",54246,"COMMUNAUTE DE COMMUNES ORNE LORRAINE CONFLUENCES",6]
[null,null,null,null,null,null,"HAMMEVILLE",54247,"COMMUNAUTE DE COMMUNES ORNE LORRAINE CONFLUENCES",11]
[null,null,null,null,null,null,"HAMONVILLE",54248,"COMMUNAUTE DE COMMUNES ORNE LORRAINE CONFLUENCES",3]
[null,null,null,null,null,null,"HAN-DEVANT-PIERREPONT",54602,"COMMUNAUTE DE COMMUNES ORNE LORRAINE CONFLUENCES",18]
[null,null,null,null,null,null,"HANNONVILLE-SUZEMONT",54249,"COMMUNAUTE DE COMMUNES ORNE LORRAINE CONFLUENCES",3]
[null,null,null,null,null,null,"HARAUCOURT",54250,"COMMUNAUTE DE COMMUNES ORNE LORRAINE CONFLUENCES",5]
[null,null,null,null,null,null,"HARBOUEY",54251,"COMMUNAUTE DE COMMUNES ORNE LORRAINE CONFLUENCES",6]
[null,null,null,null,null,null,"HAROUE",54252,"COMMUNAUTE DE COMMUNES ORNE LORRAINE CONFLUENCES",11]
[null,null,null,null,null,null,"HATRIZE",54253,"COMMUNAUTE DE COMMUNES ORNE LORRAINE CONFLUENCES",17]
[null,null,null,null,null,null,"HAUCOURT-MOULAINE",54254,"COMMUNAUTE DE COMMUNES ORNE LORRAINE CONFLUENCES",1]
[null,null,null,null,null,null,"HAUDONVILLE",54255,"COMMUNAUTE DE COMMUNES ORNE LORRAINE CONFLUENCES",15]
[null,null,null,null,null,null,"HAUSSONVILLE",54256,"COMMUNAUTE DE COMMUNES ORNE LORRAINE CONFLUENCES",16]
[null,null,null,null,null,null,"HEILLECOURT",54257,"COMMUNAUTE DE COMMUNES ORNE LORRAINE CONFLUENCES",21]
[null,null,null,null,null,null,"HENAMENIL",54258,"COMMUNAUTE DE COMMUNES ORNE LORRAINE CONFLUENCES",12]
[null,null,null,null,null,null,"HERBEVILLER",54259,"COMMUNAUTE DE COMMUNES ORNE LORRAINE CONFLUENCES",6]
[null,null,null,null,null,null,"HERIMENIL",54260,"COMMUNAUTE DE COMMUNES ORNE LORRAINE CONFLUENCES",15]
[null,null,null,null,null,null,"HERSERANGE",54261,"COMMUNAUTE DE COMMUNES ORNE LORRAINE CONFLUENCES",1]
[null,null,null,null,null,null,"HOEVILLE",54262,"COMMUNAUTE DE COMMUNES ORNE LORRAINE CONFLUENCES",12]
[null,null,null,null,null,null,"HOMECOURT",54263,"COMMUNAUTE DE COMMUNES ORNE LORRAINE CONFLUENCES",17]
[null,null,null,null,null,null,"HOUDELMONT",54264,"COMMUNAUTE DE COMMUNES ORNE LORRAINE CONFLUENCES",11]
[null,null,null,null,null,null,"HOUDEMONT",54265,"COMMUNAUTE DE COMMUNES ORNE LORRAINE CONFLUENCES",21]
[null,null,null,null,null,null,"HOUDREVILLE",54266,"COMMUNAUTE DE COMMUNES ORNE LORRAINE CONFLUENCES",11]
[null,null,null,null,null,null,"HOUSSEVILLE",54268,"COMMUNAUTE DE COMMUNES ORNE LORRAINE CONFLUENCES",11]
[null,null,null,null,null,null,"HUDIVILLER",54269,"COMMUNAUTE DE COMMUNES ORNE LORRAINE CONFLUENCES",13]
[null,null,null,null,null,null,"HUSSIGNY-GODBRANGE",54270,"COMMUNAUTE DE COMMUNES ORNE LORRAINE CONFLUENCES",1]
[null,null,null,null,null,null,"IGNEY",54271,"COMMUNAUTE DE COMMUNES ORNE LORRAINE CONFLUENCES",6]
[null,null,null,null,null,null,"JAILLON",54272,"COMMUNAUTE DE COMMUNES ORNE LORRAINE CONFLUENCES",19]
[null,null,null,null,null,null,"JARNY",54273,"COMMUNAUTE DE COMMUNES ORNE LORRAINE CONFLUENCES",17]
[null,null,null,null,null,null,"JARVILLE-LA-MALGRANGE",54274,"COMMUNAUTE DE COMMUNES ORNE LORRAINE CONFLUENCES",21]
[null,null,null,null,null,null,"JAULNY",54275,"COMMUNAUTE DE COMMUNES ORNE LORRAINE CONFLUENCES",3]
[null,null,null,null,null,null,"JEANDELAINCOURT",54276,"COMMUNAUTE DE COMMUNES ORNE LORRAINE CONFLUENCES",5]
[null,null,null,null,null,null,"JEANDELIZE",54277,"COMMUNAUTE DE COMMUNES ORNE LORRAINE CONFLUENCES",17]
[null,null,null,null,null,null,"JEVONCOURT",54278,"COMMUNAUTE DE COMMUNES ORNE LORRAINE CONFLUENCES",11]
[null,null,null,null,null,null,"JEZAINVILLE",54279,"COMMUNAUTE DE COMMUNES ORNE LORRAINE CONFLUENCES",8]
[null,null,null,null,null,null,"JOEUF",54280,"COMMUNAUTE DE COMMUNES ORNE LORRAINE CONFLUENCES",17]
[null,null,null,null,null,null,"JOLIVET",54281,"COMMUNAUTE DE COMMUNES ORNE LORRAINE CONFLUENCES",15]
[null,null,null,null,null,null,"JOPPECOURT",54282,"COMMUNAUTE DE COMMUNES ORNE LORRAINE CONFLUENCES",9]
[null,null,null,null,null,null,"JOUAVILLE",54283,"COMMUNAUTE DE COMMUNES ORNE LORRAINE CONFLUENCES",17]
[null,null,null,null,null,null,"JOUDREVILLE",54284,"COMMUNAUTE DE COMMUNES ORNE LORRAINE CONFLUENCES",9]
[null,null,null,null,null,null,"JUVRECOURT",54285,"COMMUNAUTE DE COMMUNES ORNE LORRAINE CONFLUENCES",12]
[null,null,null,null,null,null,"LABRY",54286,"COMMUNAUTE DE COMMUNES ORNE LORRAINE CONFLUENCES",17]
[null,null,null,null,null,null,"LACHAPELLE",54287,"COMMUNAUTE DE COMMUNES ORNE LORRAINE CONFLUENCES",15]
[null,null,null,null,null,null,"LAGNEY",54288,"COMMUNAUTE DE COMMUNES ORNE LORRAINE CONFLUENCES",19]
[null,null,null,null,null,null,"LAITRE-SOUS-AMANCE",54289,"COMMUNAUTE DE COMMUNES ORNE LORRAINE CONFLUENCES",5]
[null,null,null,null,null,null,"LAIX",54290,"COMMUNAUTE DE COMMUNES ORNE LORRAINE CONFLUENCES",1]
[null,null,null,null,null,null,"LALOEUF",54291,"COMMUNAUTE DE COMMUNES ORNE LORRAINE CONFLUENCES",11]
[null,null,null,null,null,null,"LAMATH",54292,"COMMUNAUTE DE COMMUNES ORNE LORRAINE CONFLUENCES",15]
[null,null,null,null,null,null,"LANDECOURT",54293,"COMMUNAUTE DE COMMUNES ORNE LORRAINE CONFLUENCES",16]
[null,null,null,null,null,null,"LANDREMONT",54294,"COMMUNAUTE DE COMMUNES ORNE LORRAINE CONFLUENCES",8]
[null,null,null,null,null,null,"LANDRES",54295,"COMMUNAUTE DE COMMUNES ORNE LORRAINE CONFLUENCES",9]
[null,null,null,null,null,null,"LANEUVELOTTE",54296,"COMMUNAUTE DE COMMUNES ORNE LORRAINE CONFLUENCES",5]
[null,null,null,null,null,null,"LANEUVEVILLE-AUX-BOIS",54297,"COMMUNAUTE DE COMMUNES ORNE LORRAINE CONFLUENCES",15]
[null,null,null,null,null,null,"LANEUVEVILLE-DERRIERE-FOUG",54298,"COMMUNAUTE DE COMMUNES ORNE LORRAINE CONFLUENCES",19]
[null,null,null,null,null,null,"LANEUVEVILLE-DEVANT-BAYON",54299,"COMMUNAUTE DE COMMUNES ORNE LORRAINE CONFLUENCES",11]
[null,null,null,null,null,null,"LANEUVEVILLE-DEVANT-NANCY",54300,"COMMUNAUTE DE COMMUNES ORNE LORRAINE CONFLUENCES",21]
[null,null,null,null,null,null,"LANFROICOURT",54301,"COMMUNAUTE DE COMMUNES ORNE LORRAINE CONFLUENCES",5]
[null,null,null,null,null,null,"LANTEFONTAINE",54302,"COMMUNAUTE DE COMMUNES ORNE LORRAINE CONFLUENCES",17]
[null,null,null,null,null,null,"LARONXE",54303,"COMMUNAUTE DE COMMUNES ORNE LORRAINE CONFLUENCES",15]
[null,null,null,null,null,null,"LAXOU",54304,"COMMUNAUTE DE COMMUNES ORNE LORRAINE CONFLUENCES",21]
[null,null,null,null,null,null,"LAY-SAINT-CHRISTOPHE",54305,"COMMUNAUTE DE COMMUNES ORNE LORRAINE CONFLUENCES",7]
[null,null,null,null,null,null,"LAY-SAINT-REMY",54306,"COMMUNAUTE DE COMMUNES ORNE LORRAINE CONFLUENCES",19]
[null,null,null,null,null,null,"LEBEUVILLE",54307,"COMMUNAUTE DE COMMUNES ORNE LORRAINE CONFLUENCES",11]
[null,null,null,null,null,null,"LEINTREY",54308,"COMMUNAUTE DE COMMUNES ORNE LORRAINE CONFLUENCES",6]
[null,null,null,null,null,null,"LEMAINVILLE",54309,"COMMUNAUTE DE COMMUNES ORNE LORRAINE CONFLUENCES",11]
[null,null,null,null,null,null,"LEMENIL-MITRY",54310,"COMMUNAUTE DE COMMUNES ORNE LORRAINE CONFLUENCES",11]
[null,null,null,null,null,null,"LENONCOURT",54311,"COMMUNAUTE DE COMMUNES ORNE LORRAINE CONFLUENCES",5]
[null,null,null,null,null,null,"LES-BAROCHES",54048,"COMMUNAUTE DE COMMUNES ORNE LORRAINE CONFLUENCES",17]
[null,null,null,null,null,null,"LESMENILS",54312,"COMMUNAUTE DE COMMUNES ORNE LORRAINE CONFLUENCES",8]
[null,null,null,null,null,null,"LETRICOURT",54313,"COMMUNAUTE DE COMMUNES ORNE LORRAINE CONFLUENCES",5]
[null,null,null,null,null,null,"LEXY",54314,"COMMUNAUTE DE COMMUNES ORNE LORRAINE CONFLUENCES",1]
[null,null,null,null,null,null,"LEYR",54315,"COMMUNAUTE DE COMMUNES ORNE LORRAINE CONFLUENCES",5]
[null,null,null,null,null,null,"LIMEY-REMENAUVILLE",54316,"COMMUNAUTE DE COMMUNES ORNE LORRAINE CONFLUENCES",3]
[null,null,null,null,null,null,"LIRONVILLE",54317,"COMMUNAUTE DE COMMUNES ORNE LORRAINE CONFLUENCES",3]
[null,null,null,null,null,null,"LIVERDUN",54318,"COMMUNAUTE DE COMMUNES ORNE LORRAINE CONFLUENCES",7]
[null,null,null,null,null,null,"LOISY",54320,"COMMUNAUTE DE COMMUNES ORNE LORRAINE CONFLUENCES",8]
[null,null,null,null,null,null,"LONGLAVILLE",54321,"COMMUNAUTE DE COMMUNES ORNE LORRAINE CONFLUENCES",1]
[null,null,null,null,null,null,"LONGUYON",54322,"COMMUNAUTE DE COMMUNES ORNE LORRAINE CONFLUENCES",18]
[null,null,null,null,null,null,"LONGWY",54323,"COMMUNAUTE DE COMMUNES ORNE LORRAINE CONFLUENCES",1]
[null,null,null,null,null,null,"LOREY",54324,"COMMUNAUTE DE COMMUNES ORNE LORRAINE CONFLUENCES",16]
[null,null,null,null,null,null,"LOROMONTZEY",54325,"COMMUNAUTE DE COMMUNES ORNE LORRAINE CONFLUENCES",16]
[null,null,null,null,null,null,"LUBEY",54326,"COMMUNAUTE DE COMMUNES ORNE LORRAINE CONFLUENCES",17]
[null,null,null,null,null,null,"LUCEY",54327,"COMMUNAUTE DE COMMUNES ORNE LORRAINE CONFLUENCES",19]
[null,null,null,null,null,null,"LUDRES",54328,"COMMUNAUTE DE COMMUNES ORNE LORRAINE CONFLUENCES",21]
[null,null,null,null,null,null,"LUNEVILLE",54329,"COMMUNAUTE DE COMMUNES ORNE LORRAINE CONFLUENCES",15]
[null,null,null,null,null,null,"LUPCOURT",54330,"COMMUNAUTE DE COMMUNES ORNE LORRAINE CONFLUENCES",13]
[null,null,null,null,null,null,"MAGNIERES",54331,"COMMUNAUTE DE COMMUNES ORNE LORRAINE CONFLUENCES",15]
[null,null,null,null,null,null,"MAIDIERES",54332,"COMMUNAUTE DE COMMUNES ORNE LORRAINE CONFLUENCES",8]
[null,null,null,null,null,null,"MAILLY-SUR-SEILLE",54333,"COMMUNAUTE DE COMMUNES ORNE LORRAINE CONFLUENCES",5]
[null,null,null,null,null,null,"MAIRY-MAINVILLE",54334,"COMMUNAUTE DE COMMUNES ORNE LORRAINE CONFLUENCES",9]
[null,null,null,null,null,null,"MAIXE",54335,"COMMUNAUTE DE COMMUNES ORNE LORRAINE CONFLUENCES",12]
[null,null,null,null,null,null,"MAIZIERES",54336,"COMMUNAUTE DE COMMUNES ORNE LORRAINE CONFLUENCES",4]
[null,null,null,null,null,null,"MALAVILLERS",54337,"COMMUNAUTE DE COMMUNES ORNE LORRAINE CONFLUENCES",9]
[null,null,null,null,null,null,"MALLELOY",54338,"COMMUNAUTE DE COMMUNES ORNE LORRAINE CONFLUENCES",7]
[null,null,null,null,null,null,"MALZEVILLE",54339,"COMMUNAUTE DE COMMUNES ORNE LORRAINE CONFLUENCES",21]
[null,null,null,null,null,null,"MAMEY",54340,"COMMUNAUTE DE COMMUNES ORNE LORRAINE CONFLUENCES",3]
[null,null,null,null,null,null,"MANDRES-AUX-QUATRE-TOURS",54343,"COMMUNAUTE DE COMMUNES ORNE LORRAINE CONFLUENCES",3]
[null,null,null,null,null,null,"MANGONVILLE",54344,"COMMUNAUTE DE COMMUNES ORNE LORRAINE CONFLUENCES",11]
[null,null,null,null,null,null,"MANONCOURT-EN-VERMOIS",54345,"COMMUNAUTE DE COMMUNES ORNE LORRAINE CONFLUENCES",13]
[null,null,null,null,null,null,"MANONCOURT-EN-WOEVRE",54346,"COMMUNAUTE DE COMMUNES ORNE LORRAINE CONFLUENCES",19]
[null,null,null,null,null,null,"MANONVILLE",54348,"COMMUNAUTE DE COMMUNES ORNE LORRAINE CONFLUENCES",19]
[null,null,null,null,null,null,"MANONVILLER",54349,"COMMUNAUTE DE COMMUNES ORNE LORRAINE CONFLUENCES",15]
[null,null,null,null,null,null,"MARAINVILLER",54350,"COMMUNAUTE DE COMMUNES ORNE LORRAINE CONFLUENCES",15]
[null,null,null,null,null,null,"MARBACHE",54351,"COMMUNAUTE DE COMMUNES ORNE LORRAINE CONFLUENCES",7]
[null,null,null,null,null,null,"MARON",54352,"COMMUNAUTE DE COMMUNES ORNE LORRAINE CONFLUENCES",4]
[null,null,null,null,null,null,"MARS-LA-TOUR",54353,"COMMUNAUTE DE COMMUNES ORNE LORRAINE CONFLUENCES",3]
[null,null,null,null,null,null,"MARTHEMONT",54354,"COMMUNAUTE DE COMMUNES ORNE LORRAINE CONFLUENCES",4]
[null,null,null,null,null,null,"MARTINCOURT",54355,"COMMUNAUTE DE COMMUNES ORNE LORRAINE CONFLUENCES",8]
[null,null,null,null,null,null,"MATTEXEY",54356,"COMMUNAUTE DE COMMUNES ORNE LORRAINE CONFLUENCES",16]
[null,null,null,null,null,null,"MAXEVILLE",54357,"COMMUNAUTE DE COMMUNES ORNE LORRAINE CONFLUENCES",21]
[null,null,null,null,null,null,"MAZERULLES",54358,"COMMUNAUTE DE COMMUNES ORNE LORRAINE CONFLUENCES",5]
[null,null,null,null,null,null,"MEHONCOURT",54359,"COMMUNAUTE DE COMMUNES ORNE LORRAINE CONFLUENCES",16]
[null,null,null,null,null,null,"MENIL-LA-TOUR",54360,"COMMUNAUTE DE COMMUNES ORNE LORRAINE CONFLUENCES",19]
[null,null,null,null,null,null,"MERCY-LE-BAS",54362,"COMMUNAUTE DE COMMUNES ORNE LORRAINE CONFLUENCES",9]
[null,null,null,null,null,null,"MERCY-LE-HAUT",54363,"COMMUNAUTE DE COMMUNES ORNE LORRAINE CONFLUENCES",9]
[null,null,null,null,null,null,"MEREVILLE",54364,"COMMUNAUTE DE COMMUNES ORNE LORRAINE CONFLUENCES",4]
[null,null,null,null,null,null,"MERVILLER",54365,"COMMUNAUTE DE COMMUNES ORNE LORRAINE CONFLUENCES",15]
[null,null,null,null,null,null,"MESSEIN",54366,"COMMUNAUTE DE COMMUNES ORNE LORRAINE CONFLUENCES",4]
[null,null,null,null,null,null,"MEXY",54367,"COMMUNAUTE DE COMMUNES ORNE LORRAINE CONFLUENCES",1]
[null,null,null,null,null,null,"MIGNEVILLE",54368,"COMMUNAUTE DE COMMUNES ORNE LORRAINE CONFLUENCES",6]
[null,null,null,null,null,null,"MILLERY",54369,"COMMUNAUTE DE COMMUNES ORNE LORRAINE CONFLUENCES",7]
[null,null,null,null,null,null,"MINORVILLE",54370,"COMMUNAUTE DE COMMUNES ORNE LORRAINE CONFLUENCES",19]
[null,null,null,null,null,null,"MOINEVILLE",54371,"COMMUNAUTE DE COMMUNES ORNE LORRAINE CONFLUENCES",17]
[null,null,null,null,null,null,"MOIVRONS",54372,"COMMUNAUTE DE COMMUNES ORNE LORRAINE CONFLUENCES",5]
[null,null,null,null,null,null,"MONCEL-LES-LUNEVILLE",54373,"COMMUNAUTE DE COMMUNES ORNE LORRAINE CONFLUENCES",15]
[null,null,null,null,null,null,"MONCEL-SUR-SEILLE",54374,"COMMUNAUTE DE COMMUNES ORNE LORRAINE CONFLUENCES",5]
[null,null,null,null,null,null,"MONTAUVILLE",54375,"COMMUNAUTE DE COMMUNES ORNE LORRAINE CONFLUENCES",8]
[null,null,null,null,null,null,"MONT-BONVILLERS",54084,"COMMUNAUTE DE COMMUNES ORNE LORRAINE CONFLUENCES",9]
[null,null,null,null,null,null,"MONTENOY",54376,"COMMUNAUTE DE COMMUNES ORNE LORRAINE CONFLUENCES",7]
[null,null,null,null,null,null,"MONTIGNY",54377,"COMMUNAUTE DE COMMUNES ORNE LORRAINE CONFLUENCES",6]
[null,null,null,null,null,null,"MONTIGNY-SUR-CHIERS",54378,"COMMUNAUTE DE COMMUNES ORNE LORRAINE CONFLUENCES",18]
[null,null,null,null,null,null,"MONT-L'ETROIT",54379,"COMMUNAUTE DE COMMUNES ORNE LORRAINE CONFLUENCES",10]
[null,null,null,null,null,null,"MONT-LE-VIGNOBLE",54380,"COMMUNAUTE DE COMMUNES ORNE LORRAINE CONFLUENCES",10]
[null,null,null,null,null,null,"MONTREUX",54381,"COMMUNAUTE DE COMMUNES ORNE LORRAINE CONFLUENCES",6]
[null,null,null,null,null,null,"MONT-SAINT-MARTIN",54382,"COMMUNAUTE DE COMMUNES ORNE LORRAINE CONFLUENCES",1]
[null,null,null,null,null,null,"MONT-SUR-MEURTHE",54383,"COMMUNAUTE DE COMMUNES ORNE LORRAINE CONFLUENCES",16]
[null,null,null,null,null,null,"MORFONTAINE",54385,"COMMUNAUTE DE COMMUNES ORNE LORRAINE CONFLUENCES",1]
[null,null,null,null,null,null,"MORIVILLER",54386,"COMMUNAUTE DE COMMUNES ORNE LORRAINE CONFLUENCES",16]
[null,null,null,null,null,null,"MORVILLE-SUR-SEILLE",54387,"COMMUNAUTE DE COMMUNES ORNE LORRAINE CONFLUENCES",8]
[null,null,null,null,null,null,"MOUACOURT",54388,"COMMUNAUTE DE COMMUNES ORNE LORRAINE CONFLUENCES",12]
[null,null,null,null,null,null,"MOUAVILLE",54389,"COMMUNAUTE DE COMMUNES ORNE LORRAINE CONFLUENCES",17]
[null,null,null,null,null,null,"MOUSSON",54390,"COMMUNAUTE DE COMMUNES ORNE LORRAINE CONFLUENCES",8]
[null,null,null,null,null,null,"MOUTIERS",54391,"COMMUNAUTE DE COMMUNES ORNE LORRAINE CONFLUENCES",17]
[null,null,null,null,null,null,"MOUTROT",54392,"COMMUNAUTE DE COMMUNES ORNE LORRAINE CONFLUENCES",10]
[null,null,null,null,null,null,"MOYEN",54393,"COMMUNAUTE DE COMMUNES ORNE LORRAINE CONFLUENCES",15]
[null,null,null,null,null,null,"MURVILLE",54394,"COMMUNAUTE DE COMMUNES ORNE LORRAINE CONFLUENCES",9]
[null,null,null,null,null,null,"NANCY",54395,"COMMUNAUTE DE COMMUNES ORNE LORRAINE CONFLUENCES",21]
[null,null,null,null,null,null,"NEUFMAISONS",54396,"COMMUNAUTE DE COMMUNES ORNE LORRAINE CONFLUENCES",6]
[null,null,null,null,null,null,"NEUVES-MAISONS",54397,"COMMUNAUTE DE COMMUNES ORNE LORRAINE CONFLUENCES",4]
[null,null,null,null,null,null,"NEUVILLER-LES-BADONVILLER",54398,"COMMUNAUTE DE COMMUNES ORNE LORRAINE CONFLUENCES",6]
[null,null,null,null,null,null,"NEUVILLER-SUR-MOSELLE",54399,"COMMUNAUTE DE COMMUNES ORNE LORRAINE CONFLUENCES",11]
[null,null,null,null,null,null,"NOMENY",54400,"COMMUNAUTE DE COMMUNES ORNE LORRAINE CONFLUENCES",5]
[null,null,null,null,null,null,"NONHIGNY",54401,"COMMUNAUTE DE COMMUNES ORNE LORRAINE CONFLUENCES",6]
[null,null,null,null,null,null,"NORROY-LE-SEC",54402,"COMMUNAUTE DE COMMUNES ORNE LORRAINE CONFLUENCES",17]
[null,null,null,null,null,null,"NORROY-LES-PONT-A-MOUSSON",54403,"COMMUNAUTE DE COMMUNES ORNE LORRAINE CONFLUENCES",8]
[null,null,null,null,null,null,"NOVIANT-AUX-PRES",54404,"COMMUNAUTE DE COMMUNES ORNE LORRAINE CONFLUENCES",19]
[null,null,null,null,null,null,"OCHEY",54405,"COMMUNAUTE DE COMMUNES ORNE LORRAINE CONFLUENCES",10]
[null,null,null,null,null,null,"OGEVILLER",54406,"COMMUNAUTE DE COMMUNES ORNE LORRAINE CONFLUENCES",6]
[null,null,null,null,null,null,"OGNEVILLE",54407,"COMMUNAUTE DE COMMUNES ORNE LORRAINE CONFLUENCES",11]
[null,null,null,null,null,null,"OLLEY",54408,"COMMUNAUTE DE COMMUNES ORNE LORRAINE CONFLUENCES",17]
[null,null,null,null,null,null,"OMELMONT",54409,"COMMUNAUTE DE COMMUNES ORNE LORRAINE CONFLUENCES",11]
[null,null,null,null,null,null,"ONVILLE",54410,"COMMUNAUTE DE COMMUNES ORNE LORRAINE CONFLUENCES",3]
[null,null,null,null,null,null,"ORMES-ET-VILLE",54411,"COMMUNAUTE DE COMMUNES ORNE LORRAINE CONFLUENCES",11]
[null,null,null,null,null,null,"OTHE",54412,"COMMUNAUTE DE COMMUNES ORNE LORRAINE CONFLUENCES",18]
[null,null,null,null,null,null,"OZERAILLES",54413,"COMMUNAUTE DE COMMUNES ORNE LORRAINE CONFLUENCES",17]
[null,null,null,null,null,null,"PAGNEY-DERRIERE-BARINE",54414,"COMMUNAUTE DE COMMUNES ORNE LORRAINE CONFLUENCES",19]
[null,null,null,null,null,null,"PAGNY-SUR-MOSELLE",54415,"COMMUNAUTE DE COMMUNES ORNE LORRAINE CONFLUENCES",8]
[null,null,null,null,null,null,"PANNES",54416,"COMMUNAUTE DE COMMUNES ORNE LORRAINE CONFLUENCES",3]
[null,null,null,null,null,null,"PAREY-SAINT-CESAIRE",54417,"COMMUNAUTE DE COMMUNES ORNE LORRAINE CONFLUENCES",11]
[null,null,null,null,null,null,"PARROY",54418,"COMMUNAUTE DE COMMUNES ORNE LORRAINE CONFLUENCES",12]
[null,null,null,null,null,null,"PARUX",54419,"COMMUNAUTE DE COMMUNES ORNE LORRAINE CONFLUENCES",6]
[null,null,null,null,null,null,"PETIT-FAILLY",54420,"COMMUNAUTE DE COMMUNES ORNE LORRAINE CONFLUENCES",18]
[null,null,null,null,null,null,"PETITMONT",54421,"COMMUNAUTE DE COMMUNES ORNE LORRAINE CONFLUENCES",6]
[null,null,null,null,null,null,"PETTONVILLE",54422,"COMMUNAUTE DE COMMUNES ORNE LORRAINE CONFLUENCES",15]
[null,null,null,null,null,null,"PEXONNE",54423,"COMMUNAUTE DE COMMUNES ORNE LORRAINE CONFLUENCES",6]
[null,null,null,null,null,null,"PHLIN",54424,"COMMUNAUTE DE COMMUNES ORNE LORRAINE CONFLUENCES",5]
[null,null,null,null,null,null,"PIENNES",54425,"COMMUNAUTE DE COMMUNES ORNE LORRAINE CONFLUENCES",9]
[null,null,null,null,null,null,"PIERRE-LA-TREICHE",54426,"COMMUNAUTE DE COMMUNES ORNE LORRAINE CONFLUENCES",19]
[null,null,null,null,null,null,"PIERRE-PERCEE",54427,"COMMUNAUTE DE COMMUNES ORNE LORRAINE CONFLUENCES",2]
[null,null,null,null,null,null,"PIERREPONT",54428,"COMMUNAUTE DE COMMUNES ORNE LORRAINE CONFLUENCES",18]
[null,null,null,null,null,null,"PIERREVILLE",54429,"COMMUNAUTE DE COMMUNES ORNE LORRAINE CONFLUENCES",4]
[null,null,null,null,null,null,"POMPEY",54430,"COMMUNAUTE DE COMMUNES ORNE LORRAINE CONFLUENCES",7]
[null,null,null,null,null,null,"PONT-A-MOUSSON",54431,"COMMUNAUTE DE COMMUNES ORNE LORRAINE CONFLUENCES",8]
[null,null,null,null,null,null,"PONT-SAINT-VINCENT",54432,"COMMUNAUTE DE COMMUNES ORNE LORRAINE CONFLUENCES",4]
[null,null,null,null,null,null,"PORT-SUR-SEILLE",54433,"COMMUNAUTE DE COMMUNES ORNE LORRAINE CONFLUENCES",8]
[null,null,null,null,null,null,"PRAYE",54434,"COMMUNAUTE DE COMMUNES ORNE LORRAINE CONFLUENCES",11]
[null,null,null,null,null,null,"PRENY",54435,"COMMUNAUTE DE COMMUNES ORNE LORRAINE CONFLUENCES",3]
[null,null,null,null,null,null,"PREUTIN-HIGNY",54436,"COMMUNAUTE DE COMMUNES ORNE LORRAINE CONFLUENCES",9]
[null,null,null,null,null,null,"PULLIGNY",54437,"COMMUNAUTE DE COMMUNES ORNE LORRAINE CONFLUENCES",4]
[null,null,null,null,null,null,"PULNEY",54438,"COMMUNAUTE DE COMMUNES ORNE LORRAINE CONFLUENCES",10]
[null,null,null,null,null,null,"PULNOY",54439,"COMMUNAUTE DE COMMUNES ORNE LORRAINE CONFLUENCES",21]
[null,null,null,null,null,null,"PUXE",54440,"COMMUNAUTE DE COMMUNES ORNE LORRAINE CONFLUENCES",17]
[null,null,null,null,null,null,"PUXIEUX",54441,"COMMUNAUTE DE COMMUNES ORNE LORRAINE CONFLUENCES",3]
[null,null,null,null,null,null,"QUEVILLONCOURT",54442,"COMMUNAUTE DE COMMUNES ORNE LORRAINE CONFLUENCES",11]
[null,null,null,null,null,null,"RAON-LES-LEAU",54443,"COMMUNAUTE DE COMMUNES ORNE LORRAINE CONFLUENCES",2]
[null,null,null,null,null,null,"RAUCOURT",54444,"COMMUNAUTE DE COMMUNES ORNE LORRAINE CONFLUENCES",5]
[null,null,null,null,null,null,"RAVILLE-SUR-SANON",54445,"COMMUNAUTE DE COMMUNES ORNE LORRAINE CONFLUENCES",12]
[null,null,null,null,null,null,"RECHICOURT-LA-PETITE",54446,"COMMUNAUTE DE COMMUNES ORNE LORRAINE CONFLUENCES",12]
[null,null,null,null,null,null,"RECLONVILLE",54447,"COMMUNAUTE DE COMMUNES ORNE LORRAINE CONFLUENCES",6]
[null,null,null,null,null,null,"REHAINVILLER",54449,"COMMUNAUTE DE COMMUNES ORNE LORRAINE CONFLUENCES",15]
[null,null,null,null,null,null,"REHERREY",54450,"COMMUNAUTE DE COMMUNES ORNE LORRAINE CONFLUENCES",15]
[null,null,null,null,null,null,"REHON",54451,"COMMUNAUTE DE COMMUNES ORNE LORRAINE CONFLUENCES",1]
[null,null,null,null,null,null,"REILLON",54452,"COMMUNAUTE DE COMMUNES ORNE LORRAINE CONFLUENCES",6]
[null,null,null,null,null,null,"REMBERCOURT-SUR-MAD",54453,"COMMUNAUTE DE COMMUNES ORNE LORRAINE CONFLUENCES",3]
[null,null,null,null,null,null,"REMENOVILLE",54455,"COMMUNAUTE DE COMMUNES ORNE LORRAINE CONFLUENCES",16]
[null,null,null,null,null,null,"REMEREVILLE",54456,"COMMUNAUTE DE COMMUNES ORNE LORRAINE CONFLUENCES",5]
[null,null,null,null,null,null,"REMONCOURT",54457,"COMMUNAUTE DE COMMUNES ORNE LORRAINE CONFLUENCES",6]
[null,null,null,null,null,null,"REPAIX",54458,"COMMUNAUTE DE COMMUNES ORNE LORRAINE CONFLUENCES",6]
[null,null,null,null,null,null,"RICHARDMENIL",54459,"COMMUNAUTE DE COMMUNES ORNE LORRAINE CONFLUENCES",4]
[null,null,null,null,null,null,"ROGEVILLE",54460,"COMMUNAUTE DE COMMUNES ORNE LORRAINE CONFLUENCES",8]
[null,null,null,null,null,null,"ROMAIN",54461,"COMMUNAUTE DE COMMUNES ORNE LORRAINE CONFLUENCES",16]
[null,null,null,null,null,null,"ROSIERES-AUX-SALINES",54462,"COMMUNAUTE DE COMMUNES ORNE LORRAINE CONFLUENCES",13]
[null,null,null,null,null,null,"ROSIERES-EN-HAYE",54463,"COMMUNAUTE DE COMMUNES ORNE LORRAINE CONFLUENCES",8]
[null,null,null,null,null,null,"ROUVES",54464,"COMMUNAUTE DE COMMUNES ORNE LORRAINE CONFLUENCES",5]
[null,null,null,null,null,null,"ROVILLE-DEVANT-BAYON",54465,"COMMUNAUTE DE COMMUNES ORNE LORRAINE CONFLUENCES",11]
[null,null,null,null,null,null,"ROYAUMEIX",54466,"COMMUNAUTE DE COMMUNES ORNE LORRAINE CONFLUENCES",19]
[null,null,null,null,null,null,"ROZELIEURES",54467,"COMMUNAUTE DE COMMUNES ORNE LORRAINE CONFLUENCES",16]
[null,null,null,null,null,null,"SAFFAIS",54468,"COMMUNAUTE DE COMMUNES ORNE LORRAINE CONFLUENCES",13]
[null,null,null,null,null,null,"SAINT-AIL",54469,"COMMUNAUTE DE COMMUNES ORNE LORRAINE CONFLUENCES",17]
[null,null,null,null,null,null,"SAINT-BAUSSANT",54470,"COMMUNAUTE DE COMMUNES ORNE LORRAINE CONFLUENCES",3]
[null,null,null,null,null,null,"SAINT-BOINGT",54471,"COMMUNAUTE DE COMMUNES ORNE LORRAINE CONFLUENCES",16]
[null,null,null,null,null,null,"SAINT-CLEMENT",54472,"COMMUNAUTE DE COMMUNES ORNE LORRAINE CONFLUENCES",15]
[null,null,null,null,null,null,"SAINTE-GENEVIEVE",54474,"COMMUNAUTE DE COMMUNES ORNE LORRAINE CONFLUENCES",8]
[null,null,null,null,null,null,"SAINTE-POLE",54484,"COMMUNAUTE DE COMMUNES ORNE LORRAINE CONFLUENCES",6]
[null,null,null,null,null,null,"SAINT-FIRMIN",54473,"COMMUNAUTE DE COMMUNES ORNE LORRAINE CONFLUENCES",11]
[null,null,null,null,null,null,"SAINT-GERMAIN",54475,"COMMUNAUTE DE COMMUNES ORNE LORRAINE CONFLUENCES",16]
[null,null,null,null,null,null,"SAINT-JEAN-LES-LONGUYON",54476,"COMMUNAUTE DE COMMUNES ORNE LORRAINE CONFLUENCES",18]
[null,null,null,null,null,null,"SAINT-JULIEN-LES-GORZE",54477,"COMMUNAUTE DE COMMUNES ORNE LORRAINE CONFLUENCES",3]
[null,null,null,null,null,null,"SAINT-MARCEL",54478,"COMMUNAUTE DE COMMUNES ORNE LORRAINE CONFLUENCES",17]
[null,null,null,null,null,null,"SAINT-MARD",54479,"COMMUNAUTE DE COMMUNES ORNE LORRAINE CONFLUENCES",16]
[null,null,null,null,null,null,"SAINT-MARTIN",54480,"COMMUNAUTE DE COMMUNES ORNE LORRAINE CONFLUENCES",6]
[null,null,null,null,null,null,"SAINT-MAURICE-AUX-FORGES",54481,"COMMUNAUTE DE COMMUNES ORNE LORRAINE CONFLUENCES",6]
[null,null,null,null,null,null,"SAINT-MAX",54482,"COMMUNAUTE DE COMMUNES ORNE LORRAINE CONFLUENCES",21]
[null,null,null,null,null,null,"SAINT-NICOLAS-DE-PORT",54483,"COMMUNAUTE DE COMMUNES ORNE LORRAINE CONFLUENCES",13]
[null,null,null,null,null,null,"SAINT-PANCRE",54485,"COMMUNAUTE DE COMMUNES ORNE LORRAINE CONFLUENCES",18]
[null,null,null,null,null,null,"SAINT-REMIMONT",54486,"COMMUNAUTE DE COMMUNES ORNE LORRAINE CONFLUENCES",11]
[null,null,null,null,null,null,"SAINT-REMY-AUX-BOIS",54487,"COMMUNAUTE DE COMMUNES ORNE LORRAINE CONFLUENCES",16]
[null,null,null,null,null,null,"SAINT-SAUVEUR",54488,"COMMUNAUTE DE COMMUNES ORNE LORRAINE CONFLUENCES",6]
[null,null,null,null,null,null,"SAINT-SUPPLET",54489,"COMMUNAUTE DE COMMUNES ORNE LORRAINE CONFLUENCES",18]
[null,null,null,null,null,null,"SAIZERAIS",54490,"COMMUNAUTE DE COMMUNES ORNE LORRAINE CONFLUENCES",7]
[null,null,null,null,null,null,"SANCY",54491,"COMMUNAUTE DE COMMUNES ORNE LORRAINE CONFLUENCES",9]
[null,null,null,null,null,null,"SANZEY",54492,"COMMUNAUTE DE COMMUNES ORNE LORRAINE CONFLUENCES",19]
[null,null,null,null,null,null,"SAULNES",54493,"COMMUNAUTE DE COMMUNES ORNE LORRAINE CONFLUENCES",1]
[null,null,null,null,null,null,"SAULXEROTTE",54494,"COMMUNAUTE DE COMMUNES ORNE LORRAINE CONFLUENCES",10]
[null,null,null,null,null,null,"SAULXURES-LES-NANCY",54495,"COMMUNAUTE DE COMMUNES ORNE LORRAINE CONFLUENCES",21]
[null,null,null,null,null,null,"SAULXURES-LES-VANNES",54496,"COMMUNAUTE DE COMMUNES ORNE LORRAINE CONFLUENCES",10]
[null,null,null,null,null,null,"SAXON-SION",54497,"COMMUNAUTE DE COMMUNES ORNE LORRAINE CONFLUENCES",11]
[null,null,null,null,null,null,"SEICHAMPS",54498,"COMMUNAUTE DE COMMUNES ORNE LORRAINE CONFLUENCES",21]
[null,null,null,null,null,null,"SEICHEPREY",54499,"COMMUNAUTE DE COMMUNES ORNE LORRAINE CONFLUENCES",3]
[null,null,null,null,null,null,"SELAINCOURT",54500,"COMMUNAUTE DE COMMUNES ORNE LORRAINE CONFLUENCES",10]
[null,null,null,null,null,null,"SERANVILLE",54501,"COMMUNAUTE DE COMMUNES ORNE LORRAINE CONFLUENCES",16]
[null,null,null,null,null,null,"SERRES",54502,"COMMUNAUTE DE COMMUNES ORNE LORRAINE CONFLUENCES",12]
[null,null,null,null,null,null,"SERROUVILLE",54504,"COMMUNAUTE DE COMMUNES ORNE LORRAINE CONFLUENCES",9]
[null,null,null,null,null,null,"SEXEY-AUX-FORGES",54505,"COMMUNAUTE DE COMMUNES ORNE LORRAINE CONFLUENCES",4]
[null,null,null,null,null,null,"SEXEY-LES-BOIS",54506,"COMMUNAUTE DE COMMUNES ORNE LORRAINE CONFLUENCES",19]
[null,null,null,null,null,null,"SIONVILLER",54507,"COMMUNAUTE DE COMMUNES ORNE LORRAINE CONFLUENCES",12]
[null,null,null,null,null,null,"SIVRY",54508,"COMMUNAUTE DE COMMUNES ORNE LORRAINE CONFLUENCES",5]
[null,null,null,null,null,null,"SOMMERVILLER",54509,"COMMUNAUTE DE COMMUNES ORNE LORRAINE CONFLUENCES",13]
[null,null,null,null,null,null,"SORNEVILLE",54510,"COMMUNAUTE DE COMMUNES ORNE LORRAINE CONFLUENCES",5]
[null,null,null,null,null,null,"SPONVILLE",54511,"COMMUNAUTE DE COMMUNES ORNE LORRAINE CONFLUENCES",3]
[null,null,null,null,null,null,"TANCONVILLE",54512,"COMMUNAUTE DE COMMUNES ORNE LORRAINE CONFLUENCES",6]
[null,null,null,null,null,null,"TANTONVILLE",54513,"COMMUNAUTE DE COMMUNES ORNE LORRAINE CONFLUENCES",11]
[null,null,null,null,null,null,"TELLANCOURT",54514,"COMMUNAUTE DE COMMUNES ORNE LORRAINE CONFLUENCES",18]
[null,null,null,null,null,null,"THELOD",54515,"COMMUNAUTE DE COMMUNES ORNE LORRAINE CONFLUENCES",4]
[null,null,null,null,null,null,"THEY-SOUS-VAUDEMONT",54516,"COMMUNAUTE DE COMMUNES ORNE LORRAINE CONFLUENCES",11]
[null,null,null,null,null,null,"THEZEY-SAINT-MARTIN",54517,"COMMUNAUTE DE COMMUNES ORNE LORRAINE CONFLUENCES",5]
[null,null,null,null,null,null,"THIAUCOURT-REGNIEVILLE",54518,"COMMUNAUTE DE COMMUNES ORNE LORRAINE CONFLUENCES",3]
[null,null,null,null,null,null,"THIAVILLE-SUR-MEURTHE",54519,"COMMUNAUTE DE COMMUNES ORNE LORRAINE CONFLUENCES",15]
[null,null,null,null,null,null,"THIEBAUMENIL",54520,"COMMUNAUTE DE COMMUNES ORNE LORRAINE CONFLUENCES",15]
[null,null,null,null,null,null,"THIL",54521,"COMMUNAUTE DE COMMUNES ORNE LORRAINE CONFLUENCES",14]
[null,null,null,null,null,null,"THOREY-LYAUTEY",54522,"COMMUNAUTE DE COMMUNES ORNE LORRAINE CONFLUENCES",11]
[null,null,null,null,null,null,"THUILLEY-AUX-GROSEILLES",54523,"COMMUNAUTE DE COMMUNES ORNE LORRAINE CONFLUENCES",10]
[null,null,null,null,null,null,"THUMEREVILLE",54524,"COMMUNAUTE DE COMMUNES ORNE LORRAINE CONFLUENCES",17]
[null,null,null,null,null,null,"TIERCELET",54525,"COMMUNAUTE DE COMMUNES ORNE LORRAINE CONFLUENCES",1]
[null,null,null,null,null,null,"TOMBLAINE",54526,"COMMUNAUTE DE COMMUNES ORNE LORRAINE CONFLUENCES",21]
[null,null,null,null,null,null,"TONNOY",54527,"COMMUNAUTE DE COMMUNES ORNE LORRAINE CONFLUENCES",13]
[null,null,null,null,null,null,"TOUL",54528,"COMMUNAUTE DE COMMUNES ORNE LORRAINE CONFLUENCES",19]
[null,null,null,null,null,null,"TRAMONT-EMY",54529,"COMMUNAUTE DE COMMUNES ORNE LORRAINE CONFLUENCES",10]
[null,null,null,null,null,null,"TRAMONT-LASSUS",54530,"COMMUNAUTE DE COMMUNES ORNE LORRAINE CONFLUENCES",10]
[null,null,null,null,null,null,"TRAMONT-SAINT-ANDRE",54531,"COMMUNAUTE DE COMMUNES ORNE LORRAINE CONFLUENCES",10]
[null,null,null,null,null,null,"TREMBLECOURT",54532,"COMMUNAUTE DE COMMUNES ORNE LORRAINE CONFLUENCES",19]
[null,null,null,null,null,null,"TRIEUX",54533,"COMMUNAUTE DE COMMUNES ORNE LORRAINE CONFLUENCES",9]
[null,null,null,null,null,null,"TRONDES",54534,"COMMUNAUTE DE COMMUNES ORNE LORRAINE CONFLUENCES",19]
[null,null,null,null,null,null,"TRONVILLE",54535,"COMMUNAUTE DE COMMUNES ORNE LORRAINE CONFLUENCES",3]
[null,null,null,null,null,null,"TUCQUEGNIEUX",54536,"COMMUNAUTE DE COMMUNES ORNE LORRAINE CONFLUENCES",9]
[null,null,null,null,null,null,"UGNY",54537,"COMMUNAUTE DE COMMUNES ORNE LORRAINE CONFLUENCES",1]
[null,null,null,null,null,null,"URUFFE",54538,"COMMUNAUTE DE COMMUNES ORNE LORRAINE CONFLUENCES",10]
[null,null,null,null,null,null,"VACQUEVILLE",54539,"COMMUNAUTE DE COMMUNES ORNE LORRAINE CONFLUENCES",15]
[null,null,null,null,null,null,"VAL-DE-BRIEY",54099,"COMMUNAUTE DE COMMUNES ORNE LORRAINE CONFLUENCES",17]
[null,null,null,null,null,null,"VAL-ET-CHATILLON",54540,"COMMUNAUTE DE COMMUNES ORNE LORRAINE CONFLUENCES",6]
[null,null,null,null,null,null,"VALHEY",54541,"COMMUNAUTE DE COMMUNES ORNE LORRAINE CONFLUENCES",12]
[null,null,null,null,null,null,"VALLEROY",54542,"COMMUNAUTE DE COMMUNES ORNE LORRAINE CONFLUENCES",17]
[null,null,null,null,null,null,"VALLOIS",54543,"COMMUNAUTE DE COMMUNES ORNE LORRAINE CONFLUENCES",15]
[null,null,null,null,null,null,"VANDELAINVILLE",54544,"COMMUNAUTE DE COMMUNES ORNE LORRAINE CONFLUENCES",3]
[null,null,null,null,null,null,"VANDELEVILLE",54545,"COMMUNAUTE DE COMMUNES ORNE LORRAINE CONFLUENCES",10]
[null,null,null,null,null,null,"VANDIERES",54546,"COMMUNAUTE DE COMMUNES ORNE LORRAINE CONFLUENCES",8]
[null,null,null,null,null,null,"VANDOEUVRE-LES-NANCY",54547,"COMMUNAUTE DE COMMUNES ORNE LORRAINE CONFLUENCES",21]
[null,null,null,null,null,null,"VANNES-LE-CHATEL",54548,"COMMUNAUTE DE COMMUNES ORNE LORRAINE CONFLUENCES",10]
[null,null,null,null,null,null,"VARANGEVILLE",54549,"COMMUNAUTE DE COMMUNES ORNE LORRAINE CONFLUENCES",13]
[null,null,null,null,null,null,"VATHIMENIL",54550,"COMMUNAUTE DE COMMUNES ORNE LORRAINE CONFLUENCES",15]
[null,null,null,null,null,null,"VAUCOURT",54551,"COMMUNAUTE DE COMMUNES ORNE LORRAINE CONFLUENCES",6]
[null,null,null,null,null,null,"VAUDEMONT",54552,"COMMUNAUTE DE COMMUNES ORNE LORRAINE CONFLUENCES",11]
[null,null,null,null,null,null,"VAUDEVILLE",54553,"COMMUNAUTE DE COMMUNES ORNE LORRAINE CONFLUENCES",11]
[null,null,null,null,null,null,"VAUDIGNY",54554,"COMMUNAUTE DE COMMUNES ORNE LORRAINE CONFLUENCES",11]
[null,null,null,null,null,null,"VAXAINVILLE",54555,"COMMUNAUTE DE COMMUNES ORNE LORRAINE CONFLUENCES",15]
[null,null,null,null,null,null,"VEHO",54556,"COMMUNAUTE DE COMMUNES ORNE LORRAINE CONFLUENCES",6]
[null,null,null,null,null,null,"VELAINE-EN-HAYE",54557,"COMMUNAUTE DE COMMUNES ORNE LORRAINE CONFLUENCES",19]
[null,null,null,null,null,null,"VELAINE-SOUS-AMANCE",54558,"COMMUNAUTE DE COMMUNES ORNE LORRAINE CONFLUENCES",5]
[null,null,null,null,null,null,"VELLE-SUR-MOSELLE",54559,"COMMUNAUTE DE COMMUNES ORNE LORRAINE CONFLUENCES",16]
[null,null,null,null,null,null,"VENEY",54560,"COMMUNAUTE DE COMMUNES ORNE LORRAINE CONFLUENCES",15]
[null,null,null,null,null,null,"VENNEZEY",54561,"COMMUNAUTE DE COMMUNES ORNE LORRAINE CONFLUENCES",16]
[null,null,null,null,null,null,"VERDENAL",54562,"COMMUNAUTE DE COMMUNES ORNE LORRAINE CONFLUENCES",6]
[null,null,null,null,null,null,"VEZELISE",54563,"COMMUNAUTE DE COMMUNES ORNE LORRAINE CONFLUENCES",11]
[null,null,null,null,null,null,"VICHEREY",88504,"COMMUNAUTE DE COMMUNES ORNE LORRAINE CONFLUENCES",10]
[null,null,null,null,null,null,"VIEVILLE-EN-HAYE",54564,"COMMUNAUTE DE COMMUNES ORNE LORRAINE CONFLUENCES",3]
[null,null,null,null,null,null,"VIGNEULLES",54565,"COMMUNAUTE DE COMMUNES ORNE LORRAINE CONFLUENCES",16]
[null,null,null,null,null,null,"VILCEY-SUR-TREY",54566,"COMMUNAUTE DE COMMUNES ORNE LORRAINE CONFLUENCES",3]
[null,null,null,null,null,null,"VILLACOURT",54567,"COMMUNAUTE DE COMMUNES ORNE LORRAINE CONFLUENCES",16]
[null,null,null,null,null,null,"VILLE-AU-MONTOIS",54568,"COMMUNAUTE DE COMMUNES ORNE LORRAINE CONFLUENCES",18]
[null,null,null,null,null,null,"VILLE-AU-VAL",54569,"COMMUNAUTE DE COMMUNES ORNE LORRAINE CONFLUENCES",8]
[null,null,null,null,null,null,"VILLECEY-SUR-MAD",54570,"COMMUNAUTE DE COMMUNES ORNE LORRAINE CONFLUENCES",3]
[null,null,null,null,null,null,"VILLE-EN-VERMOIS",54571,"COMMUNAUTE DE COMMUNES ORNE LORRAINE CONFLUENCES",13]
[null,null,null,null,null,null,"VILLE-HOUDLEMONT",54572,"COMMUNAUTE DE COMMUNES ORNE LORRAINE CONFLUENCES",18]
[null,null,null,null,null,null,"VILLERS-EN-HAYE",54573,"COMMUNAUTE DE COMMUNES ORNE LORRAINE CONFLUENCES",8]
[null,null,null,null,null,null,"VILLERS-LA-CHEVRE",54574,"COMMUNAUTE DE COMMUNES ORNE LORRAINE CONFLUENCES",18]
[null,null,null,null,null,null,"VILLERS-LA-MONTAGNE",54575,"COMMUNAUTE DE COMMUNES ORNE LORRAINE CONFLUENCES",1]
[null,null,null,null,null,null,"VILLERS-LE-ROND",54576,"COMMUNAUTE DE COMMUNES ORNE LORRAINE CONFLUENCES",18]
[null,null,null,null,null,null,"VILLERS-LES-MOIVRONS",54577,"COMMUNAUTE DE COMMUNES ORNE LORRAINE CONFLUENCES",5]
[null,null,null,null,null,null,"VILLERS-LES-NANCY",54578,"COMMUNAUTE DE COMMUNES ORNE LORRAINE CONFLUENCES",21]
[null,null,null,null,null,null,"VILLERS-SOUS-PRENY",54579,"COMMUNAUTE DE COMMUNES ORNE LORRAINE CONFLUENCES",8]
[null,null,null,null,null,null,"VILLERUPT",54580,"COMMUNAUTE DE COMMUNES ORNE LORRAINE CONFLUENCES",14]
[null,null,null,null,null,null,"VILLE-SUR-YRON",54581,"COMMUNAUTE DE COMMUNES ORNE LORRAINE CONFLUENCES",17]
[null,null,null,null,null,null,"VILLETTE",54582,"COMMUNAUTE DE COMMUNES TERRE LORRAINE DU LONGUYONNAIS",18]
[null,null,null,null,null,null,"VILLEY-LE-SEC",54583,"COMMUNAUTE DE COMMUNES TERRES TOULOISES",19]
[null,null,null,null,null,null,"VILLEY-SAINT-ETIENNE",54584,"COMMUNAUTE DE COMMUNES TERRES TOULOISES",19]
[null,null,null,null,null,null,"VIRECOURT",54585,"COMMUNAUTE DE COMMUNES MEURTHE MORTAGNE MOSELLE",16]
[null,null,null,null,null,null,"VITERNE",54586,"COMMUNAUTE DE COMMUNES DE MOSELLE ET MADON",4]
[null,null,null,null,null,null,"VITREY",54587,"COMMUNAUTE DE COMMUNES DU PAYS DU SAINTOIS",11]
[null,null,null,null,null,null,"VITRIMONT",54588,"COMMUNAUTE DE COMMUNES DU TERRITOIRE DE LUNEVILLE A BACCARAT",15]
[null,null,null,null,null,null,"VITTONVILLE",54589,"COMMUNAUTE DE COMMUNES DU BASSIN DE PONT-A-MOUSSON",8]
[null,null,null,null,null,null,"VIVIERS-SUR-CHIERS",54590,"COMMUNAUTE DE COMMUNES TERRE LORRAINE DU LONGUYONNAIS",18]
[null,null,null,null,null,null,"VOINEMONT",54591,"COMMUNAUTE DE COMMUNES DU PAYS DU SAINTOIS",11]
[null,null,null,null,null,null,"VRONCOURT",54592,"COMMUNAUTE DE COMMUNES DU PAYS DU SAINTOIS",11]
[null,null,null,null,null,null,"WAVILLE",54593,"COMMUNAUTE DE COMMUNES DE MAD ET MOSELLE",3]
[null,null,null,null,null,null,"XAMMES",54594,"COMMUNAUTE DE COMMUNES DE MAD ET MOSELLE",3]
[null,null,null,null,null,null,"XERMAMENIL",54595,"COMMUNAUTE DE COMMUNES DU TERRITOIRE DE LUNEVILLE A BACCARAT",15]
[null,null,null,null,null,null,"XEUILLEY",54596,"COMMUNAUTE DE COMMUNES DE MOSELLE ET MADON",4]
[null,null,null,null,null,null,"XIROCOURT",54597,"COMMUNAUTE DE COMMUNES DU PAYS DU SAINTOIS",11]
[null,null,null,null,null,null,"XIVRY-CIRCOURT",54598,"COMMUNAUTE DE COMMUNES DU COEUR DU PAYS HAUT",9]
[null,null,null,null,null,null,"XONVILLE",54599,"COMMUNAUTE DE COMMUNES DE MAD ET MOSELLE",3]
[null,null,null,null,null,null,"XOUSSE",54600,"COMMUNAUTE DE COMMUNES DE VEZOUZE EN PIEMONT",6]
[null,null,null,null,null,null,"XURES",54601,"COMMUNAUTE DE COMMUNES DU PAYS DU SANON",12]

{"sheet":"Listes","index":11,"n_rows":37,"n_cols":23,"rows_kept":37,"cut":false,"hidden":true,"merged":[[12,10,12,12],[23,9,25,9],[17,1,17,2]]}
[null,"Années",null,null,"Types",null,null,"Fonct / Invest",null,null,"Ligne",null,"Partenaire",null,"Oui/Non",null,"Taux",null,"Numéro",null,"Aide publique","Vérif"]
[0,null,null,0,null,null,null,null,null,0,null,null,null,null,null,null,10,null,0,null,{"$f":"Formulaire!E15*V2","v":0},{"$f":"IF(Formulaire!E11=\"Association\",0,1)","v":1}]
[1,{"$f":"M21","v":2025},null,1,"Espaces Naturels Sensibles",null,{"$f":"IF(AND($C$10=2,$D$10=1),MAX($G$2:G2)+1,IF(AND($C$10=2,$D$10=3),MAX($G$2:G2)+1,IF(AND($C$10=2,$D$10=4),MAX($G$2:G2)+1,\"\")))","v":""},"Acquisitions",null,1,"Fonctionnement",null,"Association",null,"Oui",null,20,null,null,null,{"$f":"Formulaire!E23*V3","v":0},{"$f":"IF(Formulaire!E19=\"Association\",0,1)","v":0}]
[2,{"$f":"B3+1","v":2026},null,2,"Randonnée",null,{"$f":"IF(AND($C$10=2,$D$10=1),MAX($G$2:G3)+1,IF(AND($C$10=2,$D$10=2),MAX($G$2:G3)+1,IF(AND($C$10=2,$D$10=3),MAX($G$2:G3)+1,IF(AND($C$10=2,$D$10=4),MAX($G$2:G3)+1,\"\"))))","v":""},"Actions en régie",null,2,"Investissement",null,"Commune",null,"Non",null,30,null,null,null,{"$f":"Formulaire!E31*V4","v":0},{"$f":"IF(Formulaire!E27=\"Association\",0,1)","v":1}]
[3,{"$f":"B4+1","v":2027},null,3,"Ressource en Eau",null,{"$f":"IF(AND($C$10=2,$D$10=1),MAX($G$2:G4)+1,IF(AND($C$10=2,$D$10=3),MAX($G$2:G4)+1,IF(AND($C$10=2,$D$10=4),MAX($G$2:G4)+1,\"\")))","v":""},"Etudes",null,null,null,null,"EPCI",null,null,null,40,null,null,null,{"$f":"Formulaire!Q15","v":0}]
[4,{"$f":"B5+1","v":2028},null,4,"TVB/Paysages/Espèces",null,{"$f":"IF(AND($C$10=1,$D$10=1),MAX($G$2:G5)+1,IF(AND($C$10=1,$D$10=2),MAX($G$2:G5)+1,IF(AND($C$10=1,$D$10=3),MAX($G$2:G5)+1,IF(AND($C$10=1,$D$10=4),MAX($G$2:G5)+1,\"\"))))","v":""},"Gestion/Entretien",null,null,null,null,"Organisme public",null,null,null,50,null,null,null,{"$f":"Formulaire!Q23","v":0}]
[5,{"$f":"B6+1","v":2029},null,null,null,null,null,"Moyens généraux",null,null,null,null,null,null,null,null,60,null,null,null,{"$f":"Formulaire!Q31","v":0}]
[6,{"$f":"B7+1","v":2030},null,null,null,null,{"$f":"IF(AND($C$10=1,$D$10=1),MAX($G$2:G7)+1,IF(AND($C$10=1,$D$10=2),MAX($G$2:G7)+1,IF(AND($C$10=1,$D$10=3),MAX($G$2:G7)+1,IF(AND($C$10=1,$D$10=4),MAX($G$2:G7)+1,\"\"))))","v":""},"Outils de communication",null,null,null,null,null,null,null,null,70,null,null,null,{"$f":"Formulaire!Q55","v":0},{"$f":"IF(Formulaire!Q53=\"PUBLIC\",1,0)","v":0}]
[null,null,"LIGNE","TYPE",null,null,null,"Petit matériel",null,null,null,null,null,null,null,null,80,null,null,null,{"$f":"SUM(U2:U8)","v":0},{"$f":"IF(U9>80,\"L'aide publique cumulée dépasse le taux maxi de 80% autorisé !\",\"\")","v":""}," "]
[null,null,{"$f":"IF(Formulaire!E43=\"\",0,LOOKUP(Formulaire!E43,LIGNE,Listes!J2:J4))","v":0},{"$f":"IF(Formulaire!E45=\"\",0,LOOKUP(Formulaire!E45,TYPE,Listes!D2:D8))","v":0},null,null,{"$f":"IF(AND($C$10=1,$D$10=1),MAX($G$2:G9)+1,IF(AND($C$10=1,$D$10=3),MAX($G$2:G9)+1,IF(AND($C$10=1,$D$10=4),MAX($G$2:G9)+1,\"\")))","v":""},"Suivis écologiques",null,null,null,null,null,null,null,null,90]
[null,null,{"$f":"MAX(G2:G12)","v":0},0,null,null,{"$f":"IF(AND($C$10=2,$D$10=1),MAX($G$2:G10)+1,IF(AND($C$10=2,$D$10=2),MAX($G$2:G10)+1,IF(AND($C$10=2,$D$10=3),MAX($G$2:G10)+1,IF(AND($C$10=2,$D$10=4),MAX($G$2:G10)+1,\"\"))))","v":""},"Travaux",null,null,null,null,null,null,null,null,100]
[null,null,1,{"$f":"LOOKUP(C12,G2:G12)","v":{"$error":"#N/A"}},{"$f":"IF(D12=\"\",\"\",IF(LOOKUP(D12,$G$2:$G$12,$H$2:$H$12)=0,\"\",LOOKUP(D12,$G$2:$G$12,$H$2:$H$12)))","v":{"$error":"#N/A"}}]
[null,null,2,{"$f":"IF(MAX($G$2:$G$12)>=2,2,\"\")","v":""},{"$f":"IF(D13=\"\",\"\",IF(LOOKUP(D13,$G$2:$G$12,$H$2:$H$12)=0,\"\",LOOKUP(D13,$G$2:$G$12,$H$2:$H$12)))","v":""},null,null,null,null,null,"Date butoire"]
[null,null,3,{"$f":"IF(MAX($G$2:$G$12)>=3,3,\"\")","v":""},{"$f":"IF(D14=\"\",\"\",IF(LOOKUP(D14,$G$2:$G$12,$H$2:$H$12)=0,\"\",LOOKUP(D14,$G$2:$G$12,$H$2:$H$12)))","v":""},null,null,null,null,null,"Aujourd'hui",null,{"$f":"TODAY()","v":"2024-09-03"},null,null,null,"Fait (attente confirmation des dates butoirs pour 2021 et après)"]
[null,null,4,{"$f":"IF(MAX($G$2:$G$12)>=4,4,\"\")","v":""},{"$f":"IF(D15=\"\",\"\",IF(LOOKUP(D15,$G$2:$G$12,$H$2:$H$12)=0,\"\",LOOKUP(D15,$G$2:$G$12,$H$2:$H$12)))","v":""},null,null,null,null,null,"ANNEE",null,{"$f":"YEAR(M14)","v":2024},null,null,null," - Formule à saisir en B3 de cette feuille : = M21"]
[null,null,5,{"$f":"IF(MAX($G$2:$G$12)>=5,5,\"\")","v":""},{"$f":"IF(D16=\"\",\"\",IF(LOOKUP(D16,$G$2:$G$12,$H$2:$H$12)=0,\"\",LOOKUP(D16,$G$2:$G$12,$H$2:$H$12)))","v":""},null,null,null,null,null,"MOIS",null,10,null,null,null," - Formule à saisir dans la feuille \"Formulaire\" en E7 :"]
[null,null,null,null,null,null,null,null,null,null,"JOUR",null,15,null,null,null,"=SI(Listes!M22=1;\"Pour information : le dépôt des dossiers pour l'année \"&Listes!M21-1&\" est cloturé.\";\"\")"]
[null,"S/Formulaires",null,1,"Actions en régie",{"$f":"IF(Formulaire!E47=\"Actions en régie\",1,\"\")","v":""},null,null,null,null,"Date butoire",null,{"$f":"DATE(M15,M16,M17)","v":"2024-10-15"},null,null,null,"Format Rouge/Gras"]
[null,null,null,2,"Entretien PDIPR",{"$f":"IF(AND(Formulaire!E45=\"Randonnée\",Formulaire!E47=\"Gestion/Entretien\"),2,\"\")","v":""},null,null,null,null,"Début",null,{"$f":"DATE(YEAR(M14),MONTH(1),DAY(1))","v":"2024-01-01"}]
[null,null,null,3,null,null,null,null,null,null,"Fin",null,{"$f":"DATE(YEAR(M14)+1,MONTH(1),DAY(1)-1)","v":"2024-12-31"}]
[null,null,null,4,null,null,null,null,null,null,"Année Prog",null,{"$f":"YEAR(M14)+M22","v":2025}]
[null,null,null,null,{"$f":"IF(F22<>0,\"Cliquez ici pour compléter le formulaire...\",\"\")","v":""},{"$f":"SUM(F26:F28)","v":0},null,null,null,null,"Dépôt hors limite",null,{"$f":"SUM(N24:N28)","v":1}]
[]
[null,null,null,null,{"$f":"IF(Formulaire!E45=\"\",0,Formulaire!E45)","v":0},{"$f":"D10","v":0},null,null,null,2021,"2021-01-01",null,"2021-05-31",{"$f":"IF(AND($M$14>=K24,$M$14<=M24),0,0)","v":0},2021]
[null,null,null,null,{"$f":"Formulaire!E47","v":0},{"$f":"SUM(F18:F21)","v":0},null,null,null,null,"2021-06-01",null,"2021-09-30",{"$f":"IF(AND($M$14>=K25,$M$14<=M25),1,0)","v":0},2022]
[null,null,null,null,"Gestion/Entretien",{"$f":"IF(AND(F24=1,F25=2),2,IF(AND(F24=2,F25=2),2,IF(AND(F24=3,F25=2),2,IF(AND(F24=5,F25=2),2,0))))","v":0},null,null,null,null,"2021-10-01",null,"2021-12-31",{"$f":"IF(AND($M$14>=K26,$M$14<=M26),2,0)","v":0},2023]
[null,null,null,null,"Actions en régie",{"$f":"IF(AND(F24=1,F25=3),3,0)","v":0},null,null,null,null,{"$f":"M19","v":"2024-01-01"},null,{"$f":"M18","v":"2024-10-15"},{"$f":"IF(O27=2021,0,IF(AND($M$14>=K27,$M$14<=M27),1,0))","v":1},{"$f":"YEAR(K27)","v":2024}]
[null,null,null,null,null,{"$f":"IF(AND(F24=1,F25=1),1,IF(AND(F24=2,F25=1),1,IF(AND(F24=3,F25=1),1,IF(AND(F24=5,F25=1),1,IF(AND(F24=4,F25=1),1,0)))))","v":0},null,null,null,null,{"$f":"M27+1","v":"2024-10-16"},null,{"$f":"M20","v":"2024-12-31"},{"$f":"IF(O28=2021,0,IF(AND($M$14>=K28,$M$14<=M28),2,0))","v":0},{"$f":"YEAR(K28)","v":2024}]
[]
[]
[null,null,null,null,null,null,null,null,null,null,"Actions en régie",null,{"$f":"'Actions en régie'!H13","v":0}]
[null,null,null,null,null,null,null,null,null,null,"PDIPR",null,{"$f":"PDIPR!L8","v":0}]
[null,null,null,null,null,null,null,null,null,null,"CD54",null,{"$f":"SUM(M31:M32)","v":0}]
[null,null,null,null,null,null,null,null,null,null,"Financement",null,{"$f":"SUM(Formulaire!Q9,Formulaire!S9,Formulaire!U9,Formulaire!Q25,Formulaire!Q33,Formulaire!Q41,Formulaire!Q49,Formulaire!Q57)","v":0}]
[null,null,null,null,null,null,null,null,null,null,"Montant global",null,{"$f":"Formulaire!E58","v":0}]
[null,null,null,null,null,null,null,null,null,null,"Total",null,{"$f":"SUM(M33:M34)","v":0}]
[null,null,null,null,null,null,null,null,null,null,"Aide CD corrigée",null,{"$f":"IF(M36>M35,M35-M34,M33)","v":0}]

{"sheet":"Itinéraires","index":12,"n_rows":554,"n_cols":7,"rows_kept":554,"cut":false,"hidden":true,"merged":[]}
["id_circ","nom_circuit","interet","longkm","epci","entretien","pdipr"]
[1,"CIRCUIT DU MALNOY","LOCAL",3.68,"CC DU BASSIN DE POMPEY","CLUB ALPIN FRANCAIS DE NANCY",1]
[3,"CIREY-SUR-VEZOUZE - BERTRAMBOIS","LOCAL",5.09,"CC DE VEZOUZE EN PIEMONT","CLUB VOSGIEN DE LA VEZOUZE",1]
[5,"CIRCUIT DU LEOMONT ET DU MEHON","LOCAL",11.92,"CC DU PAYS DU SANON","LES RANDONNEURS DU SANON ET DU LUNEVILLOIS",1]
[6,"LE VALLON DU JOLIVE","LOCAL",14.05,"CC DU PAYS DE COLOMBEY ET DU SUD TOULOIS","CDRP 54 - COMMISSION SENTIERS 54",1]
[7,"CIRCUIT DU BRENON","DEPARTEMENTAL",15.34,"CC DU PAYS DE COLOMBEY ET DU SUD TOULOIS","ASSOCIATION INTERCOMMUNALE DES SENTIERS DE LA MIRABELLE",1]
[8,"CIRCUIT DES VERRIERS","LOCAL",15.41,"CC DU TERRITOIRE DE LUNEVILLE A BACCARAT","CLUB VOSGIEN D AZERAILLES",1]
[9,"GERBEVILLER-GIRIVILLER-GERBEVILLER","LOCAL",20.59,"CC MEURTHE, MORTAGNE, MOSELLE","CLUB VOSGIEN DE BAYON-GERBEVILLER",1]
[10,"GRAND TOUR DE GERBEVILLER","DEPARTEMENTAL",39.99,"CC MEURTHE, MORTAGNE, MOSELLE","CLUB VOSGIEN DE BAYON-GERBEVILLER",1]
[11,"GERBEVILLER-QUETILLE","DEPARTEMENTAL",9.65,"CC MEURTHE, MORTAGNE, MOSELLE","CLUB VOSGIEN DE BAYON-GERBEVILLER",1]
[12,"VALLOIS-GERBEVILLER","LOCAL",9.7899999999999991,"CC DU TERRITOIRE DE LUNEVILLE A BACCARAT","CLUB VOSGIEN DE BAYON-GERBEVILLER",1]
[13,"CIRCUIT DES BRANDONS","LOCAL",13.25,"CC DU PAYS DU SAINTOIS","LES RANDONNEURS DU SAINTOIS",1]
[14,"CIRCUIT DU METAY","LOCAL",14.36,"CC DU PAYS DU SAINTOIS","LES RANDONNEURS DU SAINTOIS",1]
[15,"CIRCUIT DU PAYS DE HAROUE","LOCAL",15.98,"CC DU PAYS DU SAINTOIS","LES RANDONNEURS DU SAINTOIS",1]
[16,"CIRCUIT A","LOCAL",12.33,"METROPOLE DU GRAND NANCY","CLUB ALPIN FRANCAIS DE NANCY",1]
[17,"CIRCUIT DES JAUNOTTES","DEPARTEMENTAL",11.17,"CC MAD ET MOSELLE","LES SONNEURS DE LA COTE",1]
[18,"CIRCUIT DU RUISSEAU SAINT-PIERRE","LOCAL",2.48,"CC DU TERRITOIRE DE LUNEVILLE A BACCARAT","CLUB VOSGIEN DE RAON L ETAPE ET DE LA PORTE DES VOSGES",1]
[19,"CIRCUIT DE LA MONCELLE","LOCAL",5.29,"CC DU TERRITOIRE DE LUNEVILLE A BACCARAT","CLUB VOSGIEN DE RAON L ETAPE ET DE LA PORTE DES VOSGES",1]
[20,"LIAISON CIRCUITS MONCELLE ET MANOEUVRE","LOCAL",0.35,"CC DU TERRITOIRE DE LUNEVILLE A BACCARAT","CLUB VOSGIEN DE RAON L ETAPE ET DE LA PORTE DES VOSGES",1]
[21,"GR5 - MONTAUVILLE","DEPARTEMENTAL",6.09,"CC DU BASSIN DE PONT-A-MOUSSON","LES SONNEURS DE LA COTE",1]
[22,"CIRCUIT DES TUNNELS","DEPARTEMENTAL",17.36,"CC TERRES TOULOISES","ASSOCIATION INTERCOMMUNALE DES SENTIERS DE LA LINOTTE",1]
[23,"GRP - TOUR DE NANCY - LENONCOURT - FLAVIGNY-SUR-MOSELLE","DEPARTEMENTAL",27.25,"CC DE SEILLE ET GRAND COURONNE","RANDO SEL ET VERMOIS",1]
[24,"CIRCUIT D1","LOCAL",9.6199999999999992,"CC MOSELLE ET MADON","CLUB ALPIN FRANCAIS DE NANCY",1]
[25,"CIRCUIT E","LOCAL",12.66,"CC MOSELLE ET MADON","CLUB ALPIN FRANCAIS DE NANCY",1]
[26,"CIRCUIT D2","LOCAL",6.57,"CC MOSELLE ET MADON","CLUB ALPIN FRANCAIS DE NANCY",1]
[28,"GR534 - FREMONVILLE - BLAMONT","DEPARTEMENTAL",11.66,"CC DE VEZOUZE EN PIEMONT","CLUB VOSGIEN DE LA VEZOUZE",1]
[29,"GR534 - AMENONCOURT - BLAMONT","DEPARTEMENTAL",10.15,"CC DE VEZOUZE EN PIEMONT","CLUB VOSGIEN DE BADONVILLER",1]
[32,"BOUCLE DES TROIS RIVIERES","LOCAL",14.15,"CC ORNE LORRAINE CONFLUENCES","UNION SPORTIVE DU JARNISY - SECTION RANDO",1]
[33,"CIRCUIT DES VERGERS","LOCAL",15.67,"CC DES PAYS DU SEL ET DU VERMOIS","RANDO SEL ET VERMOIS",1]
[36,"CIRCUIT DE SAINT-SAUVEUR","LOCAL",7.83,"CC DE VEZOUZE EN PIEMONT","CLUB VOSGIEN DE LA VEZOUZE",1]
[37,"CIRCUIT DE LA CROIX JEAN-BAPTISTE","LOCAL",6.34,"CC DE VEZOUZE EN PIEMONT","CLUB VOSGIEN DE LA VEZOUZE",1]
[38,"CIRCUIT PASTEUR","LOCAL",10.91,"CC DU PAYS DU SAINTOIS","LES RANDONNEURS DU SAINTOIS",1]
[39,"CIRCUIT DU PETIT CRAINCY","LOCAL",7.42,"CC DU TERRITOIRE DE LUNEVILLE A BACCARAT","CLUB VOSGIEN DE RAON L ETAPE ET DE LA PORTE DES VOSGES",1]
[40,"CIRCUIT DU GRAND CRAINCY","LOCAL",9.84,"CC DU TERRITOIRE DE LUNEVILLE A BACCARAT","CLUB VOSGIEN DE RAON L ETAPE ET DE LA PORTE DES VOSGES",1]
[41,"CIRCUIT DU PETIT PARIS","LOCAL",6.4,"CC DU TERRITOIRE DE LUNEVILLE A BACCARAT","CLUB VOSGIEN DE RAON L ETAPE ET DE LA PORTE DES VOSGES",1]
[42,"CIRCUIT DU BOSSU","LOCAL",2.84,"CC DU TERRITOIRE DE LUNEVILLE A BACCARAT","CLUB VOSGIEN DE RAON L ETAPE ET DE LA PORTE DES VOSGES",1]
[43,"CIRCUIT DE LACHAPELLE","LOCAL",5.58,"CC DU TERRITOIRE DE LUNEVILLE A BACCARAT","CLUB VOSGIEN DE RAON L ETAPE ET DE LA PORTE DES VOSGES",1]
[46,"ACCES AU PETIT CHEMIN D ALLEMAGNE","LOCAL",4.68,"CC DE VEZOUZE EN PIEMONT","CLUB VOSGIEN DE LA VEZOUZE",1]
[47,"CIRCUIT PARMENTIER","LOCAL",7.14,"CC DE VEZOUZE EN PIEMONT","CLUB VOSGIEN DE LA VEZOUZE",1]
[49,"CIRCUIT DU BORNABOIS","LOCAL",3.11,"CC DE VEZOUZE EN PIEMONT","CLUB VOSGIEN DE LA VEZOUZE",1]
[50,"LINEAIRE VAL-ET-CHATILLON - SAINT-SAUVEUR","LOCAL",3.48,"CC DE VEZOUZE EN PIEMONT","CLUB VOSGIEN DE LA VEZOUZE",1]
[51,"CIRCUIT DU VAL DE BRENON","LOCAL",14.43,"CC DU PAYS DU SAINTOIS","LES RANDONNEURS DU SAINTOIS",1]
[52,"CIRCUIT DE LA VIGNE DES DUCS","LOCAL",12.2,"CC DU PAYS DU SAINTOIS","LES RANDONNEURS DU SAINTOIS",1]
[53,"BOUCLE DES QUATRE HORIZONS","DEPARTEMENTAL",9.16,"CC ORNE LORRAINE CONFLUENCES","UNION SPORTIVE DU JARNISY - SECTION RANDO",1]
[55,"CIRCUIT DU CHEMIN D ALLEMAGNE","LOCAL",7.14,"CA DE SAINT-DIE-DES-VOSGES","CLUB VOSGIEN DE LA VEZOUZE",1]
[56,"CIRCUIT DES MOULINS","DEPARTEMENTAL",11.28,"CC DU BASSIN DE PONT-A-MOUSSON","RANDO DES VALS DE MOSELLE ET DE L ESCH",1]
[58,"LA VALLEE DE L ESCH","DEPARTEMENTAL",10.62,"CC DU BASSIN DE PONT-A-MOUSSON","RANDO DES VALS DE MOSELLE ET DE L ESCH",1]
[59,"LE SEL ET LA LEGENDE DE SAINT-NICOLAS","LOCAL",10.51,"CC DES PAYS DU SEL ET DU VERMOIS","RANDO SEL ET VERMOIS",1]
[60,"LINEAIRE LE TAMBOUR - ALLENCOMBE","LOCAL",1.94,"CC DE VEZOUZE EN PIEMONT","CLUB VOSGIEN DE BADONVILLER",1]
[61,"ENTRE VIGNES ET VERGERS","LOCAL",9.2100000000000009,"CC DU BASSIN DE PONT-A-MOUSSON","LES SONNEURS DE LA COTE",1]
[62,"CIRCUIT DU GRAND ROZOT","LOCAL",10.54,"CC MEURTHE, MORTAGNE, MOSELLE","LES RANDONNEURS DU SAINTOIS",1]
[63,"CIRCUIT DU LUXEMBOURG","LOCAL",15.42,"CC TERRES TOULOISES","ASSOCIATION INTERCOMMUNALE DES SENTIERS DE LA LINOTTE",1]
[64,"CIRCUIT DE LA BANASSE","LOCAL",9.1999999999999993,"CC DU PAYS DU SAINTOIS","LES RANDONNEURS DU SAINTOIS",1]
[65,"CIRCUIT DES VIEUX FRERES","LOCAL",8.7200000000000006,"CC DU PAYS DU SAINTOIS","LES RANDONNEURS DU SAINTOIS",1]
[66,"LIAISON CROISMARE - MAIXE","DEPARTEMENTAL",19.84,"CC DU TERRITOIRE DE LUNEVILLE A BACCARAT","LES RANDONNEURS DU SANON ET DU LUNEVILLOIS",1]
[67,"CIRCUIT DE LA FOLISELLE","LOCAL",7.84,"CC DU BASSIN DE POMPEY","CLUB ALPIN FRANCAIS DE NANCY",1]
[68,"CIRCUIT M","DEPARTEMENTAL",16.66,"METROPOLE DU GRAND NANCY","CLUB ALPIN FRANCAIS DE NANCY",1]
[69,"CIRCUIT O2","LOCAL",16.57,"CC DE SEILLE ET GRAND COURONNE","CLUB ALPIN FRANCAIS DE NANCY",1]
[70,"CIRCUIT B","LOCAL",9.44,"CC MOSELLE ET MADON","CLUB ALPIN FRANCAIS DE NANCY",1]
[71,"CIRCUIT G","LOCAL",19.350000000000001,"CC DU BASSIN DE POMPEY","CLUB ALPIN FRANCAIS DE NANCY",1]
[72,"CIRCUIT F1","LOCAL",13.63,"CC MOSELLE ET MADON","CLUB ALPIN FRANCAIS DE NANCY",1]
[73,"CIRCUIT DES BLAIREAUX","LOCAL",11.91,"CC DES PAYS DU SEL ET DU VERMOIS","LES RANDONNEURS DU SANON ET DU LUNEVILLOIS",1]
[74,"GR533 - HAUT DES PLANCHES - PIERRE-PERCEE","DEPARTEMENTAL",9.26,"CA DE SAINT-DIE-DES-VOSGES","CLUB VOSGIEN DE BADONVILLER",1]
[75,"BASSE-DE-PARA - PIERRE-PERCEE","LOCAL",3.25,"CA DE SAINT-DIE-DES-VOSGES","CLUB VOSGIEN DE BADONVILLER",1]
[76,"CELLES-SUR-PLAINE - COL D ORTOMONT","LOCAL",1.7,"CA DE SAINT-DIE-DES-VOSGES","CLUB VOSGIEN DE BADONVILLER",1]
[78,"LINEAIRE DE LA COTE DU MOULIN","LOCAL",1.1000000000000001,"CA DE SAINT-DIE-DES-VOSGES","CLUB VOSGIEN DE BADONVILLER",1]
[79,"LINEAIRE DE LA VIERGE DE PARA","LOCAL",1.0900000000000001,"CA DE SAINT-DIE-DES-VOSGES","CLUB VOSGIEN DE BADONVILLER",1]
[80,"VALLEE DE LA PETITE NABLOTTE","LOCAL",1.08,"CC DE VEZOUZE EN PIEMONT","CLUB VOSGIEN DE BADONVILLER",1]
[81,"LIAISON EULMONT - VAUDEMONT","LOCAL",2.34,"CC DU PAYS DU SAINTOIS","LES RANDONNEURS DU SAINTOIS",1]
[82,"VIERGE DE PARA - COL D ORTOMONT","LOCAL",0.69,"CA DE SAINT-DIE-DES-VOSGES","CLUB VOSGIEN DE BADONVILLER",1]
[83,"GR5 - ROSIERES-EN-HAYE - LIVERDUN","DEPARTEMENTAL",7.78,"CC DU BASSIN DE PONT-A-MOUSSON","CLUB ALPIN FRANCAIS DE NANCY",1]
[85,"CHEMIN DE LA DECOUVERTE","LOCAL",20.89,"CC DES PAYS DU SEL ET DU VERMOIS","RANDO SEL ET VERMOIS",1]
[88,"CIRCUIT DU REMBETTANT","LOCAL",5.88,"CC DES PAYS DU SEL ET DU VERMOIS","RANDO SEL ET VERMOIS",1]
[89,"CIRCUIT DES TROIS VIERGES","LOCAL",17.57,"CC DES PAYS DU SEL ET DU VERMOIS","RANDO SEL ET VERMOIS",1]
[90,"CIRCUIT DU BAXET","LOCAL",3.49,"CC DES PAYS DU SEL ET DU VERMOIS","RANDO SEL ET VERMOIS",1]
[91,"CHEMIN DU HAUT DES VIGNES","LOCAL",5.32,"CC DES PAYS DU SEL ET DU VERMOIS","RANDO SEL ET VERMOIS",1]
[94,"DU VILLAGE D ARRAYE AU HAMEAU DE HAN","LOCAL",4.3,"CC DE SEILLE ET GRAND COURONNE","ARSEM",1]
[95,"CIRCUIT DES FONTAINES","LOCAL",7.23,"CC DU TERRITOIRE DE LUNEVILLE A BACCARAT","CLUB VOSGIEN DE RAON L ETAPE ET DE LA PORTE DES VOSGES",1]
[96,"CIRCUIT DU MOULIN A VENT","LOCAL",4.26,"CC DU TERRITOIRE DE LUNEVILLE A BACCARAT","CLUB VOSGIEN DE RAON L ETAPE ET DE LA PORTE DES VOSGES",1]
[97,"CIRCUIT DU TERRAIN DE MANŒUVRES","LOCAL",9.1,"CC DU TERRITOIRE DE LUNEVILLE A BACCARAT","CLUB VOSGIEN DE RAON L ETAPE ET DE LA PORTE DES VOSGES",1]
[100,"CIRCUIT DE LA ROCHE DU SERPENT","LOCAL",1.86,"CC DU TERRITOIRE DE LUNEVILLE A BACCARAT","CLUB VOSGIEN DE RAON L ETAPE ET DE LA PORTE DES VOSGES",1]
[101,"ROCHE DU SERPENT - TERRAIN DE MANŒUVRE","LOCAL",1.58,"CC DU TERRITOIRE DE LUNEVILLE A BACCARAT","CLUB VOSGIEN DE RAON L ETAPE ET DE LA PORTE DES VOSGES",1]
[102,"BADONVILLER - MONUMENT DES DEMINEURS","LOCAL",3.81,"CC DE VEZOUZE EN PIEMONT","CLUB VOSGIEN DE BADONVILLER",1]
[103,"BADONVILLER - MONUMENT DU 358E RI","LOCAL",1.94,"CC DE VEZOUZE EN PIEMONT","CLUB VOSGIEN DE BADONVILLER",1]
[104,"CIRCUIT DE VIACELLE","LOCAL",13.5,"CC DU PAYS DU SAINTOIS","LES RANDONNEURS DU SAINTOIS",1]
[105,"CIRCUIT DU BUZION","LOCAL",7.06,"CC DE SEILLE ET GRAND COURONNE","ARSEM",1]
[106,"GRAND CHEMIN D ALLEMAGNE","LOCAL",12.25,"CC DE VEZOUZE EN PIEMONT","CLUB VOSGIEN DE LA VEZOUZE",1]
[107,"CIRCUIT DES ROCHES","DEPARTEMENTAL",9.6199999999999992,"CA DE SAINT-DIE-DES-VOSGES","CLUB VOSGIEN DE LA VEZOUZE",1]
[109,"CIRCUIT DU VALLUM DE LA FOURASSE","LOCAL",3.33,"CC DU BASSIN DE POMPEY","CLUB ALPIN FRANCAIS DE NANCY",1]
[110,"CIRCUIT DES GENETRES","LOCAL",11.6,"CC DU PAYS DU SAINTOIS","LES RANDONNEURS DU SAINTOIS",1]
[111,"CIRCUIT DU MASSIF DES DEUX JUMELLES","LOCAL",1.84,"CC DE VEZOUZE EN PIEMONT","CLUB VOSGIEN DE BADONVILLER",1]
[112,"LINEAIRE DES ROCHES DE NOIRE JEANNETTE","LOCAL",0.57999999999999996,"CC DE VEZOUZE EN PIEMONT","CLUB VOSGIEN DE BADONVILLER",1]
[113,"CIRCUIT DES RESISTANTS","LOCAL",19.559999999999999,"CC DU PAYS DU SAINTOIS","LES RANDONNEURS DU SAINTOIS",1]
[114,"LIAISON CIRCUITS DES GENETRES ET DES RESISTANTS","LOCAL",2.0499999999999998,"CC DU PAYS DU SAINTOIS","LES RANDONNEURS DU SAINTOIS",1]
[115,"CIRCUIT DES SOURCES CHAUDES","LOCAL",8.1199999999999992,"CC DU PAYS DU SAINTOIS","LES RANDONNEURS DU SAINTOIS",1]
[116,"CIRCUIT D ARPONTOIS","LOCAL",14.1,"CC DU PAYS DU SAINTOIS","LES RANDONNEURS DU SAINTOIS",1]
[117,"CIRCUIT DU COUVENT","LOCAL",11.15,"CC DU PAYS DU SAINTOIS","LES RANDONNEURS DU SAINTOIS",1]
[118,"CIRCUIT DE NABONCOURT","LOCAL",9.92,"CC DU PAYS DU SAINTOIS","LES RANDONNEURS DU SAINTOIS",1]
[119,"CIRCUIT DE LA FONTAINE SAINT-GENGOULT","LOCAL",3.92,"CC DE SEILLE ET GRAND COURONNE","ARSEM",1]
[120,"CIRCUIT DES VENCHERES","DEPARTEMENTAL",12.62,"CC MAD ET MOSELLE","RANDO DES VALS DE MOSELLE ET DE L ESCH",1]
[122,"LIAISON CIRCUITS DE LA DEUILLE ET DU GRAND ROZOT","LOCAL",3.31,"CC DU PAYS DU SAINTOIS","LES RANDONNEURS DU SAINTOIS",1]
[123,"CIRCUIT HISTORIQUE","DEPARTEMENTAL",12.67,"CC DU PAYS DU SAINTOIS","LES RANDONNEURS DU SAINTOIS",1]
[124,"CIRCUIT BARRES - BRUNEHAUT","LOCAL",8.15,"CC DU PAYS DU SAINTOIS","LES RANDONNEURS DU SAINTOIS",1]
[125,"CIRCUIT DES LEGENDES","LOCAL",4.5199999999999996,"CC DU PAYS DU SAINTOIS","LES RANDONNEURS DU SAINTOIS",1]
[126,"CIRCUIT DES TROIS COMMUNAUTES","DEPARTEMENTAL",19.72,"CC DU PAYS DU SANON","LES RANDONNEURS DU SANON ET DU LUNEVILLOIS",1]
[127,"CIRCUIT DE LA VIERGE DE BELLEVILLE","LOCAL",6.18,"CC DU BASSIN DE POMPEY","RANDO DES VALS DE MOSELLE ET DE L ESCH",1]
[128,"GRAND TOUR DE MARBACHE","LOCAL",11.47,"CC DU BASSIN DE POMPEY","CLUB ALPIN FRANCAIS DE NANCY",1]
[129,"LIAISON CIRCUITS DE LA DEUILLE ET HISTORIQUE","LOCAL",14.96,"CC DU PAYS DU SAINTOIS","LES RANDONNEURS DU SAINTOIS",1]
[130,"LIAISON PRAYE - CIRCUIT DU COUVENT","LOCAL",4,"CC DU PAYS DU SAINTOIS","LES RANDONNEURS DU SAINTOIS",1]
[131,"CIRCUIT DU BOIS","LOCAL",14.36,"CC DU PAYS DU SANON","LES RANDONNEURS DU SANON ET DU LUNEVILLOIS",1]
[132,"CIRCUIT DU VAL SAINT-BARTHELEMY","LOCAL",6.71,"CC DU BASSIN DE POMPEY","CLUB ALPIN FRANCAIS DE NANCY",1]
[134,"CIRCUIT DES CLOCHERS ET DES EVRIEUX","LOCAL",16.95,"CC DU PAYS DU SANON","LES RANDONNEURS DU SANON ET DU LUNEVILLOIS",1]
[136,"CIRCUIT F3","LOCAL",14.14,"CC MOSELLE ET MADON","CLUB ALPIN FRANCAIS DE NANCY",1]
[137,"CIRCUIT H","LOCAL",10.39,"CC DU BASSIN DE POMPEY","CLUB ALPIN FRANCAIS DE NANCY",1]
[138,"CIRCUIT DU BRABI","LOCAL",7.46,"CC DU PAYS DU SANON","LES RANDONNEURS DU SANON ET DU LUNEVILLOIS",1]
[139,"CIRCUIT MARTAGON","LOCAL",11.16,"CC DU PAYS DU SANON","LES RANDONNEURS DU SANON ET DU LUNEVILLOIS",1]
[140,"CIRCUIT DU NOIRVAL","LOCAL",10.99,"CC DU BASSIN DE POMPEY","CLUB ALPIN FRANCAIS DE NANCY",1]
[141,"CIRCUIT DU VAL THIEBAULT","LOCAL",7.94,"CC DU BASSIN DE POMPEY","CLUB ALPIN FRANCAIS DE NANCY",1]
[142,"CIRCUIT I","LOCAL",15.53,"CC DU BASSIN DE POMPEY","CLUB ALPIN FRANCAIS DE NANCY",1]
[143,"CIRCUIT K","LOCAL",10.96,"CC DE SEILLE ET GRAND COURONNE","CLUB ALPIN FRANCAIS DE NANCY",1]
[144,"CIRCUIT DES QUATRE VILLAGES","LOCAL",15.25,"CC DU PAYS DU SANON","LES RANDONNEURS DU SANON ET DU LUNEVILLOIS",1]
[145,"CIRCUIT DES ROCHES BATAILLONS","LOCAL",2.36,"CC DE VEZOUZE EN PIEMONT","CLUB VOSGIEN DE BADONVILLER",1]
[146,"CIRCULAIRE DU FRONT 14-18","LOCAL",6.13,"CC DE VEZOUZE EN PIEMONT","CLUB VOSGIEN DE BADONVILLER",1]
[147,"ROUTE DE LA GALISIERE","LOCAL",1.33,"CC DE VEZOUZE EN PIEMONT","CLUB VOSGIEN DE BADONVILLER",1]
[148,"LINEAIRE DU STAND BRICOTTE","LOCAL",1.28,"CC DE VEZOUZE EN PIEMONT","CLUB VOSGIEN DE BADONVILLER",1]
[149,"SENTIER DU KIOSQUE A L ETOILE","LOCAL",1.58,"CC DE VEZOUZE EN PIEMONT","CLUB VOSGIEN DE BADONVILLER",1]
[150,"CIRCUIT DU MOULIN ET DU SANON","LOCAL",11.58,"CC DU PAYS DU SANON","LES RANDONNEURS DU SANON ET DU LUNEVILLOIS",1]
[151,"CIRCUIT DU TRAM","LOCAL",5.54,"CC MOSELLE ET MADON","CC DE MOSELLE ET MADON",1]
[152,"CIRCUIT DES FEES","LOCAL",12.68,"CC DU PAYS DU SANON","LES RANDONNEURS DU SANON ET DU LUNEVILLOIS",1]
[153,"CIRCUIT L","LOCAL",19.559999999999999,"CC DU BASSIN DE POMPEY","CLUB ALPIN FRANCAIS DE NANCY",1]
[155,"CIRCUIT O3","LOCAL",15.02,"CC DE SEILLE ET GRAND COURONNE","CLUB ALPIN FRANCAIS DE NANCY",1]
[156,"CIRCUIT DES EOLIENNES","LOCAL",8.17,"CC DE VEZOUZE EN PIEMONT","CLUB VOSGIEN DE BADONVILLER",1]
[158,"LIAISON CIRCUITS DES RESISTANTS - AUTOUR D HAROUE","LOCAL",2.4300000000000002,"CC DU PAYS DU SAINTOIS","LES RANDONNEURS DU SAINTOIS",1]
[159,"LIAISON OMELMONT - GERBECOURT-ET-HAPLEMONT","LOCAL",3.55,"CC DU PAYS DU SAINTOIS","LES RANDONNEURS DU SAINTOIS",1]
[162,"CIRCUIT DU FEYS - MONT THELOD","LOCAL",14.43,"CC DU PAYS DE COLOMBEY ET DU SUD TOULOIS","LES RANDONNEURS DU SAINTOIS",1]
[163,"LIAISON VIGNE DES DUCS - BRANDONS","LOCAL",6.74,"CC DU PAYS DU SAINTOIS","LES RANDONNEURS DU SAINTOIS",1]
[164,"CIRCUIT DE MOUACOURT","DEPARTEMENTAL",13.55,"CC DU PAYS DU SANON","LES RANDONNEURS DU SANON ET DU LUNEVILLOIS",1]
[165,"CIRCULAIRE DE LA ROCHE DES CORBEAUX","DEPARTEMENTAL",10.79,"CC DE VEZOUZE EN PIEMONT","CLUB VOSGIEN DE BADONVILLER",1]
[167,"ROCHES DE LA XAVEURE","LOCAL",2.08,"CC DE VEZOUZE EN PIEMONT","CLUB VOSGIEN DE BADONVILLER",1]
[168,"VIERGE CLARISSE - ROCHES DE LA XAVEURE","LOCAL",0.87,"CC DE VEZOUZE EN PIEMONT","CLUB VOSGIEN DE BADONVILLER",1]
[169,"CIRCUIT DES DEUX VALLEES","LOCAL",10.93,"CC DE VEZOUZE EN PIEMONT","CLUB VOSGIEN DE BADONVILLER",1]
[170,"CIRCUIT DE L ETANG","LOCAL",7.04,"CC DU PAYS DU SANON","LES RANDONNEURS DU SANON ET DU LUNEVILLOIS",1]
[171,"CIRCUIT DE RANZEY ET DE SAUSSI","LOCAL",15.93,"CC DU PAYS DU SANON","LES RANDONNEURS DU SANON ET DU LUNEVILLOIS",1]
[172,"BADONVILLER - GROTTE DES POILUS","LOCAL",5.6,"CC DE VEZOUZE EN PIEMONT","CLUB VOSGIEN DE BADONVILLER",1]
[173,"GROTTE DES POILUS - ROCHER DE DAME-GALLE","LOCAL",0.55000000000000004,"CA DE SAINT-DIE-DES-VOSGES","CLUB VOSGIEN DE BADONVILLER",1]
[174,"CROIX CHARPENTIER - ROCHES DE LA PIERRE A CHEVAL","LOCAL",0.85,"CA DE SAINT-DIE-DES-VOSGES","CLUB VOSGIEN DE BADONVILLER",1]
[175,"CROIX CHARPENTIER - LA MENELLE","LOCAL",3,"CA DE SAINT-DIE-DES-VOSGES","CLUB VOSGIEN DE BADONVILLER",1]
[176,"SENTIER D INTERPRETATION JEAN ET MANON","DEPARTEMENTAL",5.48,"CC DU PAYS DU SANON","LES RANDONNEURS DU SANON ET DU LUNEVILLOIS",1]
[177,"CIRCUIT DES QUATRE FRERES","LOCAL",10.37,"CC DU PAYS DU SANON","LES RANDONNEURS DU SANON ET DU LUNEVILLOIS",1]
[178,"CIRCUIT DE NAVEAUX","LOCAL",7.82,"CC DES PAYS DU SEL ET DU VERMOIS","LES RANDONNEURS DU SANON ET DU LUNEVILLOIS",1]
[179,"CIRCUIT DES RENARDS","LOCAL",9.66,"CC DU PAYS DU SANON","LES RANDONNEURS DU SANON ET DU LUNEVILLOIS",1]
[180,"PIERRE-PERCEE - LA MENELLE","LOCAL",2.38,"CA DE SAINT-DIE-DES-VOSGES","CLUB VOSGIEN DE BADONVILLER",1]
[181,"GR501 - MESSEIN - SEXEY-AUX-FORGES","DEPARTEMENTAL",13.11,"CC MOSELLE ET MADON","CLUB ALPIN FRANCAIS DE NANCY",1]
[184,"CIRCUIT DE LA VOIVRE","LOCAL",18.829999999999998,"CC MOSELLE ET MADON","CC DE MOSELLE ET MADON",1]
[185,"NEUFMAISONS - LA TROUCHE","LOCAL",8.7200000000000006,"CC DE VEZOUZE EN PIEMONT","CLUB VOSGIEN DE BADONVILLER",1]
[186,"GRP - TOUR DE NANCY - MESSEIN - LES BARAQUES","DEPARTEMENTAL",15.35,"CC MOSELLE ET MADON","CLUB ALPIN FRANCAIS DE NANCY",1]
[189,"CIRCUIT N","LOCAL",14.73,"METROPOLE DU GRAND NANCY","CLUB ALPIN FRANCAIS DE NANCY",1]
[190,"CIRCUIT F2","LOCAL",13.22,"CC MOSELLE ET MADON","CLUB ALPIN FRANCAIS DE NANCY",1]
[191,"BADONVILLER - PETITE NABLOTTE","LOCAL",2.42,"CC DE VEZOUZE EN PIEMONT","CLUB VOSGIEN DE BADONVILLER",1]
[192,"BADONVILLER - ROCHE DE VOHNE","LOCAL",7.98,"CC DE VEZOUZE EN PIEMONT","CLUB VOSGIEN DE BADONVILLER",1]
[193,"CIRCUIT DE MACLIFONTAINE","LOCAL",7.94,"CC DE SEILLE ET GRAND COURONNE","AIRPAS",1]
[194,"CIRCUIT C","LOCAL",13.82,"CC MOSELLE ET MADON","CLUB ALPIN FRANCAIS DE NANCY",1]
[195,"CIRCUIT DES DEUX LACS","LOCAL",6.18,"CA DE SAINT-DIE-DES-VOSGES","CLUB VOSGIEN DE BADONVILLER",1]
[196,"COL DE LA CHAPELOTTE - LA MENELLE","LOCAL",3.31,"CA DE SAINT-DIE-DES-VOSGES","CLUB VOSGIEN DE BADONVILLER",1]
[197,"CIRCUIT DES TRAMONT","LOCAL",12.19,"CC DU PAYS DE COLOMBEY ET DU SUD TOULOIS","ASSOCIATION INTERCOMMUNALE DES SENTIERS DE LA MIRABELLE",1]
[198,"GR501 - NANCY - SAIZERAIS","DEPARTEMENTAL",18.46,"METROPOLE DU GRAND NANCY","CLUB ALPIN FRANCAIS DE NANCY",1]
[199,"CIRCUIT DES TROIS FONTAINES","DEPARTEMENTAL",10.64,"CC DU PAYS DE COLOMBEY ET DU SUD TOULOIS","ASSOCIATION INTERCOMMUNALE DES SENTIERS DE LA MIRABELLE",1]
[200,"CIRCUIT J","LOCAL",13.71,"CC DU BASSIN DE POMPEY","CLUB ALPIN FRANCAIS DE NANCY",1]
[201,"CIRCUIT DE LA RUMONT","LOCAL",7.29,"CC DU BASSIN DE POMPEY","CLUB ALPIN FRANCAIS DE NANCY",1]
[202,"BARRAGE DU VIEUX PRE - ROCHE DE VOHNE","LOCAL",1.49,"CA DE SAINT-DIE-DES-VOSGES","CLUB VOSGIEN DE BADONVILLER",1]
[203,"ROCHE DE L ECUREUIL","LOCAL",0.12,"CC DE VEZOUZE EN PIEMONT","CLUB VOSGIEN DE BADONVILLER",1]
[204,"LINEAIRE LAXOU - MARON","LOCAL",13.2,"METROPOLE DU GRAND NANCY","CLUB ALPIN FRANCAIS DE NANCY",1]
[205,"CIRCUIT DES VERGERS","LOCAL",8.86,"CC MOSELLE ET MADON","CC DE MOSELLE ET MADON",1]
[206,"CIRCUIT DU BOIS DE JEHAYE","LOCAL",5.03,"CC DU BASSIN DE POMPEY","CLUB ALPIN FRANCAIS DE NANCY",1]
[208,"VALLEE DE VOHNE - CHERPIERRE","LOCAL",1.8,"CC DE VEZOUZE EN PIEMONT","CLUB VOSGIEN DE BADONVILLER",1]
[210,"ROCHER - CUNY","LOCAL",2.2599999999999998,"CC DE VEZOUZE EN PIEMONT","CLUB VOSGIEN DE BADONVILLER",1]
[211,"GRP - TOUR DE NANCY - LES BARAQUES - LIVERDUN","DEPARTEMENTAL",10.23,"CC DU BASSIN DE POMPEY","CLUB ALPIN FRANCAIS DE NANCY",1]
[212,"LIAISON LIVERDUN - POMPEY","LOCAL",5.31,"CC DU BASSIN DE POMPEY","CLUB ALPIN FRANCAIS DE NANCY",1]
[213,"LINEAIRE DE LA VALLEE DE VOHNE","LOCAL",4.8099999999999996,"CC DE VEZOUZE EN PIEMONT","CLUB VOSGIEN DE BADONVILLER",1]
[214,"TOUR DU LAC DU VIEUX PRE","DEPARTEMENTAL",27.98,"CA DE SAINT-DIE-DES-VOSGES","CLUB VOSGIEN DE BADONVILLER",1]
[215,"LINEAIRE DU MUSEE 14 - 18","LOCAL",3.07,"CC DE VEZOUZE EN PIEMONT","CLUB VOSGIEN DE BADONVILLER",1]
[217,"ORATOIRE DU BON DIEU","LOCAL",1.96,"CC DE VEZOUZE EN PIEMONT","CLUB VOSGIEN DE BADONVILLER",1]
[218,"CIRCUIT DES ETANGS","DEPARTEMENTAL",5.37,"CC DU BASSIN DE PONT-A-MOUSSON","LES SONNEURS DE LA COTE",1]
[219,"PIERRE A BASSIN","LOCAL",2.0299999999999998,"CC DE VEZOUZE EN PIEMONT","CLUB VOSGIEN DE BADONVILLER",1]
[220,"CIRCUIT DES REMPARTS","LOCAL",3.6,"CC DU TERRITOIRE DE LUNEVILLE A BACCARAT","CLUB VOSGIEN D AZERAILLES",1]
[221,"CIRCUIT DU PETIT MONT","LOCAL",8.2799999999999994,"CC DE SEILLE ET GRAND COURONNE","AIRPAS",1]
[222,"CIRCUIT DE FLEUR FONTAINE","DEPARTEMENTAL",14.16,"CC DE SEILLE ET GRAND COURONNE","AIRPAS",1]
[223,"CIRCUIT DES SARRAZINS","LOCAL",9.15,"CC DE SEILLE ET GRAND COURONNE","AIRPAS",1]
[224,"CIRCUIT DE LA GRANDE BOUZULE","LOCAL",14.49,"CC DE SEILLE ET GRAND COURONNE","AIRPAS",1]
[225,"CIRCUIT DE L EAU SALEE","LOCAL",11.37,"CC DU PAYS DE COLOMBEY ET DU SUD TOULOIS","ASSOCIATION INTERCOMMUNALE DES SENTIERS DES DEUILLES",1]
[226,"GR501 - DOMMARTIN-LES-TOUL - VILLEY-SAINT-ETIENNE","DEPARTEMENTAL",13.76,"CC TERRES TOULOISES","ASSOCIATION INTERCOMMUNALE DES SENTIERS DE LA LINOTTE",1]
[227,"CIRCULAIRE DE BLAMONT","LOCAL",4.18,"CC DE VEZOUZE EN PIEMONT","CLUB VOSGIEN DE BADONVILLER",1]
[228,"CIRCUIT DU BOIS BRULE","DEPARTEMENTAL",11.52,"CC DU PAYS DE COLOMBEY ET DU SUD TOULOIS","ASSOCIATION INTERCOMMUNALE DES SENTIERS DES DEUILLES",1]
[229,"BARRAGE - CHERPIERRE","LOCAL",6.84,"CA DE SAINT-DIE-DES-VOSGES","CLUB VOSGIEN DE BADONVILLER",1]
[230,"LINEAIRE DE CHERPIERRE","LOCAL",6.9,"CC DE VEZOUZE EN PIEMONT","CLUB VOSGIEN DE BADONVILLER",1]
[231,"LIAISON BOUXIERES-AUX-DAMES - CIRCUIT L","LOCAL",2.69,"CC DU BASSIN DE POMPEY","CLUB ALPIN FRANCAIS DE NANCY",1]
[232,"CIRCUIT DU BOIS DU CHAPITRE","LOCAL",12.1,"CC DU BASSIN DE POMPEY","CLUB ALPIN FRANCAIS DE NANCY",1]
[233,"CIRCUIT DU RAON","LOCAL",15.98,"CC DE SEILLE ET GRAND COURONNE","AIRPAS",1]
[234,"CIRCUIT LE HAUT DES FOURS","LOCAL",12.39,"CC DE SEILLE ET GRAND COURONNE","AIRPAS",1]
[235,"SENTIER DE LA MAQUIGNERE","LOCAL",5.75,"CC DE SEILLE ET GRAND COURONNE","AIRPAS",1]
[236,"CIRCUIT DU BOIS GAILLARD","LOCAL",6.64,"CC TERRES TOULOISES","ASSOCIATION INTERCOMMUNALE DES SENTIERS DES DEUILLES",1]
[237,"CIRCUIT DE LA SABOTTIERE","LOCAL",4.0599999999999996,"CC TERRES TOULOISES","ASSOCIATION INTERCOMMUNALE DES SENTIERS DES DEUILLES",1]
[238,"CIRCUIT DE LA POUDRIERE","LOCAL",9.11,"CC TERRES TOULOISES","ASSOCIATION INTERCOMMUNALE DES SENTIERS DES DEUILLES",1]
[239,"LIAISON GR501 - MESSEIN - VILLERS-LES-NANCY","DEPARTEMENTAL",12.59,"CC MOSELLE ET MADON","CLUB ALPIN FRANCAIS DE NANCY",1]
[240,"LIAISON BULLIGNY - CREZILLES","LOCAL",3.05,"CC DU PAYS DE COLOMBEY ET DU SUD TOULOIS","ASSOCIATION INTERCOMMUNALE DES SENTIERS DES DEUILLES",1]
[241,"CIRCUIT SAINTE-REINE","LOCAL",5.91,"CC TERRES TOULOISES","ASSOCIATION INTERCOMMUNALE DES SENTIERS DES DEUILLES",1]
[242,"CIRCUIT SAINT-FIACRE","LOCAL",10.66,"CC TERRES TOULOISES","ASSOCIATION INTERCOMMUNALE DES SENTIERS DES DEUILLES",1]
[243,"LA GRANDE BOUCLE","LOCAL",6.73,"CC DES PAYS DU SEL ET DU VERMOIS","RANDO SEL ET VERMOIS",1]
[244,"GR5 - LIVERDUN - NANCY","DEPARTEMENTAL",20.81,"CC DU BASSIN DE POMPEY","CLUB ALPIN FRANCAIS DE NANCY",1]
[245,"GR501 - LIVERDUN - POMPEY","DEPARTEMENTAL",3.4,"CC DU BASSIN DE POMPEY","CLUB ALPIN FRANCAIS DE NANCY",1]
[246,"GRP - TOUR DE NANCY - LIVERDUN - CUSTINES","DEPARTEMENTAL",10,"CC DU BASSIN DE POMPEY","CLUB ALPIN FRANCAIS DE NANCY",1]
[248,"CIRCUIT DE LA CROIX DES CARMES","LOCAL",12.6,"CC DU BASSIN DE PONT-A-MOUSSON","TOURISME ET LOISIRS AU PERE HILARION",1]
[249,"CIRCUIT DES LOUPS","DEPARTEMENTAL",20.13,"CC DU BASSIN DE PONT-A-MOUSSON","TOURISME ET LOISIRS AU PERE HILARION",1]
[253,"CIRCUIT SAINT-MAURICE","LOCAL",5.58,"CC TERRES TOULOISES","ASSOCIATION INTERCOMMUNALE DES SENTIERS DES DEUILLES",1]
[254,"CIRCUIT DE LA BOUVADE","LOCAL",14.32,"CC TERRES TOULOISES","ASSOCIATION INTERCOMMUNALE DES SENTIERS DES DEUILLES",1]
[255,"CIRCUIT DE LA VIERGEOTTE","LOCAL",15.07,"CC TERRES TOULOISES","ASSOCIATION INTERCOMMUNALE DES SENTIERS DES DEUILLES",1]
[256,"CIRCUIT GRAND-FONTAINE","LOCAL",7.9,"CC MAD ET MOSELLE","LES SONNEURS DE LA COTE",1]
[258,"CIRCUIT DE LA VALLEE DES PRES","LOCAL",19.84,"CC DU PAYS DE COLOMBEY ET DU SUD TOULOIS","ASSOCIATION INTERCOMMUNALE DES SENTIERS DES DEUILLES",1]
[260,"CIRCUIT DES CENT CHENES","LOCAL",6.94,"CC DE SEILLE ET GRAND COURONNE","AIRPAS",1]
[261,"CIRCUIT DE REMBENOIR","LOCAL",9.83,"CC DE SEILLE ET GRAND COURONNE","AIRPAS",1]
[262,"CIRCUIT DE MEINE A SAINT FIACRE","LOCAL",20.66,"CC DU PAYS DE COLOMBEY ET DU SUD TOULOIS","ASSOCIATION INTERCOMMUNALE DES SENTIERS DES DEUILLES",1]
[263,"CIRCUIT DES CROIX","LOCAL",11.27,"CC MOSELLE ET MADON","ASSOCIATION INTERCOMMUNALE DES SENTIERS DES DEUILLES",1]
[264,"SENTIER DES BORNES","LOCAL",17.61,"CC TERRES TOULOISES","ASSOCIATION INTERCOMMUNALE DES SENTIERS DES DEUILLES",1]
[265,"CIRCUIT DU KARWA","LOCAL",13.64,"CC DU PAYS DE COLOMBEY ET DU SUD TOULOIS","ASSOCIATION INTERCOMMUNALE DES SENTIERS DES DEUILLES",1]
[266,"CIRCUIT DU TROU DES GLANES","LOCAL",20.77,"CC DU PAYS DE COLOMBEY ET DU SUD TOULOIS","ASSOCIATION INTERCOMMUNALE DES SENTIERS DES DEUILLES",1]
[267,"CIRCUIT DE LA VOIVRE","LOCAL",27.1,"CC DE SEILLE ET GRAND COURONNE","AIRPAS",1]
[268,"CIRCUIT DE LA DEUILLE","LOCAL",16.079999999999998,"CC DU PAYS DE COLOMBEY ET DU SUD TOULOIS","ASSOCIATION INTERCOMMUNALE DES SENTIERS DES DEUILLES",1]
[269,"CIRCUIT 11 - BOIS DU FOUR","LOCAL",7.24,"CC MOSELLE ET MADON","CC DE MOSELLE ET MADON",1]
[270,"BOUCLES DES ENTONNOIRS","LOCAL",23.53,"CC DE VEZOUZE EN PIEMONT","CC DE VEZOUZE EN PIEMONT",1]
[271,"GR534 - NANCY - BOSSERVILLE","DEPARTEMENTAL",8.2899999999999991,"METROPOLE DU GRAND NANCY","CLUB VOSGIEN DE NANCY",1]
[272,"CIRCUIT DES EVRIEUX","LOCAL",6.27,"CC DE VEZOUZE EN PIEMONT","CDRP 54 - COMMISSION SENTIERS 54",1]
[273,"SENTIER DE RANZEY","DEPARTEMENTAL",5.59,"CC DU PAYS DU SANON","LES RANDONNEURS DU SANON ET DU LUNEVILLOIS",1]
[274,"CIRCUIT DU JURY","LOCAL",8.01,"CC MAD ET MOSELLE","RANDO TROIS VALLEES",1]
[275,"SORTIE PEDESTRE DE LA ZNIEFF","LOCAL",2.39,"CC DU BASSIN DE POMPEY","CLUB ALPIN FRANCAIS DE NANCY",1]
[276,"GR534 - CROISMARE - SAINT-EPVRE","DEPARTEMENTAL",12.32,"CC DU TERRITOIRE DE LUNEVILLE A BACCARAT","CLUB VOSGIEN DE NANCY",1]
[277,"CIRCUIT DE LA MINE A L USINE","LOCAL",11.01,"CC MOSELLE ET MADON","CC DE MOSELLE ET MADON",1]
[278,"CIRCUIT DES VIGNES","LOCAL",3.3,"CC DU TERRITOIRE DE LUNEVILLE A BACCARAT","CLUB VOSGIEN D AZERAILLES",1]
[281,"GR533 - LA BOUDOUSE - CROIX COLLIN","DEPARTEMENTAL",8.1300000000000008,"CC DE VEZOUZE EN PIEMONT","CLUB VOSGIEN DE LA VEZOUZE",1]
[283,"CIRCUIT DES ROCHES","LOCAL",8.99,"CC MOSELLE ET MADON","CC DE MOSELLE ET MADON",1]
[284,"CIRCUIT DE LA MOSELLE ET DE L ANCIEN CANAL LATERAL A LA MOSELLE","LOCAL",8.39,"CC DU BASSIN DE PONT-A-MOUSSON","LES SONNEURS DE LA COTE",1]
[285,"CIRCUIT DE LA VERDURETTE","LOCAL",6.84,"CC DU TERRITOIRE DE LUNEVILLE A BACCARAT","CLUB VOSGIEN D AZERAILLES",1]
[286,"CIRCUIT DE LA RONDE SAUSSAIE","LOCAL",3.99,"CC DU BASSIN DE PONT-A-MOUSSON","LES SONNEURS DE LA COTE",1]
[287,"CIRCUIT DU GRAMMONT","LOCAL",18.32,"CC TERRES TOULOISES","ASSOCIATION INTERCOMMUNALE DES SENTIERS DE LA LINOTTE",1]
[288,"CIRCUIT DU BOIS LATOUR","LOCAL",7.94,"CC MEURTHE, MORTAGNE, MOSELLE","CLUB VOSGIEN DE BAYON-GERBEVILLER",1]
[290,"CIRCUIT DES HAUTS DE VIGNEULLES","LOCAL",4.34,"CC MEURTHE, MORTAGNE, MOSELLE","CLUB VOSGIEN DU VAL DE MEURTHE (AIR COMME RANDO)",1]
[291,"XERMAMENIL - REHAINVILLER","LOCAL",6.42,"CC DU TERRITOIRE DE LUNEVILLE A BACCARAT","CLUB VOSGIEN DE BAYON-GERBEVILLER",1]
[292,"CIRCUIT DES ETANGS AUX COTES DE MEURTHE","DEPARTEMENTAL",19.88,"CC MEURTHE, MORTAGNE, MOSELLE","CLUB VOSGIEN DE BAYON-GERBEVILLER",1]
[293,"CIRCUIT SAINTE-BARBE","LOCAL",12.39,"CC MOSELLE ET MADON","CC DE MOSELLE ET MADON",1]
[294,"LIAISON MONT-SUR-MEURTHE - CHARMOIS","LOCAL",6.22,"CC MEURTHE, MORTAGNE, MOSELLE","CLUB VOSGIEN DU VAL DE MEURTHE (AIR COMME RANDO)",1]
[295,"LIAISON DE LA FOURASSE AU CHATEAU DE CHAMPIGNEULLES","LOCAL",1.39,"CC DU BASSIN DE POMPEY","ARSEM",0]
[296,"CIRCUIT DU BOIS BAS","LOCAL",7.83,"CC MOSELLE ET MADON","CC DE MOSELLE ET MADON",1]
[297,"CIRCUIT DES BORNES","LOCAL",6.42,"CC MOSELLE ET MADON","CC DE MOSELLE ET MADON",1]
[298,"CIRCUIT DU CHATEAU DE MONCEL A BRUVILLE","DEPARTEMENTAL",7.44,"CC ORNE LORRAINE CONFLUENCES","UNION SPORTIVE DU JARNISY - SECTION RANDO",1]
[299,"GR501 - PONT-A-MOUSSON - SAIZERAIS","DEPARTEMENTAL",18.39,"CC DU BASSIN DE PONT-A-MOUSSON","RANDO DES VALS DE MOSELLE ET DE L ESCH",1]
[300,"FROVILLE - COTES DE MOSELLE","LOCAL",24.52,"CC MEURTHE, MORTAGNE, MOSELLE","CLUB VOSGIEN DE BAYON-GERBEVILLER",1]
[301,"CIRCUIT DES VIGNES","LOCAL",4.24,"CC TERRES TOULOISES","ASSOCIATION INTERCOMMUNALE DES SENTIERS DE LA LINOTTE",1]
[302,"BOUCLE DU TERROUIN","LOCAL",23.45,"CC TERRES TOULOISES","ASSOCIATION INTERCOMMUNALE DES SENTIERS DE LA LINOTTE",1]
[303,"BOUCLE DES SOURCES","DEPARTEMENTAL",26.53,"CC TERRES TOULOISES","ASSOCIATION INTERCOMMUNALE DES SENTIERS DE LA LINOTTE",1]
[304,"FRAIMBOIS - REHAINVILLER","LOCAL",8.61,"CC DU TERRITOIRE DE LUNEVILLE A BACCARAT","CLUB VOSGIEN DE BAYON-GERBEVILLER",1]
[305,"SENTIER DE PROFONDE FONTAINE","LOCAL",3.53,"CC TERRE LORRAINE DU LONGUYONNAIS","CLUB VOSGIEN DE LA VALLEE DE LA CHIERS",1]
[306,"GR703 - TOUL - CHOLOY-MENILLOT","DEPARTEMENTAL",7.51,"CC TERRES TOULOISES","ASSOCIATION INTERCOMMUNALE DES SENTIERS DE LA LINOTTE",1]
[307,"CIRCUIT DU RUPT-DE-MAD ET MADINE","DEPARTEMENTAL",22.8,"CC MAD ET MOSELLE","LES SONNEURS DE LA COTE",1]
[309,"CIRCUIT DE LA PETITE LINOTTE","DEPARTEMENTAL",9.52,"CC TERRES TOULOISES","ASSOCIATION INTERCOMMUNALE DES SENTIERS DE LA LINOTTE",1]
[310,"CIRCUIT DU BOIS ROUVROYE","LOCAL",8.6300000000000008,"CC DU TERRITOIRE DE LUNEVILLE A BACCARAT","CLUB VOSGIEN D AZERAILLES",1]
[311,"CIRCUIT DU ROMONT","LOCAL",6.7,"CC TERRES TOULOISES","ASSOCIATION INTERCOMMUNALE DES SENTIERS DE LA LINOTTE",1]
[312,"CIRCUIT DES SONNEURS DE LA COTE","LOCAL",6.09,"CC DU BASSIN DE PONT-A-MOUSSON","LES SONNEURS DE LA COTE",1]
[313,"GR534 - PULNOY - BOSSERVILLE","DEPARTEMENTAL",4.66,"METROPOLE DU GRAND NANCY","CLUB VOSGIEN DE NANCY",1]
[314,"CIRCUIT DES SOURCES","LOCAL",6.85,"CC MOSELLE ET MADON","CC DE MOSELLE ET MADON",1]
[315,"PLAINES ET CANAUX","LOCAL",7.4,"METROPOLE DU GRAND NANCY","SAULXURES RANDO 54",1]
[316,"CIRCUIT DES FORTS","LOCAL",8.67,"CC TERRES TOULOISES","ASSOCIATION INTERCOMMUNALE DES SENTIERS DE LA LINOTTE",1]
[317,"GR534 - VARANGEVILLE - CREVIC","DEPARTEMENTAL",10,"CC DES PAYS DU SEL ET DU VERMOIS","CLUB VOSGIEN DE NANCY",1]
[318,"CIRCUIT DE DOMFONTAINE","DEPARTEMENTAL",9.5399999999999991,"CC TERRES TOULOISES","ASSOCIATION INTERCOMMUNALE DES SENTIERS DE LA LINOTTE",1]
[319,"GR534 - CREVIC - SAINT-EPVRE","DEPARTEMENTAL",8.94,"CC DES PAYS DU SEL ET DU VERMOIS","CLUB VOSGIEN DE NANCY",1]
[320,"GR534 - LANEUVEVILLE-AUX-BOIS - AMENONCOURT","DEPARTEMENTAL",18.71,"CC DU TERRITOIRE DE LUNEVILLE A BACCARAT","CLUB VOSGIEN DE NANCY",1]
[321,"GR534 - SAULXURES-LES-NANCY - LENONCOURT","DEPARTEMENTAL",6.47,"METROPOLE DU GRAND NANCY","CLUB VOSGIEN DE NANCY",1]
[322,"GR534 - LENONCOURT - VARANGEVILLE","DEPARTEMENTAL",6.51,"CC DE SEILLE ET GRAND COURONNE","CLUB VOSGIEN DE NANCY",1]
[323,"CIRCUIT DU VAL DES NONNES","DEPARTEMENTAL",14.83,"CC TERRES TOULOISES","ASSOCIATION INTERCOMMUNALE DES SENTIERS DE LA LINOTTE",1]
[325,"GERBEVILLER - FRAIMBOIS","LOCAL",13.64,"CC MEURTHE, MORTAGNE, MOSELLE","CLUB VOSGIEN DE BAYON-GERBEVILLER",1]
[326,"GR534 - LANEUVEVILLE-AUX-BOIS - CROISMARE","DEPARTEMENTAL",10.1,"CC DU TERRITOIRE DE LUNEVILLE A BACCARAT","CLUB VOSGIEN DE NANCY",1]
[327,"GR501 - VILLEY-LE-SEC - SEXEY-AUX-FORGES","DEPARTEMENTAL",11.36,"CC TERRES TOULOISES","CLUB VOSGIEN DE NANCY",1]
[329,"GR501 - DOMMARTIN-LES-TOUL - VILLEY-LE-SEC","DEPARTEMENTAL",8.26,"CC TERRES TOULOISES","ASSOCIATION INTERCOMMUNALE DES SENTIERS DE LA LINOTTE",1]
[330,"LIAISON GIRIVILLER - ARBORETUM","LOCAL",1.1000000000000001,"CC MEURTHE, MORTAGNE, MOSELLE","CLUB VOSGIEN DE BAYON-GERBEVILLER",1]
[332,"MAGNIERES - COYVILLER (SAINT-BOINGT - BAYON)","DEPARTEMENTAL",19.37,"CC MEURTHE, MORTAGNE, MOSELLE","CLUB VOSGIEN DE BAYON-GERBEVILLER",1]
[333,"LIAISON GERBEVILLER - LAMATH","DEPARTEMENTAL",8.89,"CC MEURTHE, MORTAGNE, MOSELLE","CLUB VOSGIEN DE BAYON-GERBEVILLER",1]
[334,"CIRCUIT DE LA FORET COMMUNALE","LOCAL",9.5399999999999991,"CC DU BASSIN DE PONT-A-MOUSSON","LES SONNEURS DE LA COTE",1]
[335,"CIRCUIT DES VERGERS DE LA COTE","LOCAL",7.32,"CC DU BASSIN DE PONT-A-MOUSSON","LES SONNEURS DE LA COTE",1]
[336,"CIRCUIT DU VAL DE L ANE","LOCAL",13.1,"CC TERRES TOULOISES","ASSOCIATION INTERCOMMUNALE DES SENTIERS DE LA LINOTTE",1]
[337,"BOUCLE DE LA MOSELLE ET DE LA VALLEE DU TREY","LOCAL",21.72,"CC DU BASSIN DE PONT-A-MOUSSON","LES SONNEURS DE LA COTE",1]
[338,"CIRCUIT 12 - SAINTE-ANNE","LOCAL",13.52,"CC MOSELLE ET MADON","CC DE MOSELLE ET MADON",1]
[339,"CIRCUIT DE SAINTE-MARIE","LOCAL",14.8,"CC MAD ET MOSELLE","LES SONNEURS DE LA COTE",1]
[340,"CIRCUIT DU POINT DU JOUR","LOCAL",11.07,"CC TERRES TOULOISES","ASSOCIATION INTERCOMMUNALE DES SENTIERS DE LA LINOTTE",1]
[341,"BOUCLE DU MOULIN","LOCAL",18.63,"CC DU BASSIN DE PONT-A-MOUSSON","LES SONNEURS DE LA COTE",1]
[342,"CIRCUIT DES ABREUVOIRS","LOCAL",14.66,"CC MAD ET MOSELLE","LES SONNEURS DE LA COTE",1]
[343,"BOUCLE DES MOULINS","LOCAL",17.95,"CC TERRES TOULOISES","ASSOCIATION INTERCOMMUNALE DES SENTIERS DE LA LINOTTE",1]
[344,"LA TRAVERSEE DE PRENY","LOCAL",6.85,"CC MAD ET MOSELLE","LES SONNEURS DE LA COTE",1]
[345,"GR703 - CHOLOY-MENILLOT - RIGNY-SAINT-MARTIN","DEPARTEMENTAL",5.88,"CC TERRES TOULOISES","ASSOCIATION INTERCOMMUNALE DES SENTIERS DE LA LINOTTE",1]
[346,"BOUCLE VAL ET PLATEAU","DEPARTEMENTAL",16.95,"CC DU BASSIN DE PONT-A-MOUSSON","LES SONNEURS DE LA COTE",1]
[347,"CIRCUIT DU JARNISY","LOCAL",15.67,"CC ORNE LORRAINE CONFLUENCES","UNION SPORTIVE DU JARNISY - SECTION RANDO",1]
[348,"CIRCUIT DU BOIS QUI TOUSSE","LOCAL",9.31,"CC MEURTHE, MORTAGNE, MOSELLE","CLUB VOSGIEN DU VAL DE MEURTHE (AIR COMME RANDO)",1]
[349,"GR5 - ARNAVILLE - VILCEY-SUR-MAD","DEPARTEMENTAL",24.83,"CC MAD ET MOSELLE","LES SONNEURS DE LA COTE",1]
[350,"BOUCLE SANON-VEZOUZE","DEPARTEMENTAL",38.04,"CC DU PAYS DU SANON","LES RANDONNEURS DU SANON ET DU LUNEVILLOIS",1]
[351,"SENTIER DES RAPPES","LOCAL",8.11,"CC DU TERRITOIRE DE LUNEVILLE A BACCARAT","LES RANDONNEURS DU SANON ET DU LUNEVILLOIS",1]
[352,"GRP - ENTRE COTES DE MOSELLE ET COTES DE MEUSE - VILLECEY-SUR-MAD - ARNAVILLE","DEPARTEMENTAL",7.13,"CC MAD ET MOSELLE","LES SONNEURS DE LA COTE",1]
[353,"GRP - ENTRE COTES DE MOSELLE ET COTES DE MEUSE - THIAUCOURT-REGNIEVILLE - NONSART-LAMARCHE","DEPARTEMENTAL",10.78,"CC MAD ET MOSELLE","LES SONNEURS DE LA COTE",1]
[354,"GR501 - MOUSSON - PONT-A-MOUSSON","DEPARTEMENTAL",2.81,"CC DU BASSIN DE PONT-A-MOUSSON","LES SONNEURS DE LA COTE",1]
[355,"BALADE A HATRIZE","LOCAL",11.99,"CC ORNE LORRAINE CONFLUENCES","LES RANDONNEURS DU PAYS DE L ORNE",1]
[357,"CIRCUIT L.P.O.","LOCAL",12.51,"CC ORNE LORRAINE CONFLUENCES","LES RANDONNEURS DU PAYS DE L ORNE",1]
[358,"GR501 - MOUSSON - MARDIGNY","DEPARTEMENTAL",11.62,"CC DU BASSIN DE PONT-A-MOUSSON","LES SONNEURS DE LA COTE",1]
[359,"SENTIER DU FER","LOCAL",12.99,"CC DU PAYS DE COLOMBEY ET DU SUD TOULOIS","CDRP 54 - COMMISSION SENTIERS 54",1]
[360,"GR5 - VILCEY-SUR-TREY - MONTAUVILLE","DEPARTEMENTAL",5.95,"CC MAD ET MOSELLE","TOURISME ET LOISIRS AU PERE HILARION",1]
[361,"BOUCLE DE LA MOSELLE ET DU RUPT-DE-MAD","DEPARTEMENTAL",22.65,"CC DU BASSIN DE PONT-A-MOUSSON","LES SONNEURS DE LA COTE",1]
[362,"BOUCLE DE LA GRANGE EN HAYE","DEPARTEMENTAL",18.34,"CC DU BASSIN DE PONT-A-MOUSSON","LES SONNEURS DE LA COTE",1]
[364,"CIRCUIT D ADOMENIL CHATEAU","LOCAL",21.45,"CC MEURTHE, MORTAGNE, MOSELLE","CLUB VOSGIEN DU VAL DE MEURTHE (AIR COMME RANDO)",1]
[365,"AU FIL DE LA MORTAGNE","LOCAL",4.32,"CC MEURTHE, MORTAGNE, MOSELLE","CLUB VOSGIEN DU VAL DE MEURTHE (AIR COMME RANDO)",1]
[366,"CIRCUIT DE FOUXON","LOCAL",7.85,"CC DU TERRITOIRE DE LUNEVILLE A BACCARAT","CLUB VOSGIEN DU VAL DE MEURTHE (AIR COMME RANDO)",1]
[367,"CIRCUIT DU BREUIL","DEPARTEMENTAL",10.26,"CC MEURTHE, MORTAGNE, MOSELLE","CLUB VOSGIEN DU VAL DE MEURTHE (AIR COMME RANDO)",1]
[368,"CHEMIN DU PENDU","LOCAL",3.33,"CC MEURTHE, MORTAGNE, MOSELLE","CLUB VOSGIEN DU VAL DE MEURTHE (AIR COMME RANDO)",1]
[369,"LIAISON MONT-SUR-MEURTHE - REHAINVILLER","LOCAL",2.62,"CC MEURTHE, MORTAGNE, MOSELLE","CLUB VOSGIEN DU VAL DE MEURTHE (AIR COMME RANDO)",1]
[370,"CIRCUIT DES SOURCES","LOCAL",12.9,"CC MOSELLE ET MADON","CC DE MOSELLE ET MADON",1]
[371,"CIRCUIT DE LA CHARMOISE","DEPARTEMENTAL",12.67,"CC MEURTHE, MORTAGNE, MOSELLE","CLUB VOSGIEN DU VAL DE MEURTHE (AIR COMME RANDO)",1]
[372,"CIRCUIT DES TROIS CHEMINS","LOCAL",7.31,"CC MOSELLE ET MADON","CC DE MOSELLE ET MADON",1]
[373,"CIRCUIT SAINTE-BARBE","LOCAL",12.14,"CC MOSELLE ET MADON","CC DE MOSELLE ET MADON",1]
[374,"CIRCUIT DU BOIS DES MOINES","LOCAL",6.2,"CC ORNE LORRAINE CONFLUENCES","LES RANDONNEURS DU PAYS DE L ORNE",1]
[375,"CIRCUIT DE NAPATANT","LOCAL",7.26,"CC ORNE LORRAINE CONFLUENCES","LES RANDONNEURS DU PAYS DE L ORNE",1]
[376,"CIRCUIT DU HAUT CHARME","LOCAL",11.21,"CC ORNE LORRAINE CONFLUENCES","LES RANDONNEURS DU PAYS DE L ORNE",1]
[377,"GRP - ENTRE COTES DE MOSELLE ET COTES DE MEUSE - ONVILLE - THIAUCOURT-REGNIEVILLE","DEPARTEMENTAL",14.35,"CC MAD ET MOSELLE","LES SONNEURS DE LA COTE",1]
[378,"LIAISON BARBONVILLE - VIGNEULLES","LOCAL",1.51,"CC MEURTHE, MORTAGNE, MOSELLE","CLUB VOSGIEN DU VAL DE MEURTHE (AIR COMME RANDO)",1]
[380,"GR5 - ROSIERES-EN-HAYE - MAMEY","DEPARTEMENTAL",20,"CC DU BASSIN DE PONT-A-MOUSSON","RANDO DES VALS DE MOSELLE ET DE L ESCH",1]
[381,"LA VILLE HAUTE ET SES REMPARTS","LOCAL",3.6,"CA GRAND LONGWY AGGLOMERATION","HERSERANGE NATURE PLEIN AIR",0]
[382,"LIAISON REMPARTS - VERRIERS","LOCAL",2.21,"CC DU TERRITOIRE DE LUNEVILLE A BACCARAT","CLUB VOSGIEN D AZERAILLES",0]
[383,"SENTIER DES ORCHIDEES","LOCAL",1.6,"CC DU BASSIN DE PONT-A-MOUSSON","RANDO DES VALS DE MOSELLE ET DE L ESCH",0]
[384,"CIRCUIT DU PLATEAU DE HAYE","DEPARTEMENTAL",21.85,"CC MAD ET MOSELLE","RANDO TROIS VALLEES",1]
[385,"CIRCUIT DU RUISSEAU DE LA VALLEE","LOCAL",13.02,"CC ORNE LORRAINE CONFLUENCES","LES RANDONNEURS DU PAYS DE L ORNE",1]
[386,"SENTIER DE LA VIEILLE CHOPINE","DEPARTEMENTAL",14.88,"CC DU PAYS DE COLOMBEY ET DU SUD TOULOIS","ASSOCIATION INTERCOMMUNALE DES SENTIERS DE LA MIRABELLE",1]
[389,"BOUCLE DE LANTEFONTAINE","LOCAL",10.130000000000001,"CC ORNE LORRAINE CONFLUENCES","LES RANDONNEURS DU PAYS DE L ORNE",1]
[391,"GR501 - ROVILLE-DEVANT-BAYON - GRIPPORT","DEPARTEMENTAL",14.14,"CC DU PAYS DU SAINTOIS","LES RANDONNEURS DU SAINTOIS",1]
[392,"CIRCUIT DE LA VIGNOTTE","LOCAL",5.22,"CC MAD ET MOSELLE","RANDO DES VALS DE MOSELLE ET DE L ESCH",1]
[393,"CIRCUIT DU PLATEAU DE LA ROCHETTE","LOCAL",5.57,"CC DE SEILLE ET GRAND COURONNE","ARSEM",1]
[394,"CIRCUIT DES ANCIENS BOIS","LOCAL",7.11,"CC DE SEILLE ET GRAND COURONNE","SAULXURES RANDO 54",1]
[395,"CIRCUIT DE JAILLON","DEPARTEMENTAL",7.81,"CC TERRES TOULOISES","RANDONNEES PEDESTRES LIVERDUNOISES",1]
[396,"CIRCUIT DE NATROU","LOCAL",12,"CC DU BASSIN DE POMPEY","RANDONNEES PEDESTRES LIVERDUNOISES",1]
[397,"GR501 - VILLEY-SAINT-ETIENNE - LIVERDUN","DEPARTEMENTAL",9.89,"CC TERRES TOULOISES","CLUB ALPIN FRANCAIS DE NANCY",1]
[398,"GR501 - FLAVIGNY-SUR-MOSELLE - MESSEIN","DEPARTEMENTAL",4.59,"CC MOSELLE ET MADON","RANDO MENIL",1]
[399,"GR501 - CREVECHAMPS - FLAVIGNY-SUR-MOSELLE","DEPARTEMENTAL",10.54,"CC MEURTHE, MORTAGNE, MOSELLE","RANDO SEL ET VERMOIS",1]
[400,"SENTIER DES ETANGS","LOCAL",11.09,"CC MOSELLE ET MADON","RANDO MENIL",1]
[402,"GR501 - ROVILLE-DEVANT-BAYON - CREVECHAMPS","DEPARTEMENTAL",7.19,"CC DU PAYS DU SAINTOIS","LES RANDONNEURS DU SAINTOIS",1]
[403,"CIRCUIT DU GRAND TOUR DE MOUSSON","DEPARTEMENTAL",14.67,"CC DU BASSIN DE PONT-A-MOUSSON","LES SONNEURS DE LA COTE",0]
[404,"CIRCUIT DE JONC FONTAINE","LOCAL",8.18,"CC DU BASSIN DE PONT-A-MOUSSON","RANDO DES VALS DE MOSELLE ET DE L ESCH",1]
[405,"BOUCLE DE LA FONTAINE DES CORBEAUX","LOCAL",20.92,"CC DU BASSIN DE PONT-A-MOUSSON","RANDO DES VALS DE MOSELLE ET DE L ESCH",1]
[407,"CIRCUIT ENTRE CHAMPES ET CHARBONNIERE","LOCAL",14.35,"CC DE VEZOUZE EN PIEMONT","CC DE VEZOUZE EN PIEMONT",1]
[408,"BOUCLE DE LA CROIX CHARBONNIER","LOCAL",13.73,"CC DU BASSIN DE PONT-A-MOUSSON","RANDO DES VALS DE MOSELLE ET DE L ESCH",1]
[410,"CIRCUIT DE LA BLETTE","LOCAL",14.25,"CC DE VEZOUZE EN PIEMONT","CC DE VEZOUZE EN PIEMONT",1]
[411,"VARIANTE SAINTE-AGATHE","LOCAL",5.67,"CC DE VEZOUZE EN PIEMONT","CC DE VEZOUZE EN PIEMONT",1]
[412,"MAGNIERES - COYVILLER (BAYON - HAUSSONVILLE)","DEPARTEMENTAL",8.08,"CC MEURTHE, MORTAGNE, MOSELLE","CLUB VOSGIEN DE BAYON-GERBEVILLER",1]
[413,"LIAISON RAUCOURT - MAILLY-SUR-SEILLE","LOCAL",3.09,"CC DE SEILLE ET GRAND COURONNE","SAULXURES RANDO 54",1]
[414,"LIAISON MORVILLE-SUR-SEILLE A EPLY","LOCAL",2.16,"CC DE SEILLE ET GRAND COURONNE","SAULXURES RANDO 54",1]
[415,"BOUCLE DU FOUYEU","LOCAL",5.08,"CC DE SEILLE ET GRAND COURONNE","SAULXURES RANDO 54",1]
[416,"BOUCLE DES VERGERS","LOCAL",5.19,"CC DU BASSIN DE PONT-A-MOUSSON","RANDO DES VALS DE MOSELLE ET DE L ESCH",1]
[417,"LES PRES BAS","LOCAL",4.1399999999999997,"CC DE SEILLE ET GRAND COURONNE","SAULXURES RANDO 54",1]
[418,"CIRCUIT DE LA VAU CHATEL","DEPARTEMENTAL",9.57,"CC DU BASSIN DE PONT-A-MOUSSON","RANDO DES VALS DE MOSELLE ET DE L ESCH",1]
[419,"LE VILLAGE DE L EAU","LOCAL",7.82,"CC ORNE LORRAINE CONFLUENCES","LES RANDONNEURS DU PAYS DE L ORNE",1]
[420,"BOUCLE D ANOUX","LOCAL",7.44,"CC ORNE LORRAINE CONFLUENCES","LES RANDONNEURS DU PAYS DE L ORNE",1]
[421,"LE PAS BAYARD (3)","LOCAL",10.51,"CC TERRE LORRAINE DU LONGUYONNAIS","HERSERANGE NATURE PLEIN AIR",1]
[422,"LIAISON LAVOIR DE PHLIN","LOCAL",1.81,"CC DE SEILLE ET GRAND COURONNE","SAULXURES RANDO 54",1]
[423,"CIRCUIT A DE LA FOURASSE","LOCAL",11.68,"CC DE SEILLE ET GRAND COURONNE","ARSEM",1]
[424,"CIRCUIT B DE LA FOURASSE","LOCAL",7.53,"CC DE SEILLE ET GRAND COURONNE","ARSEM",1]
[425,"CIRCUIT C DE LA FOURASSE","LOCAL",4.0599999999999996,"CC DE SEILLE ET GRAND COURONNE","ARSEM",1]
[427,"LIAISON LA FOURASSE - MANONCOURT-SUR-SEILLE","LOCAL",3.27,"CC DE SEILLE ET GRAND COURONNE","SAULXURES RANDO 54",1]
[429,"CIRCUIT DE BLANZEY","LOCAL",7.74,"CC DE SEILLE ET GRAND COURONNE","AIRPAS",1]
[432,"LIAISON LETRICOURT - FOURASSE","LOCAL",5.01,"CC DE SEILLE ET GRAND COURONNE","ARSEM",1]
[433,"CIRCUIT DE DECOUVERTE","LOCAL",5.52,"CC DE SEILLE ET GRAND COURONNE","ARSEM",1]
[434,"BOUCLE DU MONT SAINT-JEAN","DEPARTEMENTAL",5.6,"CC DE SEILLE ET GRAND COURONNE","ARSEM",1]
[436,"CIRCUIT DE HAN-SUR-SEILLE","DEPARTEMENTAL",2.81,"CC DE SEILLE ET GRAND COURONNE","ARSEM",1]
[437,"CIRCUIT DE LA CROISETTE","LOCAL",16.59,"CC DE SEILLE ET GRAND COURONNE","AIRPAS",1]
[438,"SENTIER SAINT-JACQUES","LOCAL",7.19,"CA GRAND LONGWY AGGLOMERATION","HERSERANGE NATURE PLEIN AIR",1]
[439,"CIRCUIT LE GRAND PRE","LOCAL",2.97,"CC DE SEILLE ET GRAND COURONNE","ARSEM",1]
[440,"BOUCLE DES CERISIERS","LOCAL",11.05,"CC DE SEILLE ET GRAND COURONNE","ARSEM",1]
[441,"LIAISON MARTINCOURT - JEZAINVILLE","LOCAL",3.82,"CC DU BASSIN DE PONT-A-MOUSSON","RANDO DES VALS DE MOSELLE ET DE L ESCH",1]
[442,"LIAISON GRISCOURT - JEZAINVILLE","LOCAL",2.2200000000000002,"CC DU BASSIN DE PONT-A-MOUSSON","RANDO DES VALS DE MOSELLE ET DE L ESCH",1]
[443,"BOUCLE DE LA COLLINE","LOCAL",14.95,"CC DU BASSIN DE PONT-A-MOUSSON","RANDO DES VALS DE MOSELLE ET DE L ESCH",1]
[444,"CIRCUIT DU BOIS DE LA RAPPE","LOCAL",14.35,"CC MAD ET MOSELLE","LES SONNEURS DE LA COTE",1]
[445,"SENTIER DU LIMACON","LOCAL",8.81,"CC TERRE LORRAINE DU LONGUYONNAIS","CLUB VOSGIEN DE LA VALLEE DE LA CHIERS",1]
[446,"SENTIER DE REVEMONT","LOCAL",10.97,"CC TERRE LORRAINE DU LONGUYONNAIS","CLUB VOSGIEN DE LA VALLEE DE LA CHIERS",1]
[447,"SENTIER DE FERMONT","LOCAL",8.6,"CC TERRE LORRAINE DU LONGUYONNAIS","CLUB VOSGIEN DE LA VALLEE DE LA CHIERS",1]
[448,"SENTIER DU BOIS DE CHENE","LOCAL",10.4,"CA GRAND LONGWY AGGLOMERATION","HERSERANGE NATURE PLEIN AIR",1]
[449,"CIRCUIT DU BOIS BRULE","LOCAL",5.42,"CC DU BASSIN DE PONT-A-MOUSSON","RANDO DES VALS DE MOSELLE ET DE L ESCH",1]
[450,"BOUCLE DES AIRS","LOCAL",9.67,"CC DU BASSIN DE PONT-A-MOUSSON","RANDO DES VALS DE MOSELLE ET DE L ESCH",1]
[451,"SENTIER DES QUATRE LAVOIRS","LOCAL",12.2,"CC COEUR DU PAYS HAUT","CLUB VOSGIEN DE LA VALLEE DE LA CHIERS",1]
[452,"SENTIER DE LA ROSE","LOCAL",13.85,"CC COEUR DU PAYS HAUT","CLUB VOSGIEN DE LA VALLEE DE LA CHIERS",1]
[453,"SENTIER DE MARIE-LORETTE","LOCAL",9.26,"CC TERRE LORRAINE DU LONGUYONNAIS","CLUB VOSGIEN DE LA VALLEE DE LA CHIERS",1]
[454,"SENTIER DE LA MOULAINE","LOCAL",16.73,"CA GRAND LONGWY AGGLOMERATION","HERSERANGE NATURE PLEIN AIR",1]
[455,"SENTIER PEDAGOGIQUE DU MARAIS DE DROITAUMONT","DEPARTEMENTAL",2.74,"CC ORNE LORRAINE CONFLUENCES","DEPARTEMENT DE MEURTHE-ET-MOSELLE",1]
[457,"SENTIER DE LATIREMONT","LOCAL",5.55,"CC TERRE LORRAINE DU LONGUYONNAIS","CLUB VOSGIEN DE LA VALLEE DE LA CHIERS",1]
[458,"SENTIER DU NANHOL","LOCAL",6.95,"CC TERRE LORRAINE DU LONGUYONNAIS","CLUB VOSGIEN DE LA VALLEE DE LA CHIERS",1]
[459,"SENTIER DE LA BECASSIERE","LOCAL",10.33,"CC TERRE LORRAINE DU LONGUYONNAIS","CLUB VOSGIEN DE LA VALLEE DE LA CHIERS",1]
[460,"CIRCUIT DE LA ROCHE AUX LOUPS","DEPARTEMENTAL",18.920000000000002,"CC DU BASSIN DE PONT-A-MOUSSON","RANDO DES VALS DE MOSELLE ET DE L ESCH",1]
[461,"LIAISON DE LA VIERGE DE BELLEVILLE","LOCAL",5.48,"CC DU BASSIN DE PONT-A-MOUSSON","RANDO DES VALS DE MOSELLE ET DE L ESCH",1]
[462,"CIRCULAIRE DE L AULNOYE","LOCAL",14.74,"CC DE VEZOUZE EN PIEMONT","CLUB VOSGIEN DE BADONVILLER",1]
[463,"SENTIER DE LA FORET DE UGNY","LOCAL",5.03,"CA GRAND LONGWY AGGLOMERATION","HERSERANGE NATURE PLEIN AIR",1]
[464,"GR570 - CUTRY - VILLERS-LA-CHEVRE","DEPARTEMENTAL",7.82,"CA GRAND LONGWY AGGLOMERATION","HERSERANGE NATURE PLEIN AIR",1]
[465,"LES LIBELLULES DE BOSSERVILLE","LOCAL",11.7,"METROPOLE DU GRAND NANCY","SAULXURES RANDO 54",1]
[467,"SENTIER DE BASLIEUX","LOCAL",2.38,"CC TERRE LORRAINE DU LONGUYONNAIS","CLUB VOSGIEN DE LA VALLEE DE LA CHIERS",1]
[469,"CIRCUIT DE LA VERPILLERE","LOCAL",11.43,"CC DU BASSIN DE PONT-A-MOUSSON","RANDO DES VALS DE MOSELLE ET DE L ESCH",1]
[470,"LE PAS BAYARD (2)","LOCAL",6.59,"CC TERRE LORRAINE DU LONGUYONNAIS","HERSERANGE NATURE PLEIN AIR",1]
[471,"LE PAS BAYARD (1)","LOCAL",2.99,"CC TERRE LORRAINE DU LONGUYONNAIS","HERSERANGE NATURE PLEIN AIR",1]
[472,"SENTIER DU CHAMP DE TIR","LOCAL",11.52,"CA GRAND LONGWY AGGLOMERATION","HERSERANGE NATURE PLEIN AIR",1]
[473,"SENTIER DES 9 FONTAINES","LOCAL",7.27,"CA GRAND LONGWY AGGLOMERATION","HERSERANGE NATURE PLEIN AIR",1]
[474,"SENTIER DE LA FONTAINE DES ROSES","LOCAL",6.13,"CA GRAND LONGWY AGGLOMERATION","HERSERANGE NATURE PLEIN AIR",1]
[475,"SENTIER DE LA FORET DES MONTS","LOCAL",10.42,"CA GRAND LONGWY AGGLOMERATION","HERSERANGE NATURE PLEIN AIR",1]
[476,"SENTIER DU BOIS DE CHADELLE","LOCAL",5.38,"CA GRAND LONGWY AGGLOMERATION","HERSERANGE NATURE PLEIN AIR",1]
[477,"CIRCUIT DU BOIS DU CORNU","LOCAL",10.85,"CA GRAND LONGWY AGGLOMERATION","HERSERANGE NATURE PLEIN AIR",1]
[479,"CIRCUIT DES QUATRE VENTS","LOCAL",13.57,"CC DU BASSIN DE PONT-A-MOUSSON","RANDO DES VALS DE MOSELLE ET DE L ESCH",1]
[480,"LINEAIRE DES DEUX CHATEAUX","DEPARTEMENTAL",20.58,"CC DE VEZOUZE EN PIEMONT","CLUB VOSGIEN DE BADONVILLER",1]
[490,"DE SAINTE-GENEVIEVE AU GREMILLON","LOCAL",11.3,"METROPOLE DU GRAND NANCY","ARSEM",1]
[491,"SUR LES RAILS DU FONTENO","LOCAL",7.8,"METROPOLE DU GRAND NANCY","SAULXURES RANDO 54",1]
[494,"BOUCLE DES CASEMATES","LOCAL",9.9,"CC COEUR DU PAYS HAUT","CLUB DE MARCHE PIENNOIS",0]
[495,"SENTIER DES ENERGIES RENOUVELABLES","LOCAL",8.2200000000000006,"METROPOLE DU GRAND NANCY","COMMUNE DE VANDOEUVRE-LES-NANCY",1]
[496,"GR570 - LASAUVAGE - MOULAINE","DEPARTEMENTAL",16.510000000000002,"CA GRAND LONGWY AGGLOMERATION","HERSERANGE NATURE PLEIN AIR",1]
[497,"GR570 - MOULAINE - MEXY","DEPARTEMENTAL",6.59,"CA GRAND LONGWY AGGLOMERATION","HERSERANGE NATURE PLEIN AIR",1]
[498,"GR570 - MEXY - CUTRY","DEPARTEMENTAL",10.74,"CA GRAND LONGWY AGGLOMERATION","HERSERANGE NATURE PLEIN AIR",1]
[499,"GR570 - VILLERS-LA-CHEVRE - GORCY","DEPARTEMENTAL",10.52,"CC TERRE LORRAINE DU LONGUYONNAIS","HERSERANGE NATURE PLEIN AIR",1]
[500,"GR570 - GORCY - MONT-SAINT-MARTIN","DEPARTEMENTAL",7.42,"CA GRAND LONGWY AGGLOMERATION","HERSERANGE NATURE PLEIN AIR",1]
[502,"ENTRE-DEUX-EAUX","LOCAL",2.1800000000000002,"CC MEURTHE, MORTAGNE, MOSELLE","ENTRE DEUX EAUX",0]
[505,"SENTIER THEMATIQUE DE ROGEVILLE","LOCAL",5.73,"CC DU BASSIN DE PONT-A-MOUSSON","RANDO DES VALS DE MOSELLE ET DE L ESCH",1]
[507,"CIRCUIT DES REMPARTS ET VILLE HAUTE","LOCAL",4.1900000000000004,"CA GRAND LONGWY AGGLOMERATION","HERSERANGE NATURE PLEIN AIR",1]
[508,"CIRCUIT DU VIEUX CHATEAU","LOCAL",4.63,"CA GRAND LONGWY AGGLOMERATION","HERSERANGE NATURE PLEIN AIR",1]
[509,"GR5 - NANCY - BRIN-SUR-SEILLE","DEPARTEMENTAL",11.69,"METROPOLE DU GRAND NANCY","CLUB ALPIN FRANCAIS DE NANCY",1]
[510,"CIRCUIT DU PONT ROMAIN","LOCAL",11.15,"CC DU TERRITOIRE DE LUNEVILLE A BACCARAT","CLUB VOSGIEN D AZERAILLES",0]
[511,"GRP - TOUR DE NANCY - FLAVIGNY-SUR-MOSELLE - MESSEIN","DEPARTEMENTAL",4.59,"CC MOSELLE ET MADON","RANDO MENIL",1]
[512,"GRP - TOUR DE NANCY - CUSTINES - BLANZEY","DEPARTEMENTAL",9.9600000000000009,"CC DU BASSIN DE POMPEY","CLUB ALPIN FRANCAIS DE NANCY",1]
[513,"GRP - TOUR DE NANCY - BLANZEY - SEICHAMPS","DEPARTEMENTAL",10.24,"CC DE SEILLE ET GRAND COURONNE","CLUB ALPIN FRANCAIS DE NANCY",1]
[514,"GRP - TOUR DE NANCY - SEICHAMPS - LENONCOURT","DEPARTEMENTAL",9.73,"METROPOLE DU GRAND NANCY","CLUB ALPIN FRANCAIS DE NANCY",1]
[516,"CHEMIN DE SAINT-JACQUES DE COMPOSTELLE - ARNAVILLE – VANDIERES","DEPARTEMENTAL",9.5399999999999991,"CC MAD ET MOSELLE","LES AMIS DE SAINT-JACQUES DE COMPOSTELLE",1]
[517,"CHEMIN DE SAINT-JACQUES DE COMPOSTELLE - VANDIERES - MAIDIERES","DEPARTEMENTAL",7.34,"CC DU BASSIN DE PONT-A-MOUSSON","LES AMIS DE SAINT-JACQUES DE COMPOSTELLE",1]
[518,"CHEMIN DE SAINT-JACQUES DE COMPOSTELLE - MAIDIERES - DIEULOUARD","DEPARTEMENTAL",7.79,"CC DU BASSIN DE PONT-A-MOUSSON","LES AMIS DE SAINT-JACQUES DE COMPOSTELLE",1]
[519,"CHEMIN DE SAINT-JACQUES DE COMPOSTELLE - DIEULOUARD - LIVERDUN","DEPARTEMENTAL",14.5,"CC DU BASSIN DE PONT-A-MOUSSON","LES AMIS DE SAINT-JACQUES DE COMPOSTELLE",1]
[520,"CHEMIN DE SAINT-JACQUES DE COMPOSTELLE - LIVERDUN - VILLEY-SAINT-ETIENNE","DEPARTEMENTAL",9.89,"CC DU BASSIN DE POMPEY","LES AMIS DE SAINT-JACQUES DE COMPOSTELLE",1]
[521,"CHEMIN DE SAINT-JACQUES DE COMPOSTELLE - VILLEY-SAINT-ETIENNE - TOUL","DEPARTEMENTAL",11.02,"CC TERRES TOULOISES","LES AMIS DE SAINT-JACQUES DE COMPOSTELLE",1]
[522,"CHEMIN DE SAINT-JACQUES DE COMPOSTELLE - TOUL - CHOLOY-MENILLOT","DEPARTEMENTAL",7.51,"CC TERRES TOULOISES","LES AMIS DE SAINT-JACQUES DE COMPOSTELLE",1]
[523,"CHEMIN DE SAINT-JACQUES DE COMPOSTELLE - CHOLOY-MENILLOT - RIGNY-SAINT-MARTIN","DEPARTEMENTAL",5.88,"CC TERRES TOULOISES","LES AMIS DE SAINT-JACQUES DE COMPOSTELLE",1]
[524,"CIRCUIT DES QUATRE BANS","DEPARTEMENTAL",10.33,"CC DU PAYS DE COLOMBEY ET DU SUD TOULOIS","ASSOCIATION INTERCOMMUNALE DES SENTIERS DES DEUILLES",1]
[525,"ECOLI-MACON","LOCAL",6.02,"CC DE VEZOUZE EN PIEMONT","CDRP 54 - COMMISSION SENTIERS 54",1]
[526,"CIRCUIT DES SIX JUMELLES","LOCAL",6.74,"CC MAD ET MOSELLE","RANDO TROIS VALLEES",1]
[527,"LIAISON GLONVILLE - AZERAILLES","LOCAL",0.71,"CC DU TERRITOIRE DE LUNEVILLE A BACCARAT","CLUB VOSGIEN D AZERAILLES",0]
[529,"LA TRAVERSEE DE FROIDMONT","LOCAL",11.82,"CC DU BASSIN DE PONT-A-MOUSSON","LES SONNEURS DE LA COTE",1]
[530,"CIRCUIT DE NOTRE-DAME DES VIGNES","LOCAL",7.65,"CC DE SEILLE ET GRAND COURONNE","AIRPAS",1]
[531,"GRP - ENTRE COTES DE MOSELLE ET COTES DE MEUSE - JARNY - VERNEVILLE","DEPARTEMENTAL",11.19,"CC ORNE LORRAINE CONFLUENCES","UNION SPORTIVE DU JARNISY - SECTION RANDO",1]
[532,"GRP - ENTRE COTES DE MOSELLE ET COTES DE MEUSE - HANNONVILLE-SUZEMONT - SPONVILLE","DEPARTEMENTAL",4.62,"CC MAD ET MOSELLE","UNION SPORTIVE DU JARNISY - SECTION RANDO",1]
[533,"GRP - ENTRE COTES DE MOSELLE ET COTES DE MEUSE - HANNONVILLE-SUZEMONT - JARNY","DEPARTEMENTAL",11.52,"CC MAD ET MOSELLE","UNION SPORTIVE DU JARNISY - SECTION RANDO",1]
[534,"GRP - ENTRE COTES DE MOSELLE ET COTES DE MEUSE - JARNY (VARIANTE)","DEPARTEMENTAL",9.84,"CC ORNE LORRAINE CONFLUENCES","UNION SPORTIVE DU JARNISY - SECTION RANDO",1]
[535,"LIAISON VILLERUPT - MICHEVILLE","LOCAL",1.66,"CC DU PAYS HAUT VAL D'ALZETTE","CC DU PAYS HAUT VAL D ALZETTE",0]
[536,"LIAISON CASEMATES - EIFFEL","LOCAL",1.1599999999999999,"CC COEUR DU PAYS HAUT","CLUB DE MARCHE PIENNOIS",0]
[537,"CIRCUIT DE LA DEUILLE","LOCAL",21.48,"CC DU PAYS DU SAINTOIS","LES RANDONNEURS DU SAINTOIS",1]
[538,"VALLON DE BEAUME-HAIE","LOCAL",7.99,"CC DU BASSIN DE PONT-A-MOUSSON","LES SONNEURS DE LA COTE",0]
[539,"VALLON DE SAINT-JEAN","LOCAL",14.06,"CC DU BASSIN DE PONT-A-MOUSSON","RANDO DES VALS DE MOSELLE ET DE L ESCH",0]
[541,"LIAISON VAUDEMONT - CIRCUIT DU METAY","LOCAL",12.1,"CC DU PAYS DU SAINTOIS","LES RANDONNEURS DU SAINTOIS",1]
[542,"CIRCUIT DE L ARBORETUM","LOCAL",3.35,"CC DE SEILLE ET GRAND COURONNE","AIRPAS",1]
[543,"LIAISON SENTIER DE FERMONT - FORET D UGNY","LOCAL",0.88,"CC TERRE LORRAINE DU LONGUYONNAIS","HERSERANGE NATURE PLEIN AIR",1]
[545,"UN CHEMIN UNE ECOLE","LOCAL",3.48,"CC DU PAYS DE COLOMBEY ET DU SUD TOULOIS","LES RANDONNEURS DU SAINTOIS",1]
[546,"CIRCUIT DES HUIT JOURNAUX","LOCAL",9.09,"CC DE SEILLE ET GRAND COURONNE","AIRPAS",1]
[547,"CIRCUIT VTT DU VAL DE MEURTHE","DEPARTEMENTAL",41.37,"CC MEURTHE, MORTAGNE, MOSELLE","CLUB VOSGIEN DU VAL DE MEURTHE (AIR COMME RANDO)",1]
[548,"CIRCUIT F4","DEPARTEMENTAL",13.47,"CC MOSELLE ET MADON","CLUB ALPIN FRANCAIS DE NANCY",1]
[549,"SENTIER DE LIAISON AVEC LE CIRCUIT DES RENARDS","LOCAL",1.24,"CC DES PAYS DU SEL ET DU VERMOIS","RANDO SEL ET VERMOIS",1]
[551,"CHEMIN DE DECOUVERTE","DEPARTEMENTAL",3.73,"CC ORNE LORRAINE CONFLUENCES","UNION SPORTIVE DU JARNISY - SECTION RANDO",1]
[552,"SENTIER TRANSFRONTALIER DES MINES DE FER","DEPARTEMENTAL",22.25,"CC TERRE LORRAINE DU LONGUYONNAIS","CC TERRE LORRAINE DU LONGUYONNAIS",1]
[553,"SENTIER DES MINIERES","LOCAL",4.49,"CC TERRE LORRAINE DU LONGUYONNAIS","COMMUNE DE SAINT-PANCRE",1]
[554,"LIAISON CHAMPEY - LA TRAVERSEE","LOCAL",1.94,"CC DU BASSIN DE PONT-A-MOUSSON","LES SONNEURS DE LA COTE",1]
[555,"BOUCLE DU FROIDMONT","DEPARTEMENTAL",5.99,"CC DU BASSIN DE PONT-A-MOUSSON","LES SONNEURS DE LA COTE",1]
[556,"BOUCLE DU XON","LOCAL",4.4000000000000004,"CC DU BASSIN DE PONT-A-MOUSSON","LES SONNEURS DE LA COTE",1]
[557,"SENTIER DE LA CLE DES CHAMPS","DEPARTEMENTAL",4.0599999999999996,"CC DU TERRITOIRE DE LUNEVILLE A BACCARAT","DEPARTEMENT DE MEURTHE-ET-MOSELLE",1]
[558,"CIRCUIT DU BEL' ETANG","DEPARTEMENTAL",2.1800000000000002,"CC DU BASSIN DE POMPEY","DEPARTEMENT DE MEURTHE-ET-MOSELLE",1]
[559,"CIRCUIT CŒUR DE VERT","DEPARTEMENTAL",13.9,"CC DU PAYS DE COLOMBEY ET DU SUD TOULOIS","ASSOCIATION INTERCOMMUNALE DES SENTIERS DES DEUILLES",1]
[560,"TOUL - THIAUCOURT","DEPARTEMENTAL",22.4,"CC TERRES TOULOISES","ASSOCIATION INTERCOMMUNALE DES SENTIERS DE LA LINOTTE",1]
[561,"CIRCUIT M1","LOCAL",8.2799999999999994,"CC DE SEILLE ET GRAND COURONNE","CLUB ALPIN FRANCAIS DE NANCY",1]
[562,"CIRCUIT N1","LOCAL",10.87,"CC DE SEILLE ET GRAND COURONNE","CLUB ALPIN FRANCAIS DE NANCY",1]
[563,"D AMANCE A L ETANG DE BRIN","DEPARTEMENTAL",12.26,"CC DE SEILLE ET GRAND COURONNE","CLUB ALPIN FRANCAIS DE NANCY",1]
[564,"BOUCLE DE PUVENELLE","DEPARTEMENTAL",8.14,"CC DU BASSIN DE PONT-A-MOUSSON","RANDO DES VALS DE MOSELLE ET DE L ESCH",1]
[565,"BOUCLE DE LA CROIX ROBERT","LOCAL",4.55,"CC DU BASSIN DE PONT-A-MOUSSON","RANDO DES VALS DE MOSELLE ET DE L ESCH",1]
[566,"BOUCLE DE LA FONTAINE SAINT-MARTIN","LOCAL",4.07,"CC DU BASSIN DE PONT-A-MOUSSON","RANDO DES VALS DE MOSELLE ET DE L ESCH",1]
[567,"BOUCLE DE L EPINE","DEPARTEMENTAL",3.43,"CC DU BASSIN DE PONT-A-MOUSSON","RANDO DES VALS DE MOSELLE ET DE L ESCH",1]
[568,"LIAISON ARRAYE-ET-HAN - JEANDELAINCOURT","LOCAL",4.3600000000000003,"CC DE SEILLE ET GRAND COURONNE","ARSEM",1]
[569,"SENTIER DES PICS","DEPARTEMENTAL",6.16,"CC DU TERRITOIRE DE LUNEVILLE A BACCARAT","CLUB VOSGIEN DE RAON L ETAPE ET DE LA PORTE DES VOSGES",1]
[572,"CIRCUIT DE BENAMONT","LOCAL",7.88,"CC DU PAYS DU SANON","LES RANDONNEURS DU SANON ET DU LUNEVILLOIS",1]
[573,"CIRCUIT DE GYE","LOCAL",7.98,"CC TERRES TOULOISES","ASSOCIATION INTERCOMMUNALE DES SENTIERS DES DEUILLES",1]
[574,"LIAISON MONT-LE-VIGNOBLE - GYE","LOCAL",3.83,"CC DU PAYS DE COLOMBEY ET DU SUD TOULOIS","ASSOCIATION INTERCOMMUNALE DES SENTIERS DES DEUILLES",1]
[575,"LIAISON BICQUELEY - GYE","LOCAL",3.75,"CC TERRES TOULOISES","ASSOCIATION INTERCOMMUNALE DES SENTIERS DES DEUILLES",1]
[583,"LE TOUR DE CANTEBONNE","LOCAL",7.23,"CC DU PAYS HAUT VAL D'ALZETTE","HERSERANGE NATURE PLEIN AIR",1]
[584,"LIAISON THIL - CANTEBONNE","LOCAL",1.57,"CC DU PAYS HAUT VAL D'ALZETTE","HERSERANGE NATURE PLEIN AIR",1]
[585,"CIRCUIT DE DECOUVERTE","LOCAL",3.49,"CC DU PAYS HAUT VAL D'ALZETTE","HERSERANGE NATURE PLEIN AIR",1]
[586,"TRONC COMMUN SENTIERS DE LA COTE PAGNY-SUR-MOSELLE","LOCAL",2.64,"CC DU BASSIN DE PONT-A-MOUSSON","LES SONNEURS DE LA COTE",1]
[587,"LES PRES DES BORDS DE MOSELLE","LOCAL",1.82,"CC DU BASSIN DE PONT-A-MOUSSON","LES SONNEURS DE LA COTE",1]
[589,"LA FORET DE SELOMONT","LOCAL",11.64,"CA GRAND LONGWY AGGLOMERATION","HERSERANGE NATURE PLEIN AIR",1]
[591,"BOUCLE EIFFEL","LOCAL",6.99,"CC COEUR DU PAYS HAUT","CC COEUR DU PAYS HAUT",0]
[592,"BOUCLE DE L ALTESSE","LOCAL",18.71,"CC ORNE LORRAINE CONFLUENCES","UNION SPORTIVE DU JARNISY - SECTION RANDO",1]
[593,"BOUCLE DU LONGEAU","DEPARTEMENTAL",16.850000000000001,"CC ORNE LORRAINE CONFLUENCES","UNION SPORTIVE DU JARNISY - SECTION RANDO",1]
[595,"SENTIER PEDAGOGIQUE DU TERROUIN","DEPARTEMENTAL",3.04,"CC TERRES TOULOISES","CC TERRES TOULOISES",1]
[596,"LES DESSOUS DE LA RECULEE DU PLAIN","DEPARTEMENTAL",2.34,"CC MEURTHE, MORTAGNE, MOSELLE","CC MEURTHE MORTAGNE MOSELLE",1]
[609,"CHEMIN DE SAINT-NICOLAS - SAINT-NICOLAS-DE-PORT - ROSIERES-AUX-SALINES","DEPARTEMENTAL",4.82,"CC DES PAYS DU SEL ET DU VERMOIS","CONFRERIE DE SAINT-NICOLAS DE YUTZ",1]
[610,"CHEMIN DE SAINT-NICOLAS - ROSIERES-AUX-SALINES - HAUSSONVILLE","DEPARTEMENTAL",11.96,"CC DES PAYS DU SEL ET DU VERMOIS","CONFRERIE DE SAINT-NICOLAS DE YUTZ",1]
[614,"SENTIER DE LIAISON","LOCAL",0.47,"CC TERRE LORRAINE DU LONGUYONNAIS","CLUB VOSGIEN DE LA VALLEE DE LA CHIERS",1]
[615,"CIRCULAIRE DE LA BONNE-FONTAINE","LOCAL",8.67,"CC DE VEZOUZE EN PIEMONT","CC DE VEZOUZE EN PIEMONT",0]
[616,"LIAISON BONNE FONTAINE - GR534","LOCAL",2.67,"CC DU TERRITOIRE DE LUNEVILLE A BACCARAT","MJC DE DOMJEVIN",0]
[617,"SENTIER PEDAGOGIQUE DE LA COTE D URBUL","DEPARTEMENTAL",1.24,"CC TERRE LORRAINE DU LONGUYONNAIS","DEPARTEMENT DE MEURTHE-ET-MOSELLE",1]
[618,"SENTIER DECOUVERTE A LA CROISEE DES CHEMINS","DEPARTEMENTAL",13.64,"CC TERRES TOULOISES","DEPARTEMENT DE MEURTHE-ET-MOSELLE",1]
[619,"SENTIER D INTERPRETATION MEINE CŒUR DE VERT","DEPARTEMENTAL",7,"CC DU PAYS DE COLOMBEY ET DU SUD TOULOIS","DEPARTEMENT DE MEURTHE-ET-MOSELLE",1]
[620,"CIRCUIT DE BELLEFONTAINE","DEPARTEMENTAL",9.4499999999999993,"CC DU BASSIN DE POMPEY","DEPARTEMENT DE MEURTHE-ET-MOSELLE",1]
[624,"SENTIER DE SAINT-JEAN","DEPARTEMENTAL",2.8,"CC DU TERRITOIRE DE LUNEVILLE A BACCARAT","DEPARTEMENT DE MEURTHE-ET-MOSELLE",1]
[625,"LA MORTAGNE AU FIL DE L EAU","DEPARTEMENTAL",3.68,"CC DU TERRITOIRE DE LUNEVILLE A BACCARAT","DEPARTEMENT DE MEURTHE-ET-MOSELLE",1]
[626,"SENTIER DECOUVERTE UNE COLLINE ET DES HOMMES","DEPARTEMENTAL",4.17,"CC DU PAYS DU SAINTOIS","DEPARTEMENT DE MEURTHE-ET-MOSELLE",1]
[627,"SENTIER DECOUVERTE LES TEMOINS DU PAYSAGE","DEPARTEMENTAL",1.49,"CC DU PAYS DU SAINTOIS","DEPARTEMENT DE MEURTHE-ET-MOSELLE",1]
[628,"CIRCUIT DU MARAIS DE LA CUSSIGNIERE","DEPARTEMENTAL",9.33,"CA GRAND LONGWY AGGLOMERATION","DEPARTEMENT DE MEURTHE-ET-MOSELLE",1]
[629,"SENTIER DES PICS VARIANTE SAINT-JEAN","DEPARTEMENTAL",6.64,"CC DU TERRITOIRE DE LUNEVILLE A BACCARAT","DEPARTEMENT DE MEURTHE-ET-MOSELLE",1]
[630,"SENTIER DECOUVERTE DE LA MOSELLE SAUVAGE","DEPARTEMENTAL",11.33,"CC DU PAYS DU SAINTOIS","DEPARTEMENT DE MEURTHE-ET-MOSELLE",1]
[631,"LES PROMENADES DU VAL","DEPARTEMENTAL",6.34,"CC DE VEZOUZE EN PIEMONT","DEPARTEMENT DE MEURTHE-ET-MOSELLE",1]
[632,"CIRCUIT DU VALLON DE LA MOULAINE","DEPARTEMENTAL",8.1300000000000008,"CA GRAND LONGWY AGGLOMERATION","DEPARTEMENT DE MEURTHE-ET-MOSELLE",1]
[633,"CIRCUIT DU FORT DU VIEUX CANTON","DEPARTEMENTAL",10.64,"CC TERRES TOULOISES","ASSOCIATION AIR ET EAU",1]
[634,"CIRCUIT A LA DECOUVERTE DES PAYSAGES","DEPARTEMENTAL",8.4499999999999993,"CC TERRES TOULOISES","ASSOCIATION AIR ET EAU",1]
[635,"PETIT CIRCUIT DE L EAU SALEE","DEPARTEMENTAL",6.21,"CC DU PAYS DE COLOMBEY ET DU SUD TOULOIS","DEPARTEMENT DE MEURTHE-ET-MOSELLE",1]
[637,"SENTIER DECOUVERTE DE LA VALLEE DU TERROUIN","DEPARTEMENTAL",7.7,"CC TERRES TOULOISES","CC TERRES TOULOISES",1]
[639,"CIRCUIT DES ROCHES DE LA XAVEURE","LOCAL",11.97,"CA DE SAINT-DIE-DES-VOSGES","CLUB VOSGIEN DE BADONVILLER",1]
[641,"VARIANTE AU GR DE PAYS DE LA DEODATIE","DEPARTEMENTAL",15.57,"CA DE SAINT-DIE-DES-VOSGES","CLUB VOSGIEN DE BADONVILLER",1]
[645,"LIAISON CIRCUIT DE SAINTE-MARIE","LOCAL",1.49,"CC DU BASSIN DE PONT-A-MOUSSON","LES SONNEURS DE LA COTE",1]
[646,"BOUCLE DE SAINTE-MARIE","LOCAL",17.079999999999998,"CC DU BASSIN DE PONT-A-MOUSSON","LES SONNEURS DE LA COTE",1]
[647,"BOUCLE DE LA TUILE","LOCAL",7.21,"CC DU BASSIN DE PONT-A-MOUSSON","LES SONNEURS DE LA COTE",1]
[651,"SENTIER DU TACOT","LOCAL",5.82,"CC DU TERRITOIRE DE LUNEVILLE A BACCARAT","CLUB VOSGIEN DE RAON L ETAPE ET DE LA PORTE DES VOSGES",1]
[653,"ITINERAIRE DE LA COTE ROUGE","DEPARTEMENTAL",11.81,"CA GRAND LONGWY AGGLOMERATION","HERSERANGE NATURE PLEIN AIR",1]
[654,"CIRCUIT DES HAUTS BOIS","LOCAL",12.76,"CC DU TERRITOIRE DE LUNEVILLE A BACCARAT","CLUB VOSGIEN D AZERAILLES",1]
[665,"CIRCUIT B - ENTRE COTE ET FORET","LOCAL",6.6,"CC DU BASSIN DE PONT-A-MOUSSON","LES SONNEURS DE LA COTE",1]
[666,"CIRCUIT A - ENTRE SOURCE ET RUISSEAU","LOCAL",3.82,"CC DU BASSIN DE PONT-A-MOUSSON","LES SONNEURS DE LA COTE",1]
[674,"CIRCUIT DES BOILDOTS","LOCAL",10.66,"CC TERRES TOULOISES","ASSOCIATION INTERCOMMUNALE DES SENTIERS DE LA LINOTTE",1]
[675,"PARCOURS DU PATRIMOINE","LOCAL",5.6,"CC ORNE LORRAINE CONFLUENCES","UNION SPORTIVE DU JARNISY - SECTION RANDO",1]
[677,"LA RONDE DU TERROUIN","DEPARTEMENTAL",22.35,"CC TERRES TOULOISES","ASSOCIATION AIR ET EAU",1]
[678,"PARCOURS DU BOIS","LOCAL",9.8000000000000007,"CC ORNE LORRAINE CONFLUENCES","UNION SPORTIVE DU JARNISY - SECTION RANDO",1]
[689,"SUR LES TRACES DE LA BETE DES CAVERNES","DEPARTEMENTAL",11.27,"CC TERRES TOULOISES","ASSOCIATION INTERCOMMUNALE DES SENTIERS DES DEUILLES",1]
[690,"L INGENIEUX TRAVAIL DES CASTORS ET DES HOMMES","DEPARTEMENTAL",9.9,"CC TERRES TOULOISES","ASSOCIATION INTERCOMMUNALE DES SENTIERS DES DEUILLES",1]
[691,"LA VIE DE L ETANG","DEPARTEMENTAL",1.98,"CC TERRES TOULOISES","ASSOCIATION INTERCOMMUNALE DES SENTIERS DES DEUILLES",1]
[692,"SENTIER VAUBAN","DEPARTEMENTAL",3.9,"CC TERRES TOULOISES","ASSOCIATION INTERCOMMUNALE DES SENTIERS DE LA LINOTTE",1]
[693,"SENTIER FLORISTIQUE","LOCAL",1.87,"CC TERRES TOULOISES","ASSOCIATION INTERCOMMUNALE DES SENTIERS DE LA LINOTTE",1]
[699,"CIRCUIT C - ENTRE VILLE ET CAMPAGNE","LOCAL",3.75,"CC DU BASSIN DE PONT-A-MOUSSON","LES SONNEURS DE LA COTE",1]
[700,"BOUCLES DE LA FOURASSE","LOCAL",14.82,"CC DU BASSIN DE POMPEY","COMMUNE DE LIVERDUN",1]
[702,"BOUCLES DU HAUT DE SOHET","LOCAL",10.42,"CC DU BASSIN DE POMPEY","COMMUNE DE LIVERDUN",1]
[703,"LIAISON DES BOUCLES VILLAGEOISE ET FOURASSE","LOCAL",0.59,"CC DU BASSIN DE POMPEY","COMMUNE DE LIVERDUN",1]
[704,"LIAISON DES BOUCLES VILLAGEOISE ET HAUT DE SOHET","LOCAL",1.7,"CC DU BASSIN DE POMPEY","COMMUNE DE LIVERDUN",1]
[709,"SUR LES PAS DE MARIE-CHANTAL","LOCAL",17.97,"CC MEURTHE, MORTAGNE, MOSELLE","CLUB VOSGIEN DU VAL DE MEURTHE (AIR COMME RANDO)",0]
[710,"CIRCUIT DES ANTONISTES","LOCAL",4.9000000000000004,"CC DU BASSIN DE PONT-A-MOUSSON","TOURISME ET LOISIRS AU PERE HILARION",0]
[713,"BOUCLE DU BEUHEUIL","LOCAL",2.1,"CC ORNE LORRAINE CONFLUENCES","UNION SPORTIVE DU JARNISY - SECTION RANDO",0]
[715,"CIRCUIT DES AMERICAINS","DEPARTEMENTAL",5.7,"CC TERRES TOULOISES","ASP FORET DE HAYE",0]
[730,"CIRCUIT DE LA SANGSUE","LOCAL",2.6,"CC ORNE LORRAINE CONFLUENCES","UNION SPORTIVE DU JARNISY - SECTION RANDO",0]
[735,"CIRCUIT DU CHEMIN DE RONDE","LOCAL",1.1000000000000001,"CC DU PAYS DU SAINTOIS","DEPARTEMENT DE MEURTHE-ET-MOSELLE",1]
[754,"CIRCUIT DE LA PETITE SUISSE LORRAINE","DEPARTEMENTAL",26.04,"CC DU BASSIN DE PONT-A-MOUSSON","RANDO DES VALS DE MOSELLE ET DE L ESCH",0]
[755,"BOUCLE DES MINES","LOCAL",5.35,"CC COEUR DU PAYS HAUT","CLUB DE MARCHE PIENNOIS",0]
[757,"BOUCLE DU COLLEGE","LOCAL",1.1299999999999999,"CC COEUR DU PAYS HAUT","CLUB DE MARCHE PIENNOIS",0]
[759,"BOUCLE DE LA SOURCE DES TRENTE GROS","LOCAL",9.1999999999999993,"CC COEUR DU PAYS HAUT","CLUB DE MARCHE PIENNOIS",0]
[761,"LES POUVOIRS DE LA NATURE","LOCAL",2.15,"CC ORNE LORRAINE CONFLUENCES","UNION SPORTIVE DU JARNISY - SECTION RANDO",0]

{"sheet":"Vérif","index":13,"n_rows":53,"n_cols":11,"rows_kept":53,"cut":false,"hidden":true,"merged":[]}
["Portage",null,"1 = renseigné",null,null,null,"Vérifications",null,null,{"$f":"MAX(H:H)","v":12}]
[null,"Libellé du partenaire 1 :",{"$f":"IF(Formulaire!E9=\"\",0,1)","v":0},null,null,null,{"$f":"IF(AND(SUM(C2:C5)>0,SUM(C2:C5)<4),\"Partenaire 1 : renseignements incomplets\",\"\")","v":""},{"$f":"IF(G2=\"\",\"\",1)","v":""},null,1,{"$f":"IF(J2>$J$1,\"\",\"- \"&LOOKUP(J2,$H$2:$H$53,$G$2:$G$53))","v":"- Partenaire 2 : renseignements incomplets"}]
[null,"Type :",{"$f":"IF(Formulaire!E11=\"\",0,1)","v":0},null,null,null,null,null,null,2,{"$f":"IF(J3>$J$1,\"\",\"- \"&LOOKUP(J3,$H$2:$H$53,$G$2:$G$53))","v":"- Territoire d'EPCI à renseigner"}]
[null,"Partenaire déjà enregistré :",{"$f":"IF(Formulaire!E13=\"\",0,1)","v":0},null,null,null,null,null,null,3,"- Année de programmation à renseigner"]
[null,"Part du portage :",{"$f":"IF(Formulaire!E15=\"\",0,1)","v":0},null,null,null,null,null,null,4,"- Section à renseigner"]
[null,"Libellé du partenaire 2 :",{"$f":"IF(Formulaire!E17=\"\",0,1)","v":0},null,null,null,{"$f":"IF(AND(SUM(C6:C9)>0,SUM(C6:C9)<4),\"Partenaire 2 : renseignements incomplets\",\"\")","v":"Partenaire 2 : renseignements incomplets"},{"$f":"IF(G6=\"\",\"\",MAX($H$2:H5)+1)","v":1},null,5,"- Thème de l'action à renseigner"]
[null,"Type :",{"$f":"IF(Formulaire!E19=\"\",0,1)","v":1},null,null,null,null,null,null,6,"- Type d'action à renseigner"]
[null,"Partenaire déjà enregistré :",{"$f":"IF(Formulaire!E21=\"\",0,1)","v":0},null,null,null,null,null,null,7,"- Libellé de l'action à renseigner"]
[null,"Part du portage :",{"$f":"IF(Formulaire!E23=\"\",0,1)","v":0},null,null,null,null,null,null,8,"- Descriptif technique à renseigner"]
[null,"Libellé du partenaire 3 :",{"$f":"IF(Formulaire!E25=\"\",0,1)","v":0},null,null,null,{"$f":"IF(AND(SUM(C10:C13)>0,SUM(C10:C13)<4),\"Partenaire 2 : renseignements incomplets\",\"\")","v":""},{"$f":"IF(G10=\"\",\"\",MAX($H$2:H9)+1)","v":""},null,9,"- Montant global de l'action à renseigner"]
[null,"Type :",{"$f":"IF(Formulaire!E27=\"\",0,1)","v":0},null,null,null,null,null,null,10,"- Montant subventionnable à renseigner"]
[null,"Partenaire déjà enregistré :",{"$f":"IF(Formulaire!E29=\"\",0,1)","v":0}]
[null,"Part du portage :",{"$f":"IF(Formulaire!E31=\"\",0,1)","v":0}]
[null,"Territoire d'EPCI * :",{"$f":"IF(Formulaire!E33=\"\",0,1)","v":0},null,null,null,{"$f":"IF(C14=0,\"Territoire d'EPCI à renseigner\",\"\")","v":"Territoire d'EPCI à renseigner"},{"$f":"IF(G14=\"\",\"\",MAX($H$2:H13)+1)","v":2}]
[null,"Année de programmation * :",{"$f":"IF(Formulaire!E41=\"\",0,1)","v":0},null,null,null,{"$f":"IF(C15=0,\"Année de programmation à renseigner\",\"\")","v":"Année de programmation à renseigner"},{"$f":"IF(G15=\"\",\"\",MAX($H$2:H14)+1)","v":3}]
[null,"Section * :",{"$f":"IF(Formulaire!E43=\"\",0,1)","v":0},null,null,null,{"$f":"IF(C16=0,\"Section à renseigner\",\"\")","v":"Section à renseigner"},{"$f":"IF(G16=\"\",\"\",MAX($H$2:H15)+1)","v":4}]
[null,"Thème de l'action * :",{"$f":"IF(Formulaire!E45=\"\",0,1)","v":0},null,null,null,{"$f":"IF(C17=0,\"Thème de l'action à renseigner\",\"\")","v":"Thème de l'action à renseigner"},{"$f":"IF(G17=\"\",\"\",MAX($H$2:H16)+1)","v":5}]
[null,"Type d'action * :",{"$f":"IF(Formulaire!E47=\"\",0,1)","v":0},null,null,null,{"$f":"IF(C18=0,\"Type d'action à renseigner\",\"\")","v":"Type d'action à renseigner"},{"$f":"IF(G18=\"\",\"\",MAX($H$2:H17)+1)","v":6}]
["Description"]
[null,"Libellé de l'action * :",{"$f":"IF(Formulaire!E51=\"\",0,1)","v":0},null,null,null,{"$f":"IF(C20=0,\"Libellé de l'action à renseigner\",\"\")","v":"Libellé de l'action à renseigner"},{"$f":"IF(G20=\"\",\"\",MAX($H$2:H19)+1)","v":7}]
[null,"Descriptif technique * :",{"$f":"IF(Formulaire!E53=\"\",0,1)","v":0},null,null,null,{"$f":"IF(C21=0,\"Descriptif technique à renseigner\",\"\")","v":"Descriptif technique à renseigner"},{"$f":"IF(G21=\"\",\"\",MAX($H$2:H20)+1)","v":8}]
[null,"Montant global de l'action * :",{"$f":"IF(Formulaire!E58=\"\",0,1)","v":0},null,null,null,{"$f":"IF(C22=0,\"Montant global de l'action à renseigner\",\"\")","v":"Montant global de l'action à renseigner"},{"$f":"IF(G22=\"\",\"\",MAX($H$2:H21)+1)","v":9}]
[null,"Montant subventionnable * :",{"$f":"IF(Formulaire!E60=\"\",0,1)","v":0},null,null,null,{"$f":"IF(C23=0,\"Montant subventionnable à renseigner\",\"\")","v":"Montant subventionnable à renseigner"},{"$f":"IF(G23=\"\",\"\",MAX($H$2:H22)+1)","v":10}]
[null,null,{"$f":"IF(Formulaire!E32=\"\",\"\",1)","v":""}]
["Financement de l'action",null,"Partenaire 1","Partenaire 2","Partenaire 3"]
[null,"Autofinancement",{"$f":"IF(Formulaire!Q5=\"Non\",0,IF(Formulaire!Q5=\"\",0,1))","v":0},{"$f":"IF(Formulaire!S5=\"Non\",0,IF(Formulaire!S5=\"\",0,1))","v":0},{"$f":"IF(Formulaire!U5=\"Non\",0,IF(Formulaire!U5=\"\",0,1))","v":0},null,{"$f":"IF(AND(C2=0,SUM(C26:C27)>0),\"Le partenaire 1 doit être renseigné\",IF(AND(C2=1,SUM(C26:C27)<2),\"Autofinancement du partenaire 1 incomplet\",\"\"))","v":""},{"$f":"IF(G26=\"\",\"\",MAX($H$2:H25)+1)","v":""}]
[null,"Taux * (si oui) :",{"$f":"IF(Formulaire!Q7=\"\",0,1)","v":0},{"$f":"IF(Formulaire!S7=\"\",0,1)","v":0},{"$f":"IF(Formulaire!U7=\"\",0,1)","v":0},null,{"$f":"IF(AND(C6=0,SUM(D26:D27)>0),\"Le partenaire 2 doit être renseigné\",IF(AND(C6=1,SUM(D26:D27)<2),\"Autofinancement du partenaire 2 incomplet\",\"\"))","v":""},{"$f":"IF(G27=\"\",\"\",MAX($H$2:H26)+1)","v":""}]
[null,null,null,null,null,null,{"$f":"IF(AND(C10=0,SUM(E26:E27)>0),\"Le partenaire 3 doit être renseigné\",IF(AND(C10=1,SUM(E26:E27)<2),\"Autofinancement du partenaire 3 incomplet\",\"\"))","v":""},{"$f":"IF(G28=\"\",\"\",MAX($H$2:H27)+1)","v":""}]
[null,"Département"]
[null,"Type de fonds :"]
[null,"Taux * :",{"$f":"IF(Formulaire!Q15=\"\",0,1)","v":0},null,null,null,{"$f":"IF(C31=0,\"Taux du financement par le Département à renseigner\",\"\")","v":"Taux du financement par le Département à renseigner"},{"$f":"IF(G31=\"\",\"\",MAX($H$2:H30)+1)","v":11}]
[]
[null,"Etat",{"$f":"IF(Formulaire!Q19=\"Non\",0,1)","v":0},null,null,null,{"$f":"IF(AND(SUM(C33:C35)>0,SUM(C33:C35)<3),\"Renseignements du financement par l'Etat incomplets\",\"\")","v":""},{"$f":"IF(G33=\"\",\"\",MAX($H$2:H32)+1)","v":""}]
[null,"Type de fonds :",{"$f":"IF(Formulaire!Q21=\"\",0,1)","v":0}]
[null,"Taux :",{"$f":"IF(Formulaire!Q23=\"\",0,1)","v":0}]
[]
[null,"Région",{"$f":"IF(Formulaire!Q27=\"Non\",0,1)","v":0},null,null,null,{"$f":"IF(AND(SUM(C37:C39)>0,SUM(C37:C39)<3),\"Renseignements du financement par la Région incomplets\",\"\")","v":""},{"$f":"IF(G37=\"\",\"\",MAX($H$2:H36)+1)","v":""}]
[null,"Type de fonds :",{"$f":"IF(Formulaire!Q29=\"\",0,1)","v":0}]
[null,"Taux :",{"$f":"IF(Formulaire!Q31=\"\",0,1)","v":0}]
[]
[null,"AERM",{"$f":"IF(Formulaire!Q35=\"Non\",0,1)","v":0},null,null,null,{"$f":"IF(AND(SUM(C41:C43)>0,SUM(C41:C43)<3),\"Renseignements du financement par l'AERM incomplets\",\"\")","v":""},{"$f":"IF(G41=\"\",\"\",MAX($H$2:H40)+1)","v":""}]
[null,"Type de fonds :",{"$f":"IF(Formulaire!Q37=\"\",0,1)","v":0}]
[null,"Taux :",{"$f":"IF(Formulaire!Q39=\"\",0,1)","v":0}]
[]
[null,"ADEME",{"$f":"IF(Formulaire!Q43=\"Non\",0,1)","v":0},null,null,null,{"$f":"IF(AND(SUM(C45:C47)>0,SUM(C45:C47)<3),\"Renseignements du financement par l'ADEME incomplets\",\"\")","v":""},{"$f":"IF(G45=\"\",\"\",MAX($H$2:H44)+1)","v":""}]
[null,"Type de fonds :",{"$f":"IF(Formulaire!Q45=\"\",0,1)","v":0}]
[null,"Taux :",{"$f":"IF(Formulaire!Q47=\"\",0,1)","v":0}]
[]
[null,"Autre",{"$f":"IF(Formulaire!Q51=\"\",0,1)","v":0},null,null,null,{"$f":"IF(AND(SUM(C49:C51)>0,SUM(C49:C51)<3),\"Renseignements du financement par Autre financeur incomplets\",\"\")","v":"Renseignements du financement par Autre financeur incomplets"},{"$f":"IF(G49=\"\",\"\",MAX($H$2:H48)+1)","v":12}]
[null,"Type de fonds :",{"$f":"IF(Formulaire!Q53=\"\",0,1)","v":1}]
[null,"Taux :",{"$f":"IF(Formulaire!Q55=\"\",0,1)","v":0}]
[]
[null,"Montant total du financement",{"$f":"IF(Formulaire!S60=\"Financement équilibré\",0,1)","v":1},null,null,null,{"$f":"IF(C53=0,\"\",Formulaire!S60)","v":""},{"$f":"IF(G53=\"\",\"\",MAX($H$2:H52)+1)","v":""}]

{"sheet":"Pieces","index":14,"n_rows":476,"n_cols":8,"rows_kept":476,"cut":false,"hidden":true,"merged":[]}
[null,"Listing",null,null,{"$f":"MAX(C:C)","v":0},"Récapitulatif",104]
["Fonctionnement",null,null,null,{"$f":"IF(1>$E$1,\"\",1)","v":""},{"$f":"IF(LOOKUP(E2,C:C,B:B)=0,\"\",LOOKUP(E2,C:C,B:B))","v":""},{"$f":"LEN(F2)","v":0},""]
["Randonnée",null,null,null,{"$f":"IF(2>$E$1,\"\",2)","v":""},"",0,""]
["Animations/Formations",null,{"$f":"IF(AND(AND(Formulaire!$E$43=A2,Formulaire!$E$45=A3),Formulaire!$E$47=A4),\"Oui\",\"\")","v":""},null,{"$f":"IF(3>$E$1,\"\",3)","v":""},"",0,""]
[null,"- Le contenu des actions et des programmes préalablement définis,",{"$f":"IF(C4=\"Oui\",1,\"\")","v":""},null,{"$f":"IF(4>$E$1,\"\",4)","v":""},"",0,""]
[null,"- le descriptif des programmes et outils pédagogiques utilisés,",{"$f":"IF(C4=\"Oui\",2,\"\")","v":""},null,{"$f":"IF(5>$E$1,\"\",5)","v":""},"",0,""]
[null,"- les articulations avec les animations et formations du Conseil Départemental sur le territoire où le circuit est implanté, et dans le cas où le bénéficiaire est un partenaire privé, les articulations avec la politique d’animation et de formation de la collectivité locale sur le territoire de laquelle le site est implanté,",{"$f":"IF(C4=\"Oui\",3,\"\")","v":""},null,{"$f":"IF(6>$E$1,\"\",6)","v":""},"",0,""]
[null,"- le calendrier d’intervention avec le public concerné pour chaque animation (1/2 journée ou journée),",{"$f":"IF(C4=\"Oui\",4,\"\")","v":""},null,{"$f":"IF(7>$E$1,\"\",7)","v":""},"",0,""]
[null,"- les références des animateurs,",{"$f":"IF(C4=\"Oui\",5,\"\")","v":""},null,{"$f":"IF(8>$E$1,\"\",8)","v":""},"",0,""]
[null,"- si besoin, les éléments justificatifs du marché ou de l’appel à projet.",{"$f":"IF(C4=\"Oui\",6,\"\")","v":""},null,{"$f":"IF(9>$E$1,\"\",9)","v":""},"",0,""]
[null,null,{"$f":"IF(C4=\"Oui\",7,\"\")","v":""},null,{"$f":"IF(10>$E$1,\"\",10)","v":""},"",0,""]
[null,null,{"$f":"IF(C4=\"Oui\",8,\"\")","v":""}]
[null,null,{"$f":"IF(C4=\"Oui\",9,\"\")","v":""}]
[null,null,{"$f":"IF(C4=\"Oui\",10,\"\")","v":""}]
["Gestion/Entretien",null,{"$f":"IF(AND(AND(Formulaire!$E$43=$A$2,Formulaire!$E$45=$A$3),Formulaire!$E$47=A15),\"Oui\",\"\")","v":""}]
[null,"- un courrier motivé de demande de subvention,",{"$f":"IF(C15=\"Oui\",1,\"\")","v":""}]
[null,"- un devis estimatif des travaux de gestion et d'entretien par opération,",{"$f":"IF(C15=\"Oui\",2,\"\")","v":""}]
[null,"- le formulaire d’entretien par itinéraire dûment renseigné (document intégré dans ce formulaire),",{"$f":"IF(C15=\"Oui\",3,\"\")","v":""}]
[null,"- un échéancier prévisionnel des travaux de gestion et d'entretien.",{"$f":"IF(C15=\"Oui\",4,\"\")","v":""}]
[null,null,{"$f":"IF(C15=\"Oui\",5,\"\")","v":""}]
[null,null,{"$f":"IF(C15=\"Oui\",6,\"\")","v":""}]
[null,null,{"$f":"IF(C15=\"Oui\",7,\"\")","v":""}]
[null,null,{"$f":"IF(C15=\"Oui\",8,\"\")","v":""}]
[null,null,{"$f":"IF(C15=\"Oui\",9,\"\")","v":""}]
[null,null,{"$f":"IF(C15=\"Oui\",10,\"\")","v":""}]
["Outils de communication",null,{"$f":"IF(AND(AND(Formulaire!$E$43=$A$2,Formulaire!$E$45=$A$3),Formulaire!$E$47=A26),\"Oui\",\"\")","v":""}]
[null,"- un courrier motivé de demande de subvention,",{"$f":"IF(C26=\"Oui\",1,\"\")","v":""}]
[null,"- un descriptif des outils de communication (supports, B.A.T…),",{"$f":"IF(C26=\"Oui\",2,\"\")","v":""}]
[null,"- un devis estimatif,",{"$f":"IF(C26=\"Oui\",3,\"\")","v":""}]
[null,"- un échéancier prévisionnel de réalisation des outils de communication.",{"$f":"IF(C26=\"Oui\",4,\"\")","v":""}]
[null,null,{"$f":"IF(C26=\"Oui\",5,\"\")","v":""}]
[null,null,{"$f":"IF(C26=\"Oui\",6,\"\")","v":""}]
[null,null,{"$f":"IF(C26=\"Oui\",7,\"\")","v":""}]
[null,null,{"$f":"IF(C26=\"Oui\",8,\"\")","v":""}]
[null,null,{"$f":"IF(C26=\"Oui\",9,\"\")","v":""}]
[null,null,{"$f":"IF(C26=\"Oui\",10,\"\")","v":""}]
["Ecologie Pratique"]
["Animations/Formations",null,{"$f":"IF(AND(AND(Formulaire!$E$43=$A$2,Formulaire!$E$45=$A$37),Formulaire!$E$47=A38),\"Oui\",\"\")","v":""}]
[null,"- Le contenu des actions et des programmes préalablement définis,",{"$f":"IF(C38=\"Oui\",1,\"\")","v":""}]
[null,"- le descriptif des programmes et outils pédagogiques utilisés,",{"$f":"IF(C38=\"Oui\",2,\"\")","v":""}]
[null,"- les articulations avec les animations et formations du Conseil Départemental sur le territoire où le site est implanté, et dans le cas où le bénéficiaire est un partenaire privé, les articulations avec la politique d’animation et de formation de la collectivité locale sur le territoire de laquelle le site est implanté,",{"$f":"IF(C38=\"Oui\",3,\"\")","v":""}]
[null,"- le calendrier d’intervention avec le public concerné pour chaque animation (1/2 journée ou journée),",{"$f":"IF(C38=\"Oui\",4,\"\")","v":""}]
[null,"- les références des animateurs,",{"$f":"IF(C38=\"Oui\",5,\"\")","v":""}]
[null,"- si besoin, les éléments justificatifs du marché ou de l’appel à projet.",{"$f":"IF(C38=\"Oui\",6,\"\")","v":""}]
[null,null,{"$f":"IF(C38=\"Oui\",7,\"\")","v":""}]
[null,null,{"$f":"IF(C38=\"Oui\",8,\"\")","v":""}]
[null,null,{"$f":"IF(C38=\"Oui\",9,\"\")","v":""}]
[null,null,{"$f":"IF(C38=\"Oui\",10,\"\")","v":""}]
["Gestion/Entretien",null,{"$f":"IF(AND(AND(Formulaire!$E$43=$A$2,Formulaire!$E$45=$A$37),Formulaire!$E$47=A49),\"Oui\",\"\")","v":""}]
[null,"- Merci de contacter le service concerné.",{"$f":"IF(C49=\"Oui\",1,\"\")","v":""}]
[null,null,{"$f":"IF(C49=\"Oui\",2,\"\")","v":""}]
[null,null,{"$f":"IF(C49=\"Oui\",3,\"\")","v":""}]
[null,null,{"$f":"IF(C49=\"Oui\",4,\"\")","v":""}]
[null,null,{"$f":"IF(C49=\"Oui\",5,\"\")","v":""}]
[null,null,{"$f":"IF(C49=\"Oui\",6,\"\")","v":""}]
[null,null,{"$f":"IF(C49=\"Oui\",7,\"\")","v":""}]
[null,null,{"$f":"IF(C49=\"Oui\",8,\"\")","v":""}]
[null,null,{"$f":"IF(C49=\"Oui\",9,\"\")","v":""}]
[null,null,{"$f":"IF(C49=\"Oui\",10,\"\")","v":""}]
["Outils de communication",null,{"$f":"IF(AND(AND(Formulaire!$E$43=$A$2,Formulaire!$E$45=$A$37),Formulaire!$E$47=A60),\"Oui\",\"\")","v":""}]
[null,"- Merci de contacter le service concerné.",{"$f":"IF(C60=\"Oui\",1,\"\")","v":""}]
[null,null,{"$f":"IF(C60=\"Oui\",2,\"\")","v":""}]
[null,null,{"$f":"IF(C60=\"Oui\",3,\"\")","v":""}]
[null,null,{"$f":"IF(C60=\"Oui\",4,\"\")","v":""}]
[null,null,{"$f":"IF(C60=\"Oui\",5,\"\")","v":""}]
[null,null,{"$f":"IF(C60=\"Oui\",6,\"\")","v":""}]
[null,null,{"$f":"IF(C60=\"Oui\",7,\"\")","v":""}]
[null,null,{"$f":"IF(C60=\"Oui\",8,\"\")","v":""}]
[null,null,{"$f":"IF(C60=\"Oui\",9,\"\")","v":""}]
[null,null,{"$f":"IF(C60=\"Oui\",10,\"\")","v":""}]
["Petit matériel",null,{"$f":"IF(AND(AND(Formulaire!$E$43=$A$2,Formulaire!$E$45=$A$37),Formulaire!$E$47=A71),\"Oui\",\"\")","v":""}]
[null,"- Merci de contacter le service concerné.",{"$f":"IF(C71=\"Oui\",1,\"\")","v":""}]
[null,null,{"$f":"IF(C71=\"Oui\",2,\"\")","v":""}]
[null,null,{"$f":"IF(C71=\"Oui\",3,\"\")","v":""}]
[null,null,{"$f":"IF(C71=\"Oui\",4,\"\")","v":""}]
[null,null,{"$f":"IF(C71=\"Oui\",5,\"\")","v":""}]
[null,null,{"$f":"IF(C71=\"Oui\",6,\"\")","v":""}]
[null,null,{"$f":"IF(C71=\"Oui\",7,\"\")","v":""}]
[null,null,{"$f":"IF(C71=\"Oui\",8,\"\")","v":""}]
[null,null,{"$f":"IF(C71=\"Oui\",9,\"\")","v":""}]
[null,null,{"$f":"IF(C71=\"Oui\",10,\"\")","v":""}]
["Espaces Naturels Sensibles"]
["Animations/Formations",null,{"$f":"IF(AND(AND(Formulaire!$E$43=$A$2,Formulaire!$E$45=$A$82),Formulaire!$E$47=A83),\"Oui\",\"\")","v":""}]
[null,"- Le contenu des actions et des programmes préalablement définis,",{"$f":"IF(C83=\"Oui\",1,\"\")","v":""}]
[null,"- le descriptif des programmes et outils pédagogiques utilisés,",{"$f":"IF(C83=\"Oui\",2,\"\")","v":""}]
[null,"- les articulations avec les animations et formations du Conseil Départemental sur le territoire où le site est implanté, et dans le cas où le bénéficiaire est un partenaire privé, les articulations avec la politique d’animation et de formation de la collectivité locale sur le territoire de laquelle le site est implanté,",{"$f":"IF(C83=\"Oui\",3,\"\")","v":""}]
[null,"- le calendrier d’intervention avec le public concerné pour chaque animation (1/2 journée ou journée),",{"$f":"IF(C83=\"Oui\",4,\"\")","v":""}]
[null,"- les références des animateurs,",{"$f":"IF(C83=\"Oui\",5,\"\")","v":""}]
[null,"- si besoin, les éléments justificatifs du marché ou de l’appel à projet.",{"$f":"IF(C83=\"Oui\",6,\"\")","v":""}]
[null,null,{"$f":"IF(C83=\"Oui\",7,\"\")","v":""}]
[null,null,{"$f":"IF(C83=\"Oui\",8,\"\")","v":""}]
[null,null,{"$f":"IF(C83=\"Oui\",9,\"\")","v":""}]
[null,null,{"$f":"IF(C83=\"Oui\",10,\"\")","v":""}]
["Gestion/Entretien",null,{"$f":"IF(AND(AND(Formulaire!$E$43=$A$2,Formulaire!$E$45=$A$82),Formulaire!$E$47=A94),\"Oui\",\"\")","v":""}]
[null,"- Merci de contacter le service concerné.",{"$f":"IF(C94=\"Oui\",1,\"\")","v":""}]
[null,null,{"$f":"IF(C94=\"Oui\",2,\"\")","v":""}]
[null,null,{"$f":"IF(C94=\"Oui\",3,\"\")","v":""}]
[null,null,{"$f":"IF(C94=\"Oui\",4,\"\")","v":""}]
[null,null,{"$f":"IF(C94=\"Oui\",5,\"\")","v":""}]
[null,null,{"$f":"IF(C94=\"Oui\",6,\"\")","v":""}]
[null,null,{"$f":"IF(C94=\"Oui\",7,\"\")","v":""}]
[null,null,{"$f":"IF(C94=\"Oui\",8,\"\")","v":""}]
[null,null,{"$f":"IF(C94=\"Oui\",9,\"\")","v":""}]
[null,null,{"$f":"IF(C94=\"Oui\",10,\"\")","v":""}]
["Outils de communication",null,{"$f":"IF(AND(AND(Formulaire!$E$43=$A$2,Formulaire!$E$45=$A$82),Formulaire!$E$47=A105),\"Oui\",\"\")","v":""}]
[null,"- un explicatif des actions de communication,",{"$f":"IF(C105=\"Oui\",1,\"\")","v":""}]
[null,"- le devis estimatif,",{"$f":"IF(C105=\"Oui\",2,\"\")","v":""}]
[null,"- l’échéancier prévisionnel des missions de communication.",{"$f":"IF(C105=\"Oui\",3,\"\")","v":""}]
[null,null,{"$f":"IF(C105=\"Oui\",4,\"\")","v":""}]
[null,null,{"$f":"IF(C105=\"Oui\",5,\"\")","v":""}]
[null,null,{"$f":"IF(C105=\"Oui\",6,\"\")","v":""}]
[null,null,{"$f":"IF(C105=\"Oui\",7,\"\")","v":""}]
[null,null,{"$f":"IF(C105=\"Oui\",8,\"\")","v":""}]
[null,null,{"$f":"IF(C105=\"Oui\",9,\"\")","v":""}]
[null,null,{"$f":"IF(C105=\"Oui\",10,\"\")","v":""}]
["Suivis écologiques",null,{"$f":"IF(AND(AND(Formulaire!$E$43=$A$2,Formulaire!$E$45=$A$82),Formulaire!$E$47=A116),\"Oui\",\"\")","v":""}]
[null,"- Merci de contacter le service concerné.",{"$f":"IF(C116=\"Oui\",1,\"\")","v":""}]
[null,null,{"$f":"IF(C116=\"Oui\",2,\"\")","v":""}]
[null,null,{"$f":"IF(C116=\"Oui\",3,\"\")","v":""}]
[null,null,{"$f":"IF(C116=\"Oui\",4,\"\")","v":""}]
[null,null,{"$f":"IF(C116=\"Oui\",5,\"\")","v":""}]
[null,null,{"$f":"IF(C116=\"Oui\",6,\"\")","v":""}]
[null,null,{"$f":"IF(C116=\"Oui\",7,\"\")","v":""}]
[null,null,{"$f":"IF(C116=\"Oui\",8,\"\")","v":""}]
[null,null,{"$f":"IF(C116=\"Oui\",9,\"\")","v":""}]
[null,null,{"$f":"IF(C116=\"Oui\",10,\"\")","v":""}]
["Ressource en Eau"]
["Gestion/Entretien",null,{"$f":"IF(AND(AND(Formulaire!$E$43=$A$2,Formulaire!$E$45=$A$127),Formulaire!$E$47=A128),\"Oui\",\"\")","v":""}]
[null,"- Merci de contacter le service concerné.",{"$f":"IF(C128=\"Oui\",1,\"\")","v":""}]
[null,null,{"$f":"IF(C128=\"Oui\",2,\"\")","v":""}]
[null,null,{"$f":"IF(C128=\"Oui\",3,\"\")","v":""}]
[null,null,{"$f":"IF(C128=\"Oui\",4,\"\")","v":""}]
[null,null,{"$f":"IF(C128=\"Oui\",5,\"\")","v":""}]
[null,null,{"$f":"IF(C128=\"Oui\",6,\"\")","v":""}]
[null,null,{"$f":"IF(C128=\"Oui\",7,\"\")","v":""}]
[null,null,{"$f":"IF(C128=\"Oui\",8,\"\")","v":""}]
[null,null,{"$f":"IF(C128=\"Oui\",9,\"\")","v":""}]
[null,null,{"$f":"IF(C128=\"Oui\",10,\"\")","v":""}]
["Outils de communication",null,{"$f":"IF(AND(AND(Formulaire!$E$43=$A$2,Formulaire!$E$45=$A$127),Formulaire!$E$47=A139),\"Oui\",\"\")","v":""}]
[null,"- Merci de contacter le service concerné.",{"$f":"IF(C139=\"Oui\",1,\"\")","v":""}]
[null,null,{"$f":"IF(C139=\"Oui\",2,\"\")","v":""}]
[null,null,{"$f":"IF(C139=\"Oui\",3,\"\")","v":""}]
[null,null,{"$f":"IF(C139=\"Oui\",4,\"\")","v":""}]
[null,null,{"$f":"IF(C139=\"Oui\",5,\"\")","v":""}]
[null,null,{"$f":"IF(C139=\"Oui\",6,\"\")","v":""}]
[null,null,{"$f":"IF(C139=\"Oui\",7,\"\")","v":""}]
[null,null,{"$f":"IF(C139=\"Oui\",8,\"\")","v":""}]
[null,null,{"$f":"IF(C139=\"Oui\",9,\"\")","v":""}]
[null,null,{"$f":"IF(C139=\"Oui\",10,\"\")","v":""}]
["Suivis écologiques",null,{"$f":"IF(AND(AND(Formulaire!$E$43=$A$2,Formulaire!$E$45=$A$127),Formulaire!$E$47=A150),\"Oui\",\"\")","v":""}]
[null,"- Merci de contacter le service concerné.",{"$f":"IF(C150=\"Oui\",1,\"\")","v":""}]
[null,null,{"$f":"IF(C150=\"Oui\",2,\"\")","v":""}]
[null,null,{"$f":"IF(C150=\"Oui\",3,\"\")","v":""}]
[null,null,{"$f":"IF(C150=\"Oui\",4,\"\")","v":""}]
[null,null,{"$f":"IF(C150=\"Oui\",5,\"\")","v":""}]
[null,null,{"$f":"IF(C150=\"Oui\",6,\"\")","v":""}]
[null,null,{"$f":"IF(C150=\"Oui\",7,\"\")","v":""}]
[null,null,{"$f":"IF(C150=\"Oui\",8,\"\")","v":""}]
[null,null,{"$f":"IF(C150=\"Oui\",9,\"\")","v":""}]
[null,null,{"$f":"IF(C150=\"Oui\",10,\"\")","v":""}]
["TVB/Paysages/Espèces"]
["Animations/Formations",null,{"$f":"IF(AND(AND(Formulaire!$E$43=$A$2,Formulaire!$E$45=$A$161),Formulaire!$E$47=A162),\"Oui\",\"\")","v":""}]
[null,"- Le contenu des actions et des programmes préalablement définis,",{"$f":"IF(C162=\"Oui\",1,\"\")","v":""}]
[null,"- le descriptif des programmes et outils pédagogiques utilisés,",{"$f":"IF(C162=\"Oui\",2,\"\")","v":""}]
[null,"- les articulations avec les animations et formations du Conseil Départemental sur le territoire où le site est implanté, et dans le cas où le bénéficiaire est un partenaire privé, les articulations avec la politique d’animation et de formation de la collectivité locale sur le territoire de laquelle le site est implanté,",{"$f":"IF(C162=\"Oui\",3,\"\")","v":""}]
[null,"- le calendrier d’intervention avec le public concerné pour chaque animation (1/2 journée ou journée),",{"$f":"IF(C162=\"Oui\",4,\"\")","v":""}]
[null,"- les références des animateurs,",{"$f":"IF(C162=\"Oui\",5,\"\")","v":""}]
[null,"- si besoin, les éléments justificatifs du marché ou de l’appel à projet.",{"$f":"IF(C162=\"Oui\",6,\"\")","v":""}]
[null,null,{"$f":"IF(C162=\"Oui\",7,\"\")","v":""}]
[null,null,{"$f":"IF(C162=\"Oui\",8,\"\")","v":""}]
[null,null,{"$f":"IF(C162=\"Oui\",9,\"\")","v":""}]
[null,null,{"$f":"IF(C162=\"Oui\",10,\"\")","v":""}]
["Gestion/Entretien",null,{"$f":"IF(AND(AND(Formulaire!$E$43=$A$2,Formulaire!$E$45=$A$161),Formulaire!$E$47=A173),\"Oui\",\"\")","v":""}]
[null,"- Merci de contacter le service concerné.",{"$f":"IF(C173=\"Oui\",1,\"\")","v":""}]
[null,null,{"$f":"IF(C173=\"Oui\",2,\"\")","v":""}]
[null,null,{"$f":"IF(C173=\"Oui\",3,\"\")","v":""}]
[null,null,{"$f":"IF(C173=\"Oui\",4,\"\")","v":""}]
[null,null,{"$f":"IF(C173=\"Oui\",5,\"\")","v":""}]
[null,null,{"$f":"IF(C173=\"Oui\",6,\"\")","v":""}]
[null,null,{"$f":"IF(C173=\"Oui\",7,\"\")","v":""}]
[null,null,{"$f":"IF(C173=\"Oui\",8,\"\")","v":""}]
[null,null,{"$f":"IF(C173=\"Oui\",9,\"\")","v":""}]
[null,null,{"$f":"IF(C173=\"Oui\",10,\"\")","v":""}]
["Outils de communication",null,{"$f":"IF(AND(AND(Formulaire!$E$43=$A$2,Formulaire!$E$45=$A$161),Formulaire!$E$47=A184),\"Oui\",\"\")","v":""}]
[null,"- Merci de contacter le service concerné.",{"$f":"IF(C184=\"Oui\",1,\"\")","v":""}]
[null,null,{"$f":"IF(C184=\"Oui\",2,\"\")","v":""}]
[null,null,{"$f":"IF(C184=\"Oui\",3,\"\")","v":""}]
[null,null,{"$f":"IF(C184=\"Oui\",4,\"\")","v":""}]
[null,null,{"$f":"IF(C184=\"Oui\",5,\"\")","v":""}]
[null,null,{"$f":"IF(C184=\"Oui\",6,\"\")","v":""}]
[null,null,{"$f":"IF(C184=\"Oui\",7,\"\")","v":""}]
[null,null,{"$f":"IF(C184=\"Oui\",8,\"\")","v":""}]
[null,null,{"$f":"IF(C184=\"Oui\",9,\"\")","v":""}]
[null,null,{"$f":"IF(C184=\"Oui\",10,\"\")","v":""}]
["Suivis écologiques",null,{"$f":"IF(AND(AND(Formulaire!$E$43=$A$2,Formulaire!$E$45=$A$161),Formulaire!$E$47=A195),\"Oui\",\"\")","v":""}]
[null,"Projets \"Espèces patrimoniales et invasives\" :",{"$f":"IF(C195=\"Oui\",1,\"\")","v":""}]
[null,"- la délibération portant sur l’engagement à respecter les termes du règlement «Espèces patrimoniales et invasives »,",{"$f":"IF(C195=\"Oui\",2,\"\")","v":""}]
[null,"- une note technique de présentation du projet,",{"$f":"IF(C195=\"Oui\",3,\"\")","v":""}]
[null,"- le plan de localisation, ",{"$f":"IF(C195=\"Oui\",4,\"\")","v":""}]
[null,"- l’échéancier de réalisation.",{"$f":"IF(C195=\"Oui\",5,\"\")","v":""}]
[null,null,{"$f":"IF(C195=\"Oui\",6,\"\")","v":""}]
[null,null,{"$f":"IF(C195=\"Oui\",7,\"\")","v":""}]
[null,null,{"$f":"IF(C195=\"Oui\",8,\"\")","v":""}]
[null,null,{"$f":"IF(C195=\"Oui\",9,\"\")","v":""}]
[null,null,{"$f":"IF(C195=\"Oui\",10,\"\")","v":""}]
["Investissement"]
["Randonnée","Pas d'acquisition"]
["Acquisitions",null,{"$f":"IF(AND(AND(Formulaire!$E$43=$A$206,Formulaire!$E$45=$A$207),Formulaire!$E$47=A208),\"\",\"\")","v":""}]
[null,"- Le plan de délimitation cadastrale des parcelles à acquérir,",{"$f":"IF(C208=\"Oui\",1,\"\")","v":""}]
[null,"- l’estimation des services fiscaux et des frais de notaire.",{"$f":"IF(C208=\"Oui\",2,\"\")","v":""}]
[null,null,{"$f":"IF(C208=\"Oui\",3,\"\")","v":""}]
[null,null,{"$f":"IF(C208=\"Oui\",4,\"\")","v":""}]
[null,null,{"$f":"IF(C208=\"Oui\",5,\"\")","v":""}]
[null,null,{"$f":"IF(C208=\"Oui\",6,\"\")","v":""}]
[null,null,{"$f":"IF(C208=\"Oui\",7,\"\")","v":""}]
[null,null,{"$f":"IF(C208=\"Oui\",8,\"\")","v":""}]
[null,null,{"$f":"IF(C208=\"Oui\",9,\"\")","v":""}]
[null,null,{"$f":"IF(C208=\"Oui\",10,\"\")","v":""}]
["Outils de communication",null,{"$f":"IF(AND(AND(Formulaire!$E$43=$A$206,Formulaire!$E$45=$A$207),Formulaire!$E$47=A219),\"Oui\",\"\")","v":""}]
[null,"- un courrier motivé de demande de subvention,",{"$f":"IF(C219=\"Oui\",1,\"\")","v":""}]
[null,"- un descriptif des outils de communication (supports, B.A.T…),",{"$f":"IF(C219=\"Oui\",2,\"\")","v":""}]
[null,"- un devis estimatif,",{"$f":"IF(C219=\"Oui\",3,\"\")","v":""}]
[null,"- un échéancier prévisionnel de réalisation des outils de communication.",{"$f":"IF(C219=\"Oui\",4,\"\")","v":""}]
[null,null,{"$f":"IF(C219=\"Oui\",5,\"\")","v":""}]
[null,null,{"$f":"IF(C219=\"Oui\",6,\"\")","v":""}]
[null,null,{"$f":"IF(C219=\"Oui\",7,\"\")","v":""}]
[null,null,{"$f":"IF(C219=\"Oui\",8,\"\")","v":""}]
[null,null,{"$f":"IF(C219=\"Oui\",9,\"\")","v":""}]
[null,null,{"$f":"IF(C219=\"Oui\",10,\"\")","v":""}]
["Actions en régie",null,{"$f":"IF(AND(AND(Formulaire!$E$43=$A$206,Formulaire!$E$45=$A$207),Formulaire!$E$47=A230),\"Oui\",\"\")","v":""}]
[null,"- le descriptif des actions réalisées en régie (alimentation de Balades 54 et travaux réalisés en régie),",{"$f":"IF(C230=\"Oui\",1,\"\")","v":""}]
[null,"- l’estimatif du temps passer par type d’actions (2 jours maxi/circuit pour l'alimentation de Balades 54).",{"$f":"IF(C230=\"Oui\",2,\"\")","v":""}]
[null,null,{"$f":"IF(C230=\"Oui\",3,\"\")","v":""}]
[null,null,{"$f":"IF(C230=\"Oui\",4,\"\")","v":""}]
[null,null,{"$f":"IF(C230=\"Oui\",5,\"\")","v":""}]
[null,null,{"$f":"IF(C230=\"Oui\",6,\"\")","v":""}]
[null,null,{"$f":"IF(C230=\"Oui\",7,\"\")","v":""}]
[null,null,{"$f":"IF(C230=\"Oui\",8,\"\")","v":""}]
[null,null,{"$f":"IF(C230=\"Oui\",9,\"\")","v":""}]
[null,null,{"$f":"IF(C230=\"Oui\",10,\"\")","v":""}]
["Etudes",null,{"$f":"IF(AND(AND(Formulaire!$E$43=$A$206,Formulaire!$E$45=$A$207),Formulaire!$E$47=A241),\"Oui\",\"\")","v":""}]
[null,"- Le périmètre de l'étude de faisabilité,",{"$f":"IF(C241=\"Oui\",1,\"\")","v":""}]
[null,"- le cahier des charges de l’étude,",{"$f":"IF(C241=\"Oui\",2,\"\")","v":""}]
[null,"- le devis estimatif des coûts d’étude,",{"$f":"IF(C241=\"Oui\",3,\"\")","v":""}]
[null,"- l’échéancier prévisionnel de l’’étude.",{"$f":"IF(C241=\"Oui\",4,\"\")","v":""}]
[null,null,{"$f":"IF(C241=\"Oui\",5,\"\")","v":""}]
[null,null,{"$f":"IF(C241=\"Oui\",6,\"\")","v":""}]
[null,null,{"$f":"IF(C241=\"Oui\",7,\"\")","v":""}]
[null,null,{"$f":"IF(C241=\"Oui\",8,\"\")","v":""}]
[null,null,{"$f":"IF(C241=\"Oui\",9,\"\")","v":""}]
[null,null,{"$f":"IF(C241=\"Oui\",10,\"\")","v":""}]
["Travaux",null,{"$f":"IF(AND(AND(Formulaire!$E$43=$A$206,Formulaire!$E$45=$A$207),Formulaire!$E$47=A252),\"Oui\",\"\")","v":""}]
[null,"- un courrier motivé de demande de subvention, accompagné de la fiche de création de chaque itinéraire fourni sur demande par le CD54,",{"$f":"IF(C252=\"Oui\",1,\"\")","v":""}]
[null,"- un descriptif du projet comprenant l’ensemble des travaux, une attestation pour l’entretien du balisage et une attestation de formation au balisage ou une déclaration sur l’honneur engageant le maître d’œuvre à suivre une formation,",{"$f":"IF(C252=\"Oui\",2,\"\")","v":""}]
[null,"- un relevé, avec l’aide d’un GPS fourni par le département, des itinéraires, des points remarquables, des points de départs et les emplacements prévus du mobilier,",{"$f":"IF(C252=\"Oui\",3,\"\")","v":""}]
[null,"- les devis estimatifs des travaux par opération,",{"$f":"IF(C252=\"Oui\",4,\"\")","v":""}]
[null,"- les autorisations de passage de tous les propriétaires concernés (délibération communale et/ou convention de passage). Un modèle pré-renseigné de ces documents pourra être fourni sur simple demande par le CD54,",{"$f":"IF(C252=\"Oui\",5,\"\")","v":""}]
[null,"- une autorisation administrative de la préfecture lorsque le projet est prévu en tout ou partie à l’intérieur d’un site Natura 2000,",{"$f":"IF(C252=\"Oui\",6,\"\")","v":""},null,null,"(Décret n°2011-966 du 16 août 2011) "]
[null,"- un échéancier prévisionnel des travaux.",{"$f":"IF(C252=\"Oui\",7,\"\")","v":""}]
[null,null,{"$f":"IF(C252=\"Oui\",8,\"\")","v":""}]
[null,null,{"$f":"IF(C252=\"Oui\",9,\"\")","v":""}]
[null,null,{"$f":"IF(C252=\"Oui\",10,\"\")","v":""}]
["Ecologie Pratique"]
["Actions en régie",null,{"$f":"IF(AND(AND(Formulaire!$E$43=$A$206,Formulaire!$E$45=$A$263),Formulaire!$E$47=A264),\"Oui\",\"\")","v":""}]
[null,"- Merci de contacter le service concerné.",{"$f":"IF(C264=\"Oui\",1,\"\")","v":""}]
[null,null,{"$f":"IF(C264=\"Oui\",2,\"\")","v":""}]
[null,null,{"$f":"IF(C264=\"Oui\",3,\"\")","v":""}]
[null,null,{"$f":"IF(C264=\"Oui\",4,\"\")","v":""}]
[null,null,{"$f":"IF(C264=\"Oui\",5,\"\")","v":""}]
[null,null,{"$f":"IF(C264=\"Oui\",6,\"\")","v":""}]
[null,null,{"$f":"IF(C264=\"Oui\",7,\"\")","v":""}]
[null,null,{"$f":"IF(C264=\"Oui\",8,\"\")","v":""}]
[null,null,{"$f":"IF(C264=\"Oui\",9,\"\")","v":""}]
[null,null,{"$f":"IF(C264=\"Oui\",9,\"\")","v":""}]
["Outils de communication",null,{"$f":"IF(AND(AND(Formulaire!$E$43=A206,Formulaire!$E$45=$A$263),Formulaire!$E$47=A275),\"Oui\",\"\")","v":""}]
[null,"- Merci de contacter le service concerné.",{"$f":"IF(C275=\"Oui\",1,\"\")","v":""}]
[null,null,{"$f":"IF(C275=\"Oui\",2,\"\")","v":""}]
[null,null,{"$f":"IF(C275=\"Oui\",3,\"\")","v":""}]
[null,null,{"$f":"IF(C275=\"Oui\",4,\"\")","v":""}]
[null,null,{"$f":"IF(C275=\"Oui\",5,\"\")","v":""}]
[null,null,{"$f":"IF(C275=\"Oui\",6,\"\")","v":""}]
[null,null,{"$f":"IF(C275=\"Oui\",7,\"\")","v":""}]
[null,null,{"$f":"IF(C275=\"Oui\",8,\"\")","v":""}]
[null,null,{"$f":"IF(C275=\"Oui\",9,\"\")","v":""}]
[null,null,{"$f":"IF(C275=\"Oui\",10,\"\")","v":""}]
["Etudes",null,{"$f":"IF(AND(AND(Formulaire!$E$43=$A$206,Formulaire!$E$45=$A$263),Formulaire!$E$47=A286),\"Oui\",\"\")","v":""}]
[null,"- Merci de contacter le service concerné.",{"$f":"IF(C286=\"Oui\",1,\"\")","v":""}]
[null,null,{"$f":"IF(C286=\"Oui\",2,\"\")","v":""}]
[null,null,{"$f":"IF(C286=\"Oui\",3,\"\")","v":""}]
[null,null,{"$f":"IF(C286=\"Oui\",4,\"\")","v":""}]
[null,null,{"$f":"IF(C286=\"Oui\",5,\"\")","v":""}]
[null,null,{"$f":"IF(C286=\"Oui\",6,\"\")","v":""}]
[null,null,{"$f":"IF(C286=\"Oui\",7,\"\")","v":""}]
[null,null,{"$f":"IF(C286=\"Oui\",8,\"\")","v":""}]
[null,null,{"$f":"IF(C286=\"Oui\",9,\"\")","v":""}]
[null,null,{"$f":"IF(C286=\"Oui\",10,\"\")","v":""}]
["Travaux",null,{"$f":"IF(AND(AND(Formulaire!$E$43=$A$206,Formulaire!$E$45=$A$263),Formulaire!$E$47=A297),\"Oui\",\"\")","v":""}]
[null,"- Merci de contacter le service concerné.",{"$f":"IF(C297=\"Oui\",1,\"\")","v":""}]
[null,null,{"$f":"IF(C297=\"Oui\",2,\"\")","v":""}]
[null,null,{"$f":"IF(C297=\"Oui\",3,\"\")","v":""}]
[null,null,{"$f":"IF(C297=\"Oui\",4,\"\")","v":""}]
[null,null,{"$f":"IF(C297=\"Oui\",5,\"\")","v":""}]
[null,null,{"$f":"IF(C297=\"Oui\",6,\"\")","v":""}]
[null,null,{"$f":"IF(C297=\"Oui\",7,\"\")","v":""}]
[null,null,{"$f":"IF(C297=\"Oui\",8,\"\")","v":""}]
[null,null,{"$f":"IF(C297=\"Oui\",9,\"\")","v":""}]
[null,null,{"$f":"IF(C297=\"Oui\",10,\"\")","v":""}]
["Espaces Naturels Sensibles"]
["Acquisitions",null,{"$f":"IF(AND(AND(Formulaire!$E$43=$A$206,Formulaire!$E$45=$A$308),Formulaire!$E$47=A309),\"Oui\",\"\")","v":""}]
[null,"- Le plan de délimitation cadastrale des parcelles à acquérir,",{"$f":"IF(C309=\"Oui\",1,\"\")","v":""}]
[null,"- l’estimation des services fiscaux et des frais de notaire,",{"$f":"IF(C309=\"Oui\",2,\"\")","v":""}]
[null,"- le cas échéant, un descriptif des éventuels bâtiments présents sur le site.",{"$f":"IF(C309=\"Oui\",3,\"\")","v":""}]
[null,"Espèces patrimoniales et invasives :",{"$f":"IF(C309=\"Oui\",4,\"\")","v":""}]
[null,"- la délibération portant sur l’engagement à respecter les termes du règlement «Espèces patrimoniales et invasives »,",{"$f":"IF(C309=\"Oui\",5,\"\")","v":""}]
[null,"- une note technique de présentation du projet,",{"$f":"IF(C309=\"Oui\",6,\"\")","v":""}]
[null,"- le plan de localisation, ",{"$f":"IF(C309=\"Oui\",7,\"\")","v":""}]
[null,"- l’échéancier de réalisation.",{"$f":"IF(C309=\"Oui\",8,\"\")","v":""}]
[null,null,{"$f":"IF(C309=\"Oui\",9,\"\")","v":""}]
[null,null,{"$f":"IF(C309=\"Oui\",9,\"\")","v":""}]
["Outils de communication",null,{"$f":"IF(AND(AND(Formulaire!$E$43=A206,Formulaire!$E$45=$A$308),Formulaire!$E$47=A320),\"Oui\",\"\")","v":""}]
[null,"- un explicatif des actions de communication,",{"$f":"IF(C320=\"Oui\",1,\"\")","v":""}]
[null,"- le devis estimatif,",{"$f":"IF(C320=\"Oui\",2,\"\")","v":""}]
[null,"- l’échéancier prévisionnel des missions de communication.",{"$f":"IF(C320=\"Oui\",3,\"\")","v":""}]
[null,null,{"$f":"IF(C320=\"Oui\",4,\"\")","v":""}]
[null,null,{"$f":"IF(C320=\"Oui\",5,\"\")","v":""}]
[null,null,{"$f":"IF(C320=\"Oui\",6,\"\")","v":""}]
[null,null,{"$f":"IF(C320=\"Oui\",7,\"\")","v":""}]
[null,null,{"$f":"IF(C320=\"Oui\",8,\"\")","v":""}]
[null,null,{"$f":"IF(C320=\"Oui\",9,\"\")","v":""}]
[null,null,{"$f":"IF(C320=\"Oui\",10,\"\")","v":""}]
["Actions en régie",null,{"$f":"IF(AND(AND(Formulaire!$E$43=$A$206,Formulaire!$E$45=$A$308),Formulaire!$E$47=A331),\"Oui\",\"\")","v":""}]
[null,"- le descriptif des actions réalisées en régie,",{"$f":"IF(C331=\"Oui\",1,\"\")","v":""}]
[null,"- l’estimatif du temps passer par type d’actions,",{"$f":"IF(C331=\"Oui\",2,\"\")","v":""}]
[null,"- la catégorie professionnelle concernée par l’action : technicien, chargé de communication, agent technique.",{"$f":"IF(C331=\"Oui\",3,\"\")","v":""}]
[null,"Espèces patrimoniales et invasives :",{"$f":"IF(C331=\"Oui\",4,\"\")","v":""}]
[null,"- la délibération portant sur l’engagement à respecter les termes du règlement «Espèces patrimoniales et invasives »,",{"$f":"IF(C331=\"Oui\",5,\"\")","v":""}]
[null,"- une note technique de présentation du projet,",{"$f":"IF(C331=\"Oui\",6,\"\")","v":""}]
[null,"- le plan de localisation, ",{"$f":"IF(C331=\"Oui\",7,\"\")","v":""}]
[null,"- l’échéancier de réalisation.",{"$f":"IF(C331=\"Oui\",8,\"\")","v":""}]
[null,null,{"$f":"IF(C331=\"Oui\",9,\"\")","v":""}]
[null,null,{"$f":"IF(C331=\"Oui\",10,\"\")","v":""}]
["Etudes",null,{"$f":"IF(AND(AND(Formulaire!$E$43=$A$206,Formulaire!$E$45=$A$308),Formulaire!$E$47=A342),\"Oui\",\"\")","v":""}]
[null,"- Le périmètre d’études,",{"$f":"IF(C342=\"Oui\",1,\"\")","v":""}]
[null,"- le cahier des charges de l’étude,",{"$f":"IF(C342=\"Oui\",2,\"\")","v":""}]
[null,"- le devis estimatif des coûts d’étude,",{"$f":"IF(C342=\"Oui\",3,\"\")","v":""}]
[null,"- l’échéancier prévisionnel de l’’étude.",{"$f":"IF(C342=\"Oui\",4,\"\")","v":""}]
[null,"Espèces patrimoniales et invasives :",{"$f":"IF(C342=\"Oui\",5,\"\")","v":""}]
[null,"- la délibération portant sur l’engagement à respecter les termes du règlement «Espèces patrimoniales et invasives »,",{"$f":"IF(C342=\"Oui\",6,\"\")","v":""}]
[null,"- une note technique de présentation du projet,",{"$f":"IF(C342=\"Oui\",7,\"\")","v":""}]
[null,"- le plan de localisation, ",{"$f":"IF(C342=\"Oui\",8,\"\")","v":""}]
[null,"- l’échéancier de réalisation.",{"$f":"IF(C342=\"Oui\",9,\"\")","v":""}]
[null,null,{"$f":"IF(C342=\"Oui\",10,\"\")","v":""}]
["Travaux",null,{"$f":"IF(AND(AND(Formulaire!$E$43=$A$206,Formulaire!$E$45=$A$308),Formulaire!$E$47=A353),\"Oui\",\"\")","v":""}]
[null,"- le plan de situation de l’opération,",{"$f":"IF(C353=\"Oui\",1,\"\")","v":""}]
[null,"- le cahier des charges des opérations prévues,",{"$f":"IF(C353=\"Oui\",2,\"\")","v":""}]
[null,"- le devis estimatif des travaux,",{"$f":"IF(C353=\"Oui\",3,\"\")","v":""}]
[null,"- l’échéancier prévisionnel des travaux.",{"$f":"IF(C353=\"Oui\",4,\"\")","v":""}]
[null,"Espèces patrimoniales et invasives :",{"$f":"IF(C353=\"Oui\",5,\"\")","v":""}]
[null,"- la délibération portant sur l’engagement à respecter les termes du règlement «Espèces patrimoniales et invasives »,",{"$f":"IF(C353=\"Oui\",6,\"\")","v":""}]
[null,"- une note technique de présentation du projet,",{"$f":"IF(C353=\"Oui\",7,\"\")","v":""}]
[null,"- le plan de localisation, ",{"$f":"IF(C353=\"Oui\",8,\"\")","v":""}]
[null,"- l’échéancier de réalisation.",{"$f":"IF(C353=\"Oui\",9,\"\")","v":""}]
[null,null,{"$f":"IF(C353=\"Oui\",10,\"\")","v":""}]
["Ressource en Eau"]
["Acquisitions",null,{"$f":"IF(AND(AND(Formulaire!$E$43=$A$206,Formulaire!$E$45=$A$364),Formulaire!$E$47=A365),\"Oui\",\"\")","v":""}]
[null,"- Merci de contacter le service concerné.",{"$f":"IF(C365=\"Oui\",1,\"\")","v":""}]
[null,null,{"$f":"IF(C365=\"Oui\",2,\"\")","v":""}]
[null,null,{"$f":"IF(C365=\"Oui\",3,\"\")","v":""}]
[null,null,{"$f":"IF(C365=\"Oui\",4,\"\")","v":""}]
[null,null,{"$f":"IF(C365=\"Oui\",5,\"\")","v":""}]
[null,null,{"$f":"IF(C365=\"Oui\",6,\"\")","v":""}]
[null,null,{"$f":"IF(C365=\"Oui\",7,\"\")","v":""}]
[null,null,{"$f":"IF(C365=\"Oui\",8,\"\")","v":""}]
[null,null,{"$f":"IF(C365=\"Oui\",9,\"\")","v":""}]
[null,null,{"$f":"IF(C365=\"Oui\",9,\"\")","v":""}]
["Outils de communication",null,{"$f":"IF(AND(AND(Formulaire!$E$43=A206,Formulaire!$E$45=$A$364),Formulaire!$E$47=A376),\"Oui\",\"\")","v":""}]
[null,"- Merci de contacter le service concerné.",{"$f":"IF(C376=\"Oui\",1,\"\")","v":""}]
[null,null,{"$f":"IF(C376=\"Oui\",2,\"\")","v":""}]
[null,null,{"$f":"IF(C376=\"Oui\",3,\"\")","v":""}]
[null,null,{"$f":"IF(C376=\"Oui\",4,\"\")","v":""}]
[null,null,{"$f":"IF(C376=\"Oui\",5,\"\")","v":""}]
[null,null,{"$f":"IF(C376=\"Oui\",6,\"\")","v":""}]
[null,null,{"$f":"IF(C376=\"Oui\",7,\"\")","v":""}]
[null,null,{"$f":"IF(C376=\"Oui\",8,\"\")","v":""}]
[null,null,{"$f":"IF(C376=\"Oui\",9,\"\")","v":""}]
[null,null,{"$f":"IF(C376=\"Oui\",10,\"\")","v":""}]
["Actions en régie",null,{"$f":"IF(AND(AND(Formulaire!$E$43=$A$206,Formulaire!$E$45=$A$364),Formulaire!$E$47=A387),\"Oui\",\"\")","v":""}]
[null,"- Merci de contacter le service concerné.",{"$f":"IF(C387=\"Oui\",1,\"\")","v":""}]
[null,null,{"$f":"IF(C387=\"Oui\",2,\"\")","v":""}]
[null,null,{"$f":"IF(C387=\"Oui\",3,\"\")","v":""}]
[null,null,{"$f":"IF(C387=\"Oui\",4,\"\")","v":""}]
[null,null,{"$f":"IF(C387=\"Oui\",5,\"\")","v":""}]
[null,null,{"$f":"IF(C387=\"Oui\",6,\"\")","v":""}]
[null,null,{"$f":"IF(C387=\"Oui\",7,\"\")","v":""}]
[null,null,{"$f":"IF(C387=\"Oui\",8,\"\")","v":""}]
[null,null,{"$f":"IF(C387=\"Oui\",9,\"\")","v":""}]
[null,null,{"$f":"IF(C387=\"Oui\",10,\"\")","v":""}]
["Etudes",null,{"$f":"IF(AND(AND(Formulaire!$E$43=$A$206,Formulaire!$E$45=$A$364),Formulaire!$E$47=A398),\"Oui\",\"\")","v":""}]
[null,"- Merci de contacter le service concerné.",{"$f":"IF(C398=\"Oui\",1,\"\")","v":""}]
[null,null,{"$f":"IF(C398=\"Oui\",2,\"\")","v":""}]
[null,null,{"$f":"IF(C398=\"Oui\",3,\"\")","v":""}]
[null,null,{"$f":"IF(C398=\"Oui\",4,\"\")","v":""}]
[null,null,{"$f":"IF(C398=\"Oui\",5,\"\")","v":""}]
[null,null,{"$f":"IF(C398=\"Oui\",6,\"\")","v":""}]
[null,null,{"$f":"IF(C398=\"Oui\",7,\"\")","v":""}]
[null,null,{"$f":"IF(C398=\"Oui\",8,\"\")","v":""}]
[null,null,{"$f":"IF(C398=\"Oui\",9,\"\")","v":""}]
[null,null,{"$f":"IF(C398=\"Oui\",10,\"\")","v":""}]
["Travaux",null,{"$f":"IF(AND(AND(Formulaire!$E$43=$A$206,Formulaire!$E$45=$A$364),Formulaire!$E$47=A409),\"Oui\",\"\")","v":""}]
[null,"- Merci de contacter le service concerné.",{"$f":"IF(C409=\"Oui\",1,\"\")","v":""}]
[null,null,{"$f":"IF(C409=\"Oui\",2,\"\")","v":""}]
[null,null,{"$f":"IF(C409=\"Oui\",3,\"\")","v":""}]
[null,null,{"$f":"IF(C409=\"Oui\",4,\"\")","v":""}]
[null,null,{"$f":"IF(C409=\"Oui\",5,\"\")","v":""}]
[null,null,{"$f":"IF(C409=\"Oui\",6,\"\")","v":""}]
[null,null,{"$f":"IF(C409=\"Oui\",7,\"\")","v":""}]
[null,null,{"$f":"IF(C409=\"Oui\",8,\"\")","v":""}]
[null,null,{"$f":"IF(C409=\"Oui\",9,\"\")","v":""}]
[null,null,{"$f":"IF(C409=\"Oui\",10,\"\")","v":""}]
["TVB/Paysages/Espèces"]
["Acquisitions",null,{"$f":"IF(AND(AND(Formulaire!$E$43=$A$206,Formulaire!$E$45=$A$420),Formulaire!$E$47=A421),\"Oui\",\"\")","v":""}]
[null,"Espèces patrimoniales et invasives :",{"$f":"IF(C421=\"Oui\",1,\"\")","v":""}]
[null,"- la délibération portant sur l’engagement à respecter les termes du règlement «Espèces patrimoniales et invasives »,",{"$f":"IF(C421=\"Oui\",2,\"\")","v":""}]
[null,"- une note technique de présentation du projet,",{"$f":"IF(C421=\"Oui\",3,\"\")","v":""}]
[null,"- le plan de localisation, ",{"$f":"IF(C421=\"Oui\",4,\"\")","v":""}]
[null,"- l’échéancier de réalisation.",{"$f":"IF(C421=\"Oui\",5,\"\")","v":""}]
[null,null,{"$f":"IF(C421=\"Oui\",6,\"\")","v":""}]
[null,null,{"$f":"IF(C421=\"Oui\",7,\"\")","v":""}]
[null,null,{"$f":"IF(C421=\"Oui\",8,\"\")","v":""}]
[null,null,{"$f":"IF(C421=\"Oui\",9,\"\")","v":""}]
[null,null,{"$f":"IF(C421=\"Oui\",10,\"\")","v":""}]
["Outils de communication",null,{"$f":"IF(AND(AND(Formulaire!$E$43=A206,Formulaire!$E$45=$A$420),Formulaire!$E$47=A432),\"Oui\",\"\")","v":""}]
[null,"- Merci de contacter le service concerné.",{"$f":"IF(C432=\"Oui\",1,\"\")","v":""}]
[null,null,{"$f":"IF(C432=\"Oui\",2,\"\")","v":""}]
[null,null,{"$f":"IF(C432=\"Oui\",3,\"\")","v":""}]
[null,null,{"$f":"IF(C432=\"Oui\",4,\"\")","v":""}]
[null,null,{"$f":"IF(C432=\"Oui\",5,\"\")","v":""}]
[null,null,{"$f":"IF(C432=\"Oui\",6,\"\")","v":""}]
[null,null,{"$f":"IF(C432=\"Oui\",7,\"\")","v":""}]
[null,null,{"$f":"IF(C432=\"Oui\",8,\"\")","v":""}]
[null,null,{"$f":"IF(C432=\"Oui\",9,\"\")","v":""}]
[null,null,{"$f":"IF(C432=\"Oui\",10,\"\")","v":""}]
["Actions en régie",null,{"$f":"IF(AND(AND(Formulaire!$E$43=$A$206,Formulaire!$E$45=$A$420),Formulaire!$E$47=A443),\"Oui\",\"\")","v":""}]
[null,"Espèces patrimoniales et invasives :",{"$f":"IF(C443=\"Oui\",1,\"\")","v":""}]
[null,"- la délibération portant sur l’engagement à respecter les termes du règlement «Espèces patrimoniales et invasives »,",{"$f":"IF(C443=\"Oui\",2,\"\")","v":""}]
[null,"- une note technique de présentation du projet,",{"$f":"IF(C443=\"Oui\",3,\"\")","v":""}]
[null,"- le plan de localisation, ",{"$f":"IF(C443=\"Oui\",4,\"\")","v":""}]
[null,"- l’échéancier de réalisation.",{"$f":"IF(C443=\"Oui\",5,\"\")","v":""}]
[null,null,{"$f":"IF(C443=\"Oui\",6,\"\")","v":""}]
[null,null,{"$f":"IF(C443=\"Oui\",7,\"\")","v":""}]
[null,null,{"$f":"IF(C443=\"Oui\",8,\"\")","v":""}]
[null,null,{"$f":"IF(C443=\"Oui\",9,\"\")","v":""}]
[null,null,{"$f":"IF(C443=\"Oui\",10,\"\")","v":""}]
["Etudes",null,{"$f":"IF(AND(AND(Formulaire!$E$43=$A$206,Formulaire!$E$45=$A$420),Formulaire!$E$47=A454),\"Oui\",\"\")","v":""}]
[null,"Espèces patrimoniales et invasives :",{"$f":"IF(C454=\"Oui\",1,\"\")","v":""}]
[null,"- la délibération portant sur l’engagement à respecter les termes du règlement «Espèces patrimoniales et invasives »,",{"$f":"IF(C454=\"Oui\",2,\"\")","v":""}]
[null,"- une note technique de présentation du projet,",{"$f":"IF(C454=\"Oui\",3,\"\")","v":""}]
[null,"- le plan de localisation, ",{"$f":"IF(C454=\"Oui\",4,\"\")","v":""}]
[null,"- l’échéancier de réalisation.",{"$f":"IF(C454=\"Oui\",5,\"\")","v":""}]
[null,null,{"$f":"IF(C454=\"Oui\",6,\"\")","v":""}]
[null,null,{"$f":"IF(C454=\"Oui\",7,\"\")","v":""}]
[null,null,{"$f":"IF(C454=\"Oui\",8,\"\")","v":""}]
[null,null,{"$f":"IF(C454=\"Oui\",9,\"\")","v":""}]
[null,null,{"$f":"IF(C454=\"Oui\",10,\"\")","v":""}]
["Travaux",null,{"$f":"IF(AND(AND(Formulaire!$E$43=$A$206,Formulaire!$E$45=$A$420),Formulaire!$E$47=A465),\"Oui\",\"\")","v":""}]
[null,"Espèces patrimoniales et invasives :",{"$f":"IF(C465=\"Oui\",1,\"\")","v":""}]
[null,"- la délibération portant sur l’engagement à respecter les termes du règlement «Espèces patrimoniales et invasives »,",{"$f":"IF(C465=\"Oui\",2,\"\")","v":""}]
[null,"- une note technique de présentation du projet,",{"$f":"IF(C465=\"Oui\",3,\"\")","v":""}]
[null,"- le plan de localisation, ",{"$f":"IF(C465=\"Oui\",4,\"\")","v":""}]
[null,"- l’échéancier de réalisation.",{"$f":"IF(C465=\"Oui\",5,\"\")","v":""}]
[null,null,{"$f":"IF(C465=\"Oui\",6,\"\")","v":""}]
[null,null,{"$f":"IF(C465=\"Oui\",7,\"\")","v":""}]
[null,null,{"$f":"IF(C465=\"Oui\",8,\"\")","v":""}]
[null,null,{"$f":"IF(C465=\"Oui\",9,\"\")","v":""}]
[null,null,{"$f":"IF(C465=\"Oui\",10,\"\")","v":""}]
["Fin"]